Workbook

Sheet CoverPage
A5: Homekey Round 3
A6: Notice of Funding Availability (NOFA)
A9: Homekey Round 3 Application
A29: State of California
A30: Governor Gavin Newsom
A32: Lourdes M. Castro Ramírez, Secretary
A33: Business, Consumer Services and Housing Agency
A35: Gustavo Velasquez, Director
A36: Department of Housing and Community Development
A39: 2020 West El Camino Avenue, Suite 150, Sacramento, CA 95833
A40: Telephone: (916) 263-2771
A41: Website: https://www.hcd.ca.gov/grants-and-funding/homekey
A42: Email: Homekey@hcd.ca.gov
A47: 2023-04-24

Sheet Overview
A1: Homekey Round 3 Project Overview | AJ1: Rev 4/23/2023
A2: §401 Pre-Application Consultation Requirement
A3: Has the Eligible Applicant completed a pre-application survey and received approval from the Department to submit an Application? Pre-application surveys will be available upon the release of this NOFA and may be requested by emailing Homekey@hcd.ca.gov.
A4: Instructions
A5: "Yellow" shaded cells are for Applicant input. Failure to submit a complete application including the required documentation may result in the need for you to amend and resubmit your application resulting in your application's HCD review to be repositioned to the date of resubmittal.
A6: "Red" shaded cells indicate the Applicant has likely failed to meet a Homekey requirement. 'Applicant Scoring Criteria' worksheet cells shaded in "red" indicate that the Applicant has failed to meet the minimum points required.
A7: "Orange" shaded cells' indicate required attachments. Electronically attached files must use the naming convention in the Application. For Example: "Housing Site Map" for the map indicating the original target housing location and all proposed housing location(s).
A8: "Green" shaded cells indicate HCD Use Only.
A9: "Blue" shaded cells indicate Application scores.
A10: NOFA section references are made with "§" and the corresponding NOFA section number.
A11: Please don’t hesitate to contact us with any questions or if you need assistance in completing this application.
A12: For general Homekey NOFA and program questions, email: homekey@hcd.ca.gov.
A13: For application specific assistance, complete the 'App Support' worksheet & email your Excel application to: homekey.help@hcd.ca.gov
A14: For appeals, submit to: homekeyappeals@hcd.ca.gov
A15: Homekey Summary (auto populated from Award, Match and Revenue worksheet)
A16: Capital Baseline Award | J16: ='Award, Match, and Revenue'!$T$4 -> 0 | M16: Additional Contribution | V16: ='Award, Match, and Revenue'!$T$5 -> 0 | Y16: Total Requested Capital Award | AI16: =SUM($J$16,$V$16,$V$17) -> 0
A17: Operating Subsidy | J17: ='Award, Match, and Revenue'!$T$7 -> 0 | M17: 50% Relocation Costs | V17: ='Award, Match, and Revenue'!$T$8 -> 0 | Y17: Total Requested Operating Subsidy | AI17: ='Award, Match, and Revenue'!$U$7 -> 0
A18: Total Requested Homekey Award (capital + operating + 50% relocation costs) | AI18: =SUM($AI$16,$AI$17) -> 0
A19: Number of Doors at Acquisition | K19: ='Unit Mix'!$B$21 -> 0 | M19: Number of Units Proposed in the Project | W19: ='Unit Mix'!$E$21 -> 0 | Y19: Number of Assisted Units | AK19: ='Unit Mix'!$Y$21 -> 0
A20: Number of At-Risk of Homelessness Units | K20: ='Unit Mix'!$U$21 -> 0 | M20: Number of Chronically Homeless Units | W20: ='Unit Mix'!$V$21 -> 0 | Y20: Number of Homeless Units | AK20: ='Unit Mix'!$W$21 -> 0
A21: Number of Homeless Youth or Youth at Risk of Homelessness Units | Q21: ='Unit Mix'!$X$21 -> 0 | S21: Number of Units accessible to persons with hearing or vision disabilities | AK21: ='Application Scoring Criteria'!$U$63 -> 0
A22: Number of Units accessible to persons with mobility disabilities | Q22: ='Application Scoring Criteria'!$U$62 -> 0
A23: Project Overview
A24: Project Name
A25: Project Address | S25: Project City | AC25: State | AE25: CA | AH25: Zip | AN25: Alameda | AO25: No
A26: Project County | L26: Is the Project in a Rural Area per H&S Code §50199.21? (use the TCAC Method for determining rural status) | AN26: Alpine | AO26: Yes
A27: Project and unit amenities/features | G27: Kitchenettes included? | O27: If yes, how many units? | W27: Number of parking spaces | AE27: Number of elevators | AN27: Amador | AO27: Yes
G28: No. of residential building | O28: Common area (sq. ft.) | W28: Land area (acres) | AE28: Total residential area (sq. ft.) | AN28: Butte | AO28: No
G29: Other (specify) | AN29: Calaveras | AO29: Yes
A30: Assessor Parcel Number(s) (APNs) | AN30: Colusa | AO30: Yes
AN31: Contra Costa | AO31: No
AN32: Del Norte | AO32: Yes
A33: Homekey Region | S33: =IFERROR(VLOOKUP($E$26,'Drop Down'!$D$1:$E$58,2,FALSE),"") ->  | AN33: El Dorado | AO33: No
A34: Project Type | AN34: Fresno | AO34: No
A35: §201 Eligible Uses | AN35: Glenn | AO35: Yes
A36: Project Development Type | AN36: Humboldt | AO36: Yes
A37: Is the Applicant requesting for relocation costs? (§201(vi) Relocation costs for individuals who are being displaced as a result of your Homekey Project.) | AN37: Imperial | AO37: No
A38: Is the Applicant requesting for Homekey operating subsidy? (§201(vii) Capitalized operating subsidies for units purchased, converted, constructed, or altered with funds provided pursuant to HSC §50675.1.3.) | AN38: Inyo | AO38: Yes
A39: §202 Eligible Projects | AN39: Kern | AO39: No
A40: Other Eligible Projects not listed above (describe below) | AN40: Kings | AO40: No
AN41: Lake | AO41: Yes
A42: §202(viii). Applicant acknowledges Homekey Assisted Units previously awarded under Rounds 1 and 2 of Homekey funding are ineligible for Homekey Round 3 funding. | AN42: Lassen | AO42: Yes
A43: Project Narrative | AN43: Los Angeles | AO43: No
AN44: Madera | AO44: No
A45: Scope of Work (Please include a clear, precise description of the work to be performed; the services to be provided; and all other goals, objectives, and deliverables to be fulfilled.) | AN45: Marin | AO45: No
AN46: Mariposa | AO46: Yes
A47: If Project is also known under another name(s) or was formerly known under another name(s), provide the name(s). | AN47: Mendocino | AO47: Yes
A48: Has the Applicant applied, plan to apply, or been awarded other HCD program funds (outside this Homekey NOFA) for this Project site? | AN48: Merced | AO48: No
A49: Other HCD Program(s) Name(s): | P49: Plan to Apply? | R49: Loan Amount | V49: Grant Amount | Z49: Awarded? | AC49: Award Date/Expected Award Date | AH49: HCD Contract Number | AN49: Modoc | AO49: Yes
AN50: Mono | AO50: Yes
AN51: Monterey | AO51: No
AN52: Napa | AO52: No
A53: §200 Eligible Applicants | AN53: Nevada | AO53: Yes
A54: Applicant #1 | AN54: Orange | AO54: No
A55: Entity name | AA55: Organization type | AN55: Placer | AO55: No
A56: Address | V56: City | AC56: State | AE56: CA | AH56: Zip | AN56: Plumas | AO56: Yes
A57: Auth Rep | M57: Title | V57: Email | AG57: Phone | AN57: Riverside | AO57: No
A58: Contact | M58: Title | V58: Email | AG58: Phone | AN58: Sacramento | AO58: No
A59: Address | V59: City | AC59: State | AH59: Zip | AN59: San Benito | AO59: Yes
A60: File Name | D60: App1 Cert & Legal | L60: Reference: Certification & Legal Worksheet | AF60: Uploaded to HCD? | AN60: San Bernardino | AO60: No
A61: File Name | D61: App1 Resolution | L61: Signature required; see Applicant Documents worksheet. | AF61: Uploaded to HCD? | AN61: San Diego | AO61: No
A62: File Name | D62: App1 TIN Form | L62: See Applicant Documents worksheet | AF62: Uploaded to HCD? | AN62: San Francisco | AO62: No
A63: File Name | D63: App1 Signature Block | L63: See Applicant Documents worksheet | AF63: Uploaded to HCD? | AN63: San Joaquin | AO63: No
A64: Is there a Co-Applicant? If so, please click the appropriate button: | AN64: San Luis Obispo | AO64: No
A65: Co-Applicant #1 (if applicable) | AN65: San Mateo | AO65: No
A66: Entity name | AA66: Organization type | AN66: Santa Barbara | AO66: No
A67: Address | V67: City | AC67: State | AH67: Zip | AN67: Santa Clara | AO67: No
A68: Auth Rep | M68: Title | V68: Email | AG68: Phone | AN68: Santa Cruz | AO68: No
A69: Contact | M69: Title | V69: Email | AG69: Phone | AN69: Shasta | AO69: No
A70: Address | V70: City | AC70: State | AH70: Zip | AN70: Sierra | AO70: Yes
A71: File Name | D71: Co-App1 Cert & Legal | L71: Reference: Certifications & Legal worksheet. | AF71: Uploaded to HCD? | AN71: Siskiyou | AO71: Yes
A72: File Name | D72: Co-App1 Resolution | L72: Signature required; see Applicant Documents worksheet. | AF72: Uploaded to HCD? | AN72: Solano | AO72: No
A73: File Name | D73: Co-App1 Payee Data or TIN | L73: See Applicant Documents worksheet | AF73: Uploaded to HCD? | AN73: Sonoma | AO73: No
A74: File Name | D74: Co-App1 Signature Block | L74: See Applicant Documents worksheet | AF74: Uploaded to HCD? | AN74: Stanislaus | AO74: No
A75: File Name | D75: Co-App1 OrgDoc1, OrgDoc2, etc. | L75: See Applicant Documents worksheet | AF75: Uploaded to HCD? | AN75: Sutter | AO75: No
A76: File Name | D76: Co-App1 OrgChart | L76: See Applicant Documents worksheet | AF76: Uploaded to HCD? | AN76: Tehama | AO76: Yes
A77: File Name | D77: Co-App1 Cert of Good Standing | L77: Dated 30 days or less from the Application due date | AF77: Uploaded to HCD? | AN77: Trinity | AO77: Yes
A78: File Name | D78: Co-App1 Tax-Exempt Status | L78: Evidence of tax-exempt status from IRS and Franchise Tax Board, if applicable | AF78: Uploaded to HCD? | AN78: Tulare | AO78: No
A79: File Name | D79: Co-App1 Article of Org | L79: LLC | N79: See Applicant Documents worksheet | AF79: Uploaded to HCD? | AN79: Tuolumne | AO79: Yes
A80: File Name | D80: Co-App1 Cert of Amendment | AF80: Uploaded to HCD? | AN80: Ventura | AO80: No
A81: File Name | D81: Co-App1 Stat of Information | AF81: Uploaded to HCD? | AN81: Yolo | AO81: No
A82: File Name | D82: Co-App1 Cert of LP | L82: LP | N82: See Applicant Documents worksheet | AF82: Uploaded to HCD? | AN82: Yuba | AO82: No
A83: File Name | D83: Co-App1 LP Agreement | AF83: Uploaded to HCD?
A84: Co-Applicant #2 (if applicable)
A85: Entity name | AA85: Organization type
A86: Address | V86: City | AC86: State | AH86: Zip
A87: Auth Rep | M87: Title | V87: Email | AG87: Phone
A88: Contact | M88: Title | V88: Email | AG88: Phone
A89: Address | V89: City | AC89: State | AH89: Zip
A90: File Name | D90: Co-App2 Cert & Legal | L90: Reference: Certifications & Legal worksheet. | AF90: Uploaded to HCD?
A91: File Name | D91: Co-App2 Resolution | L91: Signature required; see Applicant Documents worksheet. | AF91: Uploaded to HCD?
A92: File Name | D92: Co-App2 Payee Data or TIN | L92: See Applicant Documents worksheet | AF92: Uploaded to HCD?
A93: File Name | D93: Co-App2 Signature Block | L93: See Applicant Documents worksheet | AF93: Uploaded to HCD?
A94: File Name | D94: Co-App2 OrgDoc1, OrgDoc2, etc. | L94: See Applicant Documents worksheet | AF94: Uploaded to HCD?
A95: File Name | D95: Co-App2 OrgChart | L95: See Applicant Documents worksheet | AF95: Uploaded to HCD?
A96: File Name | D96: Co-App2 Cert of Good Standing | L96: Dated 30 days or less from the Application due date | AF96: Uploaded to HCD?
A97: File Name | D97: Co-App2 Tax-Exempt Status | L97: Evidence of tax-exempt status from IRS and Franchise Tax Board, if applicable | AF97: Uploaded to HCD?
A98: File Name | D98: Co-App2 Article of Org | L98: LLC | N98: See Applicant Documents worksheet | AF98: Uploaded to HCD?
A99: File Name | D99: Co-App2 Cert of Amendment | AF99: Uploaded to HCD?
A100: File Name | D100: Co-App2 Stat of Information | AF100: Uploaded to HCD?
A101: File Name | D101: Co-App2 Cert of LP | L101: LP | N101: See Applicant Documents worksheet | AF101: Uploaded to HCD?
A102: File Name | D102: Co-App2 LP Agreement | AF102: Uploaded to HCD?
A103: Co-Applicant #3 (if applicable)
A104: Entity name | AA104: Organization type
A105: Address | V105: City | AC105: State | AH105: Zip
A106: Auth Rep | M106: Title | V106: Email | AG106: Phone
A107: Contact | M107: Title | V107: Email | AG107: Phone
A108: Address | V108: City | AC108: State | AH108: Zip
A109: File Name | D109: Co-App3 Cert & Legal | L109: Reference: Certifications & Legal worksheet. | AF109: Uploaded to HCD?
A110: File Name | D110: Co-App3 Resolution | L110: Signature required; see Applicant Documents worksheet. | AF110: Uploaded to HCD?
A111: File Name | D111: Co-App3 Payee Data or TIN | L111: See Applicant Documents worksheet | AF111: Uploaded to HCD?
A112: File Name | D112: Co-App3 Signature Block | L112: See Applicant Documents worksheet | AF112: Uploaded to HCD?
A113: File Name | D113: Co-App3 OrgDoc1, OrgDoc2, etc. | L113: See Applicant Documents worksheet | AF113: Uploaded to HCD?
A114: File Name | D114: Co-App3 OrgChart | L114: See Applicant Documents worksheet | AF114: Uploaded to HCD?
A115: File Name | D115: Co-App3 Cert of Good Standing | L115: Dated 30 days or less from the Application due date | AF115: Uploaded to HCD?
A116: File Name | D116: Co-App3 Tax-Exempt Status | L116: Evidence of tax-exempt status from IRS and Franchise Tax Board, if applicable | AF116: Uploaded to HCD?
A117: File Name | D117: Co-App3 Article of Org | L117: LLC | N117: See Applicant Documents worksheet | AF117: Uploaded to HCD?
A118: File Name | D118: Co-App3 Cert of Amendment | AF118: Uploaded to HCD?
A119: File Name | D119: Co-App3 Stat of Information | AF119: Uploaded to HCD?
A120: File Name | D120: Co-App3 Cert of LP | L120: LP | N120: See Applicant Documents worksheet | AF120: Uploaded to HCD?
A121: File Name | D121: Co-App3 LP Agreement | AF121: Uploaded to HCD?
A122: Co-Applicant #4 (if applicable)
A123: Entity name | AA123: Organization type
A124: Address | V124: City | AC124: State | AH124: Zip
A125: Auth Rep | M125: Title | V125: Email | AG125: Phone
A126: Contact | M126: Title | V126: Email | AG126: Phone
A127: Address | V127: City | AC127: State | AH127: Zip
A128: File Name | D128: Co-App4 Cert & Legal | L128: Reference: Certifications & Legal worksheet. | AF128: Uploaded to HCD?
A129: File Name | D129: Co-App4 Resolution | L129: Signature required; see Applicant Documents worksheet. | AF129: Uploaded to HCD?
A130: File Name | D130: Co-App4 Payee Data or TIN | L130: See Applicant Documents worksheet | AF130: Uploaded to HCD?
A131: File Name | D131: Co-App4 Signature Block | L131: See Applicant Documents worksheet | AF131: Uploaded to HCD?
A132: File Name | D132: Co-App4 OrgDoc1, OrgDoc2, etc. | L132: See Applicant Documents worksheet | AF132: Uploaded to HCD?
A133: File Name | D133: Co-App4 OrgChart | L133: See Applicant Documents worksheet | AF133: Uploaded to HCD?
A134: File Name | D134: Co-App4 Cert of Good Standing | L134: Dated 30 days or less from the Application due date | AF134: Uploaded to HCD?
A135: File Name | D135: Co-App4 Tax-Exempt Status | L135: Evidence of tax-exempt status from IRS and Franchise Tax Board, if applicable | AF135: Uploaded to HCD?
A136: File Name | D136: Co-App4 Article of Org | L136: LLC | N136: See Applicant Documents worksheet | AF136: Uploaded to HCD?
A137: File Name | D137: Co-App4 Cert of Amendment | AF137: Uploaded to HCD?
A138: File Name | D138: Co-App4 Stat of Information | AF138: Uploaded to HCD?
A139: File Name | D139: Co-App4 Cert of LP | L139: LP | N139: See Applicant Documents worksheet | AF139: Uploaded to HCD?
A140: File Name | D140: Co-App4 LP Agreement | AF140: Uploaded to HCD?
A141: Development Team Contacts (provide information that is currently available)
A142: Property Management Company
A143: Legal Name | P143: Contact Name | AB143: Email
A144: Phone | H144: Address | V144: City | AD144: State | AH144: Zip
A145: Financial Consultant
A146: Legal Name | P146: Contact Name | AB146: Email
A147: Phone | H147: Address | V147: City | AD147: State | AH147: Zip
A148: Legal Counsel
A149: Legal Name | P149: Contact Name | AB149: Email
A150: Phone | H150: Address | V150: City | AD150: State | AH150: Zip
A151: General Contractor
A152: Legal Name | P152: Contact Name | AB152: Email
A153: Phone | H153: Address | V153: City | AD153: State | AH153: Zip
A154: Architect
A155: Legal Name | P155: Contact Name | AB155: Email
A156: Phone | H156: Address | V156: City | AD156: State | AH156: Zip
A157: Development/Operating Funding Source
A158: Legal Name | P158: Contact Name | AB158: Email
A159: Phone | H159: Address | V159: City | AD159: State | AH159: Zip
A160: Development/Operating Funding Source
A161: Legal Name | P161: Contact Name | AB161: Email
A162: Phone | H162: Address | V162: City | AD162: State | AH162: Zip

Sheet Threshold
A1: Threshold | AK1: =Overview!AJ1 -> Rev 4/23/2023
A2: §300 Threshold Requirements
A3: To be eligible to receive funding, all projects must meet the following requirements as they relate to the Eligible Applicant and the project types.
A4: i. Applicant acknowledges that applications may be submitted independently by an Eligible Applicant, as defined in §200. Alternatively, each of the foregoing Eligible Applicants may apply jointly with a Co-Applicant, as specified?
A5: Applicant acknowledges that no additional Co-Applicants or Special Purpose Entities will be considered subsequent to the date of application.
A6: ii. Applicant agrees Project(s) must serve persons qualifying as members of the Target Population per Article VII(xl).
A7: iii. Applicant acknowledges that applications must include a Project-specific Supportive Services plan, that shall be consistent with any representations made in the application and it shall meet the Homekey program requirements? Applicant also acknowledges that the Department in its sole discretion shall make the determination (1) if the Supportive Services plan is sufficiently complete to pass threshold and (2) if the Supportive Services plan and property management plan is compliant with Housing First and other evidence-based practices. Applicant must comply with the requirements in §300(iii) and §501 of the NOFA.
A8: iv. Applicant acknowledges the requirement to submit a written non-discrimination policy that complies with the requirements in §505.
A9: File Name: | D9: Non-Discrimination Policy | L9: Provide a non-discrimination policy | AF9: Uploaded to HCD?
A10: v. Applicant acknowledges the requirement to submit an overview below of the plan and timeline for any required entitlements, permits, and environmental clearances. Applicants must also complete the 'Local & Env Verification' worksheet. Eligible Applicants will have an opportunity to discuss their land use and environmental clearance plans, and related statutory authorities during the pre-application consultation.
A11: File Name | D11: Local Appr, CEQA, and NEPA | L11: Local Approvals, CEQA, and NEPA, as evidenced by the completed and signed Local Jurisdiction and NEPA Responsible Entity Verification worksheet | AF11: Uploaded to HCD?
A12: Construction start date | N12: Construction completion date | AA12: Estimated occupancy date
A13: vi. Applicant acknowledges the requirement to submit a response to the following question: what specific actions will the Applicant take to ensure equitable access to housing and services for groups that are overrepresented among residents experiencing homelessness in its jurisdiction, including racial, ethnic and LGBTQ+ groups? The response shall reference the latest Continuum of Care (CoC) HMIS demographics data to explain.
A14: File Name | D14: Racial & Gender Equity statement | L14: Provide Racial & Gender Equity statement | AF14: Uploaded to HCD?
A15: vii. Applicant acknowledges the requirement to submit a concise and reasonably detailed answer to the following question: how did the Applicant engage or will engage with the Target Population to inform the design of the Project operations and Supportive Services? The guidance document can be found on the Homekey website.
A16: File Name | D16: Engaging the Target Population statement | L16: Provide a response on how the Applicant engage or will engage with the Target Population to inform the design of the Project operations and Supportive Services. | AF16: Uploaded to HCD?
A17: viii. Applicant must have site control of all properties at the time of application, and control must not be contingent on the approval of any other party. Does Applicant have site control? If Yes, enter site control information for each APN and most recent execution date. Describe site control special circumstances below.
A18: APN | F18: Address | O18: Type of Site Control | AA18: Current owner | AG18: Execution date | AJ18: Expiration date
A19: =Overview!A31 -> 0
A20: =Overview!F31 -> 0
A21: =Overview!J31 -> 0
A22: =Overview!N31 -> 0
A23: =Overview!R31 -> 0
A24: =Overview!V31 -> 0
A25: =Overview!Z31 -> 0
A26: =Overview!AD31 -> 0
A27: =Overview!AH31 -> 0
A28: =Overview!A32 -> 0
A29: =Overview!F32 -> 0
A30: =Overview!J32 -> 0
A31: =Overview!N32 -> 0
A32: =Overview!R32 -> 0
A33: =Overview!V32 -> 0
A34: =Overview!Z32 -> 0
A35: =Overview!AD32 -> 0
A36: =Overview!AH32 -> 0
A37: viii(h). Applicant acknowledges that if one or more sites will require a use change for permanent housing, Applicant must submit a commitment and plan to facilitate or expedite those processes, so as to not delay expenditure and occupancy requirements?
A38: File Name: | D38: Use Change | L38: Provide proof of commitment to facilitate or expedite those processes, so as to not delay expenditure and occupancy requirements | AF38: Uploaded to HCD?
A39: Provide details below for unusual site control special circumstances or "Other" types of site control:
A41: File Name: | D41: Site Control1, Site Control2, etc. | L41: Provide documentation of the type of site control for each site above | AF41: Uploaded to HCD?
A42: ix. Applicant agrees to provide a preliminary title report for each site, dated with 15 days of the application submittal?
A43: File Name: | D43: Prelim1, Prelim2, etc. | K43: Provide a current preliminary report | L43: Provide current preliminary title report for each site above | AE43: On USB? | AF43: Uploaded to HCD?
A44: x. Applicant acknowledges that the Eligible Applicant or Co-Applicant applying for the Homekey funding is the entity that HCD relies upon for experience and capacity, and will control the project during acquisition, development, and occupancy? | AN44: =IF(Overview!D55="","Applicant #1",Overview!D55) -> Applicant #1
A45: Indicate which Eligible Applicant the Department can rely on for experience and capacity: | AN45: =IF(Overview!D66="","",Overview!D66) -> 
A46: xi. Applicant agrees to provide a detailed development plan that supports acquisition of a site, completion of rehabilitation or construction, occupancy, and fund expenditure before all program deadlines, factoring in entitlements, permits, procurement, potential construction delays and supply chain issues, and demonstrates evidence of strong organizational and financial capacity to develop the project? A development plan template can be found on the Homekey website. | AN46: =IF(Overview!D85="","",Overview!D85) -> 
A47: Is the Eligible Applicant requesting for an expenditure deadline extension? Note: Awardees will be subject to the following deadlines: 1. Acquisition, Rehabilitation, and/or construction must be completed 12 months from the date of award letter; 2. Capital expenditure must be completed within eight (8) months, or up to 15 months from the date of award if requesting an expenditure deadline extension; and 3. Full occupancy must be achieved by 15 months from date of award letter. | AI47: If select yes, how many months?
A48: File Name: | D48: Development Plan | L48: Provide a detailed development plan that supports acquisition of a site, completion of rehabilitation or construction, occupancy, and fund expenditure before all program deadlines, factoring in entitlements, permits, procurement, potential construction delays and supply chain issues, and demonstrates evidence of strong organizational and financial capacity to develop the project. | AF48: Uploaded to HCD? | AN48: =IF(Overview!D104="","",Overview!D104) -> 
A49: xii. Applicant agrees that Assisted Units and other units of the Project must meet all applicable state and local building standards pertaining to rental housing and manufactured housing, including but not limited to requirements for minimum square footage, and requirements related to maintaining the Project in a safe and sanitary condition?
A50: xiii. Applicant acknowledges all Applicants and Co-Applicants must be in good standing with the State of California and all agencies and departments thereof? By way of example and not limitation, an Applicant and Co-Applicant must be qualified to do business in the State of California and must be in good standing with the California Secretary of State and the California Franchise Tax Board. Applicants that are delinquent in meeting the material requirements of previous Department awards may, in the Department’s reasonable discretion, fail threshold review.
A51: xiv. Applicant acknowledges that the Department will require Eligible Applicants to submit a complete application with all required documents? The Department reserves the right to request clarification of unclear or ambiguous statements made in an application and other supporting documents. The following items must be submitted with the application: a. Completed application workbook with all worksheets and supplemental information completed; b. Required documents from each Eligible Applicant and Co-Applicant as applicable, including but not limited to: i. Executed resolutions attested to by a person other that the person identified as the authorized signatory. If there is more than one authorized signatory identified, state whether one or all signatories are required to submit and execute program documents. If the application is being signed by a designee of the authorized signatory, the Applicant must also submit a designee letter or other proof of signing authority; ii. Payee Data Record or Taxpayer Identification Number (TIN) form; iii. Evidence of tax-exempt status from the Internal Revenue Service (IRS) or Franchise Tax Board, if applicable; iv. Signature block uploaded in Microsoft Word format; v. Organizational chart that depicts the organizational structure of the entities in relation to the Applicants; and vi. Organizational documents supporting the resolutions submitted with the application. The Department reserves the right to request additional documentation at any point to verify an entity’s authority and/or organizational structure.
A52: xv. Applicant acknowledges the requirement to submit an Appraisal for all conversion, acquisition, and new construction uses as defined in §201? The appraisal must be in compliance with the Homekey requirements outlined in the Homekey Appraisal Guidance document on the Homekey website: Homekey 3.0 Appraisal Guidance.
A53: xvi. Applicant acknowledges that all Projects seeking funding for Rehabilitation must submit the following? a. Rehabilitation narrative of current condition of structure(s) and overall scope of work; and b. Physical Needs Assessment (PNA) prepared by a qualified independent third-party contractor;
A54: File Name: | D54: Rehab Description | L54: Narrative description of current condition of structure(s) and overall scope of work | AF54: Uploaded to HCD?
A55: File Name: | D55: PNA | L55: Physical Needs Assessment prepared by a qualified independent third-party contractor | AF55: Uploaded to HCD?
A56: xvii. Applicant acknowledges that for Projects seeking funding for master leasing and purchase of affordability covenants, a market study prepared within the last year which conforms to TCAC guidelines, and/or a rent roll, and/or other supporting documentation noted in §205?
A57: File Name: | D57: Market Study | L57: Provide a recent market study within the past year which conforms to TCAC guidelines, and/or a rent roll, and/or other supporting documentation per §205 of the NOFA | AF57: Uploaded to HCD?
A58: xviii. Applicant acknowledges that all Projects seeking funding for Rehabilitation and new construction are required to submit a Phase I Environmental Site Assessment (ESA) which was prepared no earlier than 12 months prior to the application due date?
A59: File Name | D59: Env. Report 1 | L59: Environmental Site Assessment Phase I (prepared or updated no earlier than 12 months prior to the application due date). | AF59: Uploaded to HCD?
A60: File Name | D60: Env. Report 2 | L60: If Environmental Site Assessment Phase I requires a Phase II study, submit a Phase II (prepared or updated no earlier than 12 months prior to the application due date). | AF60: Uploaded to HCD?
A61: File Name: | D61: Appraisal | L61: If land costs will be included in the Development Budget, attach an appraisal dated within 60 days of the application submittal date | AF61: Uploaded to HCD?
A62: xix. Applicant acknowledges the requirement to submit a concise, sufficiently detailed narrative to demonstrate its consideration of, and early engagement with, applicable relocation assistance laws and requirements? See §300(xix). This Relocation Assistance Narrative will be evaluated by the Department to determine whether a relocation plan is required by law or whether a certificate of no-relocation can be issued. A template can be found on the Homekey website. Note: This Relocation Assistance Narrative does not take the place of the relocation plan, or the Certification Regarding Non-Application of Relocation Benefits and Indemnification Agreement, that the Grantee shall submit as a condition of funding.
A63: File Name: | D63: Relocation Assistance Narrative | L63: Relocation Assistance Narrative for displacement or no displacement | AF63: Uploaded to HCD?
A64: xx. Applicant has Enforceable Funding Commitments (EFCs) to cover operations and service costs with specific funding sources, including federal, state, local, private, or philanthropic sources, for the proposed Project for the first five (5) years, and a funding plan covering operations and services costs for ten (10) years thereafter, for a total operating budget of fifteen (15) years from the recordation of the Affordability Covenant? (See §304(1)(b) for potential points).
A65: xxi. Eligible Applicant or Co-Applicant must demonstrate the following minimum experience and capacity requirements below:
A66: a. Development, ownership, or operation of a project similar in scope and size to the proposed project; or development, ownership, or operation of at least two affordable rental housing projects in the last 10 years, with at least one of those projects containing at least one unit housing a tenant or participant who qualifies as a member of the Target Population. (a1. or a2. must be Yes to pass Threshold) | AF66: Passes threshold? | AK66: =IF(AND(AK67="Yes",A69<>"",Q69<>"",V69<>"",AC69<>"",AJ69<>""),"Yes",IF(AK70="Yes","Yes","No")) -> No
A67: a1. Has Applicant developed, owned, or operated a project similar in scope and size to the Project? If Yes, provide details below:
A68: Project name and address | Q68: Who provides the experience | V68: Experience type | Z68: Housing type | AC68: Population served | AJ68: Latest date developed, owned, or operated
Z69: Similar Size and Scope
A70: a2. If a1 above is Yes, skip. Applicant has operated at least two affordable rental housing projects in the last ten years, with at least one of those projects containing at least one unit housing a tenant or participant who qualifies as a member of the Target Population (enter Project information below)? | AK70: =IF(AND(SUM(AM72:AM73)>0,SUM(AN72:AN73)>1),"Yes","No") -> No
A71: Project name and address | Q71: Who provides the experience | V71: Experience type | Z71: Housing type | AC71: Qualifying unit population served | AJ71: Latest date developed, owned, or operated | AM71: 2023-03-29 | AN71: =AM71-(365*10) -> 2013-03-31
Z72: Affordable Rental | AM72: =IF(AND(A72<>"",AC72<>""),1,0) -> 0 | AN72: =IF(AND(A72<>"",AJ72>AN71),1,0) -> 0
Z73: Affordable Rental | AM73: =IF(AND(A73<>"",AC73<>""),1,0) -> 0 | AN73: =IF(AND(A73<>"",AJ73>AN71),1,0) -> 0
A74: b. Experience helping persons address barriers to housing stability & providing support services | N74: Property manager service years | S74: =SUM(AN78:AN82)/12 -> 0 | U74: Supportive Service Provider service years | AA74: =SUM(AN84:AN88)/12 -> 0 | AC74: Pass threshold (three or more years of experience)? | AK74: =IF(AND(OR(G75:G76=0,AND(G75:G76="No",AA74=0)),AK75:AK76="Yes"),"Yes",IF(AND(OR(S74>=3,AND(G75:G76="No",AK75:AK76="Yes")),AA74>=3),"Yes","No")) -> No
A75: Has a property manager been selected? | I75: If Yes, enter property manager name and complete experience chart below: | Z75: If No, Applicant certifies that this requirement will be reflected in future solicitation or memorandum of understanding?
A76: Has a supportive service provider been selected? | I76: If Yes, enter supportive service provider name and complete experience chart below: | Z76: If No, Applicant certifies that this requirement will be reflected in future solicitation or memorandum of understanding?
A77: Project name and address | U77: Experience provider | AA77: Housing type | AD77: Population Served | AK77: # of months serving
U78: Property Manager | AM78: =IF(AND(A78<>"",AD78<>""),1,0) -> 0 | AN78: =IF(AM78=1,AK78,0) -> 0
U79: Property Manager | AM79: =IF(AND(A79<>"",AD79<>""),1,0) -> 0 | AN79: =IF(AM79=1,AK79,0) -> 0
U80: Property Manager | AM80: 0 | AN80: 0
U81: Property Manager | AM81: 0 | AN81: =IF(AM81=1,AK81,0) -> 0
U82: Property Manager | AM82: 0 | AN82: =IF(AM82=1,AK82,0) -> 0
A83: Enter Supportive Service Provider name and complete experience chart below:
U84: Supportive Service Provider | AM84: =IF(AND(A84<>"",AD84<>""),1,0) -> 0 | AN84: 0
U85: Supportive Service Provider | AM85: 0 | AN85: 0
U86: Supportive Service Provider | AM86: 0 | AN86: 0
U87: Supportive Service Provider | AM87: 0 | AN87: 0
U88: Supportive Service Provider | AM88: 0 | AN88: 0
U89: Supportive Service Provider | AM89: 0 | AN89: 0
U90: Supportive Service Provider | AM90: 0 | AN90: 0
U91: Supportive Service Provider | AM91: 0 | AN91: 0
U92: Supportive Service Provider | AM92: 0 | AN92: 0
U93: Supportive Service Provider | AM93: 0 | AN93: 0
A94: c. Experience administering a Project in accordance with the core components of Housing First (Welfare & Institutions Code §8255).
A95: File Name: | D95: Housing First Experience | L95: Provide experience administering a Project in accordance with the core components of Housing First | AF95: Uploaded to HCD?
A96: d. Development, ownership, or operation capacity.
A97: d1. Does Applicant have the capacity to develop, own, and operate the proposed Project? If Yes, provide details in the Development Team Staffing Chart below:
A98: d2. Applicant certifies that it will have adequate staff, capital, assets, and other resources to efficiently meet the operational needs of the Project? Note: Evidence of capacity must be reasonably acceptable to the Department in form and substance.
A99: Development Team Staffing Chart (Project Executive and key Project Staff)
A100: Staff type | D100: Employee / Consultant full name | R100: Position title | Z100: Full time / Part time | AE100: % of time dedicated to this project
A111: xxii. One-for-one replacement of assisted housing
A112: a. Will the acquired housing or site be redeveloped/repositioned as part of the Local Public Entity's overall goal to address the needs of the Target Population and the community?
A113: b. If Yes to xxii(a) above, will the acquired units be subsequently combined to add kitchens, create larger units, and/or create units with additional bedrooms, the applicant will provide such information in the application and ensure an approximate equivalence of square footage available for the benefit of Project residents and participant?
A114: c. If Yes to xxii(a) above, will the target site be demolished before any occupancy by the Target Population?
A115: File Name: | D115: One-for-one Replacement | L115: xxii(a) and (b): If the acquired housing or site will be redeveloped/repositioned per the locality's overall goal to address the needs of the Target Population and the community (unless the target site is going to be demolished before any occupancy by the Target Population), provide a letter of commitment to ensure one-for-one replacement of units. | AF115: Uploaded to HCD?
A116: d. Will all of the proposed housing be located within the original target housing location neighborhood?
A117: File Name: | D117: Housing Site Map | L117: Map indicating the original target housing location and all proposed housing location(s). | AF117: Uploaded to HCD?
A118: File Name: | D118: Outside Neighborhood | L118: If replacement housing is proposed outside the target neighborhood, include a justification explaining why it is necessary to locate this replacement housing outside the target neighborhood (i.e., offsite) and how doing so supports and enables the Target Population to maintain housing. | AF118: Uploaded to HCD?
A119: §301 Interim Housing Requirements skip this application section if your Project Type is Permanent Housing; please complete §302
A120: 1. The Department will only consider an Interim Housing Project application if the Applicant demonstrates a need for Interim Housing in its Homekey application. The Department in its sole discretion may fail on threshold any Interim Housing Project application that does not sufficiently demonstrate a need, as described in §301. In addition to §300, Interim Housing Projects will also be evaluated on a demonstration of need for Interim Housing based on the following requirements:
A121: i. Applicant acknowledges the requirement to provide the following data below:
A122: a. What is the number of available shelter beds in Applicant’s jurisdiction? | AK122: 0
A123: b. What is the number of people experiencing unsheltered homelessness in the homeless PIT? | AK123: 0
A124: c. What is the shelter vacancy rate in the summer and winter months?
A125: d. What is the percentage of exits from emergency shelters to Permanent Housing?
A126: e. Applicant acknowledges the requirement to provide a plan to connect participants to Permanent Housing, describing the number and type of Permanent Housing opportunities, how the Project will leverage Supportive Services staff to navigate to Permanent Housing, and the funding plan to make connections to Permanent Housing.
A127: File Name: | D127: Plan to Perm Hsg | L127: Provide a plan to connect participants to Permanent Housing, describing the number and type of Permanent Housing opportunities, how the Project will leverage Supportive Services staff to navigate to Permanent Housing, and the funding plan to make connections to Permanent Housing. | AF127: Uploaded to HCD?
A128: ii. Applicant acknowledges that if the Eligible Applicant is entitled to apply directly to the HHAP program, then the Eligible Applicant shall provide a description of how the proposed Homekey Interim Housing Project aligns with the Local Homelessness Action Plan it submitted pursuant to HHAP Round 4, including the extent to which HHAP funding does not fully meet the need for Interim Housing? | AC128: Years | AE128: =SUM(#REF!)/12 ->  | AH128: Pass Threshold
A129: File Name: | D129: Interim Hsg Project Alignment | L129: Provide a description of how the proposed Homekey Interim Hsg. Project aligns with the Local Homelessness Action Plan or a description on how the Applicant's jurisdiction has worked with recipients in the region and Continuum of Care (CoC) to coordinate and align the proposed Homekey project with the Local Homelessness Action Plan goals and strategies. | AF129: Uploaded to HCD?
A130: iii. Applicant acknowledges that if the Eligible Applicant did not receive a direct funding allocation under HHAP, the Eligible Applicant shall describe how it has worked with HHAP recipients in the region and the Continuum of Care (CoC) to coordinate and align the proposed Homekey Project with the Local Homelessness Action Plan goals and strategies?
A131: File Name | D131: Interim Hsg Collaboration | L131: Provide a description how Applicant has worked with HHAP recipients in the region and the Continuum of Care (CoC) to coordinate and align the proposed Homekey Project with the Local Homelessness Action Plan goals and strategies. | AF131: Uploaded to HCD?
A132: iv. Applicant acknowledges that if the Eligible Applicant is entitled to apply directly to the HHAP program, the Homekey application must also include the Eligible Applicant’s approved Local Homelessness Action Plan pursuant to HHAP Round 4, which clearly states the need for Interim Housing?
A133: File Name | D133: Local Homelessness Action Plan | L133: Provide a copy of the Eligible Applicant’s approved Local Homelessness Action Plan pursuant to HHAP Round 4, which clearly states the need for Interim Housing. | AF133: Uploaded to HCD?
A134: 2. Applicant acknowledges that Interim Housing Projects awarded Homekey funding pursuant to this NOFA may apply to convert to Permanent Housing in accordance with this section? Approval to convert an Interim Housing Project to a Permanent Housing Project shall be within the Department’s sole and reasonable discretion. Grantees shall meet the requirements in §301(2) in order to convert Interim Housing Projects to Permanent Housing Projects.
A135: §302 Single-Family Scattered Site Housing Requirements skip this application section as applicable; please complete §203
A136: As described in §203 and §207(1)(c), the Department may conditionally award up to four (4) single-family home scattered site housing Projects up to $10 million each. Applicants for this project type must meet all requirements identified in §300, and submit all documents required in the Application Upload Checklist with the following exceptions:
A137: i. Applicant acknowledges that the Eligible Projects under this project type must provide evidence of site control (as defined in §300) within 60 days from the date of the conditional award. Note: Failure to meet this requirement will rescind the conditional award.
A138: ii. Applicant acknowledges that the Eligible Projects under this project type must meet the following threshold requirements (a-d below), within 90 days from the date of the conditional award. Note: Failure to meet this requirement will rescind the conditional award. a. Relocation narrative, as defined in §300; b. Appraisal, as noted in the Application Upload Checklist; c. PNA or equivalent evidence of rehabilitation costs, as noted in the Application Upload Checklist; and d. Phase 1 ESA or equivalent, as noted in the Application Upload Checklist.
A139: §203 Geographic Distribution and Allocations - Homeless Youth Allocation
A140: Unless otherwise indicated, all scoring criteria and other NOFA provisions shall govern the allocation awards provided under this NOFA. Homekey Projects are not required to serve only Homeless Youth, or Youth at Risk of Homelessness. Homekey Projects proposing to serve Homeless Youth, or Youth at Risk of Homelessness, may also serve other qualifying members of the Target Population. At the close of the application period, any unused funds from this allocation shall be reallocated to the Discretionary Reserve and shall be subject to the prioritization methods therein. Applicant acknowledges that to qualify under Homeless Youth Allocation, Projects that meet the threshold requirements of Article III, as well as the following criteria, will be prioritized for Homeless Youth allocation funds: - Have at least 25% of Assisted Units reserved for Homeless Youth or Youth at Risk of Homelessness; - Have jointly applied and/or partnered with a nonprofit corporation(s), including community-based organization(s), with at least three years of experience serving current or former Foster Youth, Homeless Youth, or Youth at Risk of Homelessness; and - Provide Supportive Services for Youth Assisted Units using a Positive Youth Development (PYD) model and trauma- informed care. Services may include, but are not limited to, case management, income supports, educational and employment counseling, life skills, legal assistance, health and wellness, and family connection services.
A141: §303 Other Requirements
A142: i. Applicant acknowledges that Homekey may fund all units in a Project or a portion of the units. If seeking Homekey funding for a portion of the units in a given project, Applicants must identify committed sources for the non-Homekey units. The non-Homekey units are not required to serve the Homekey Target Population and may therefore be restricted at higher AMI levels, which may help promote project feasibility.
A143: a. If at time of acquisition, an existing tenant’s household income is at or below 50% AMI, but the tenant does not qualify as a member of the Target Population, the tenant may remain in place and the unit may still be funded by Homekey. When, in the course of normal tenant turnover, the ineligible household moves from the unit, the Applicant acknowledges that the unit shall thereafter be occupied by the Target Population? Note: There should be no more than 49 percent of the Assisted Units that do not meet the Target Population at the time of acquisition. An existing household who meets the Target Population definition or was a member of the Target Population at the time they moved into the property will not be counted towards the 49 percent cap. Evidence confirming that existing tenants qualify as either at or below 50% AMI or Target Population will be required of the Applicant.
A144: ii. Applicant acknowledges that at year 15 from the recordation of the Affordability Covenant, in circumstances where the Grantee has exhausted available operating funding and demonstrated to the Department that the Project is no longer feasible, the Department may approve an increase in income levels, to the minimum extent required for fiscal integrity, in five percent increments of Assisted Units up to 50 percent AMI?
A145: iii. Applicant acknowledges that the Department reserves the right to set restrictions on the unit mix, rent levels, and other factors deemed necessary. To the maximum extent possible, these changes shall minimize the impact on the lowest income Project residents and shall be phased in as gradually as possible. If, following any increase in rents and income limits, or modification of Target Population occupancy requirements, new resources become available, or market demand changes, allowing reversion to the former income and rent limits or Target Population occupancy requirements, the Department may re- impose these income limits and rent limits or Target Population occupancy requirements, in whole or in part, subject to an analysis of Project feasibility?
A146: iv. Applicant acknowledges that in addition to §300 above, Applicants purchasing affordability covenants and restrictions will also be evaluated on the following requirements: a. The Grantees that purchase affordability covenants and restrictions for existing residential units shall restrict those units to individuals and families who are Homeless or who are At Risk of Homelessness, as defined in 24 CFR part 578.3. Such restriction shall run for 55 years.
A147: v. Applicant acknowledges that in addition to §300 above, master leasing projects will also be evaluated on the following requirements: a. The Grantee shall provide a 15-year plan from the recordation of the use restriction to cover operations and service costs for the Project with specific funding sources (government/philanthropic/private).
A148: vi. Applicant acknowledges that Homekey Grantee(s) shall not, for the duration of this Agreement, sell, assign, transfer, or convey the Project, or any interest therein or portion thereof, without the express prior written approval of the Department?
A149: §500 Article XXXIV
A150: Applicant acknowledges per HSC §37001, subdivision (h)(2), article XXXIV, §1 of the California Constitution is not applicable to a development that consists of the acquisition, rehabilitation, reconstruction, alterations work, new construction, or any combination thereof, of lodging facilities or dwelling units using moneys received from the CSFRF established by the federal American Rescue Plan Act of 2021 (ARPA) (Public Law 117-2)? As such, Article XXXIV is not applicable to Homekey funded development.
A151: §501 Housing First
A152: Applicant acknowledges that the Eligible Applicant shall certify to employ the core components of Housing First, as set forth at Welfare and Institutions Code section 8255(b), in its property management and tenant selection practices? Projects shall accept tenants regardless of sobriety, participation in services or treatment, history of incarceration, credit history, or history of eviction in accordance with practices permitted pursuant to Housing First practices, including local Coordinated Entry System prioritization protocols, or other federal or state Project funding sources.
A153: §502 Tenant Selection and Participant Selection
A154: Applicant acknowledges that referrals to Homekey Assisted Units shall be made through the local Coordinated Entry System (CES) or another comparable prioritization system based on greatest need. All referral protocols for Homekey Assisted Units must be developed in collaboration with the local CoC and implemented consistent with the requirements set forth in this NOFA. CoC collaboration in Project and Supportive Service design is also strongly encouraged to help target and serve greatest need populations. If referrals will be made using a prioritization system other than CES, the Applicant must describe the plan for tenant and participant selection, and it shall be reasonably detailed and comprehensive, as determined by the Department in its sole and absolute discretion. For Grantees utilizing HOME-ARP funds as match, this includes descriptions of any system that are consistent with HOME-ARP referral methods as described in HUD Community Planning and Development (CPD) Notice 21-10. The CES Participation and CoC Coordination document can be found on the Homekey website.
A155: File Name | D155: CES Participation and CoC Form | L155: Provide a Coordinated Entry System Participation and Continuum of Care Coordination Form | AF155: Uploaded to HCD?
A156: §503 Participation in Statewide HDIS/HMIS
A157: Applicant acknowledges that pursuant to Assembly Bill 977, Homekey Grantees who have been awarded HCD funding under the Homekey Program must enter Universal and Common Data Elements as defined by HUD on the individuals and families served into the Homeless Management Information System (HMIS), for projects that will have completed permanent conversion of Department funds effective January 1, 2023, and later?
A158: §504 Relocation
A159: Applicant acknowledges that in addition to the Relocation Assistance Narrative required in §300(xix) submitted at time of application, before the Homekey award will be disbursed, Grantee must submit either: a. A Department-approved relocation plan; or b. A Department-issued Certification Regarding Non-Application of Relocation Benefits and Indemnification Agreement (certificate of no-relocation), which has been duly executed and approved by the Department? Note: Homekey Grantees must comply with all applicable federal, state, and local relocation law. Grantees must have a relocation plan prior to proceeding with any phase of a Project or other activity that will result in the displacement of persons, businesses, or farm operations. The relocation template can be found on the Homekey website.
A160: File Name: | D160: Relocation Plan | L160: Provide a complete relocation plan | AE160: Uploaded to HCD?
A161: §505 Accessibility and Non-Discrimination
A162: Applicants acknowledges all developments shall adhere to the accessibility requirements set forth in California Building Code Chapter 11A and 11B and the Americans with Disabilities Act, Title II?
A163: §506 Prevailing Wage
A164: Applicant acknowledges the use of Homekey funds is subject to California's prevailing wage law (Lab. Code, §1720 et seq.)? Applicant is urged to seek professional legal advice about the law's requirements. Applicant is also acknowledges that prior to disbursing the Homekey funds, the Department will require a certification of compliance with California's prevailing wage law, as well as all applicable federal prevailing wage law. The certification must verify that prevailing wages have been or will be paid, and that labor records will be maintained and made available to any enforcement agency upon request. The certification must be signed by the general contractor(s) and the Grantee?
A165: File Name: | D165: Prevailing Wage Certificate | L165: Provide a prevailing wage certification | AF165: Uploaded to HCD?
A166: §507 Environmental Clearances
A167: Applicant acknowledges the Department encourages Eligible Applicants to fully engage with HCD’s technical assistance and to consider the CEQA exemption set forth at HSC §50675.1.4 and the provision for land use consistency and conformity set forth at HSC §50675.1.3, subdivision (i)? Applicants should consult with their counsel for legal advice in construing application of the foregoing exemptions to their Project. It is entirely within an Applicant’s discretion to determine whether to use the statutory CEQA exemption, whether the exemption applies to the Applicant’s proposed activity, or whether some other mechanism applies and could be used to satisfy obligations under CEQA.
A168: File Name | D168: CEQA | L168: Copy of CEQA Determination Documents | AE168: Uploaded to HCD?
A169: Applicant acknowledges that it must provide National Environmental Clearance Act (NEPA) clearance, as applicable? According to NEPA, Grantee(s) must consider environmental impacts early in the planning process before decisions are made, and actions are taken. The project must assess environmental impacts if a project has applied for HUD assistance (HOME, CDBG, PBVs, Choice Neighborhoods Grant, ShelterCare Plus, etc.).
A170: Applicant acknowledges that HCD does not determine which projects will require NEPA clearance. Applicant must provide HCD a status of any required NEPA review at the time of application.
A171: For more information, visit the HUD Exchange, | L171: review HCD's CDBG-DR Environmental Review guidance, | Y171: or contact HCD's Environmental Service Team at NEPA@hcd.ca.gov
A172: File Name | D172: NEPA Authority to Use Grant Funds (if applicable) | L172: NEPA Authority to Use Grant Funds issued by the Responsible Entity if the project is proposing use of federal funds | AE172: Uploaded to HCD?
A173: §508 Land Use
A174: Applicant acknowledges that Pursuant to HSC section 50675.1.3, subdivision (i), Homekey Projects “shall be deemed consistent and in conformity with any applicable local plan, standard, or requirement, and any applicable coastal plan, local or otherwise, and allowed as a permitted use, within the zone in which the structure is located, and shall not be subject to a conditional use permit, discretionary permit, or any other discretionary reviews or approvals.”?
A175: §509 State Requirements
A176: Applicant acknowledges that all Assisted Units and other Units of the Projects must meet all applicable state and local requirements pertaining to rental housing, including but not limited to, requirements for minimum square footage, and requirements related to maintaining the property in a safe and sanitary condition?
A177: §510 Grantee Liability
A178: Applicant acknowledges that all entities in the Grantee structure (to include the Eligible Applicant, any Co-Applicants, and any other entities added to the ownership structure of the Project pursuant to [§303(vi).] of this NOFA) shall be bound by the Homekey Program Requirements; and shall remain jointly and severally liable to the Department for performance under the Standard Agreement and for compliance with all Homekey Program Requirements? This provision shall remain applicable notwithstanding any Department-approved transfer or assignment of interest, or any designation of a third party for the undertaking of all or any part of the Scope of Work in the Standard Agreement.
A179: §800 Insurance Requirements
A180: Applicant acknowledges that it shall provide documentation of its ability to obtain the insurance coverages outlined in Article VIII of this NOFA.
A181: File Name: | D181: Liability Insurance | K181: Provide a current preliminary report | L181: Proof of General Liability Insurance that meets the requirements in §800(i) | AE181: On USB? | AF181: Uploaded to HCD?
A182: File Name: | D182: Automobile Insurance | K182: Provide a current preliminary report | L182: Proof of Automobile Liability Insurance that meets the requirements in §800(ii) | AE182: On USB? | AF182: Uploaded to HCD?
A183: File Name: | D183: Property-Hazard Insurance | K183: Provide a current preliminary report | L183: Proof of Property Insurance that meets the requirements in §800(v) | AE183: On USB? | AF183: Uploaded to HCD?
A185: Applicant Comments

Sheet Unit Mix
A1: Unit Mix | AL1: =Overview!$AJ$1 -> Rev 4/23/2023
A2: Doors at Acquisition | D2: ="Proposed Units for "&Overview!S34& " Project" -> Proposed Units for Project | Z2: =IF(C21>=AB21,"Maximum Capital Award (Baseline and Additional Contribution) Based on "&A2,"Maximum Capital Award (Baseline and Additional Contribution) Based on "&D2) -> Maximum Capital Award (Baseline and Additional Contribution) Based on Doors at Acquisition
D3: =IF(Overview!$E$26="","",Overview!$E$26) ->  | I3: Monthly Unit Rent | M3: Rental Subsidy Program #1 Name | O3: Rental Subsidy Program #2 Name | Q3: Rental Subsidy Program #3 Name | S3: Rental Subsidy Program #4 Name | U3: Target Population - Homekey Assisted Units (Article VII)
A4: Bdrm size | B4: No. of Doors at Acquisition | C4: Baseline Award based on Units and Bdrm Size at Acquisition | D4: Bdrm size | E4: Number of Units Proposed | F4: Unit Size (Square Feet) | G4: Income Limit AMI | H4: Mngr Units | I4: Restricted | J4: Proposed Rent for Restricted Units | K4: Unrestricted | L4: Monthly Utility Allowance1 | M4: Subsidy Units | N4: Monthly Rent Subsidy Amount | O4: Subsidy Units | P4: Monthly Rent Subsidy Amount | Q4: Subsidy Units | R4: Monthly Rent Subsidy Amount | S4: Subsidy Units | T4: Monthly Rent Subsidy Amount | U4: At-Risk of Homelessness Units | V4: Chronically Homeless Units | W4: Homeless Units | X4: Homeless Youth or Youth at Risk of Homelessness Units | Y4: Total Assisted Units | Z4: Baseline Award based on Units and Proposed Population Served | AA4: Baseline Award based on Units and Proposed Bdrm Size | AB4: Maximum Baseline Award based on Proposed Project | AC4: Unit's Project Cost Based on Total Budgeted Development Costs | AD4: Non-Assisted Units Project Costs (Applicant must fund) | AE4: Project Cost Assisted Units + Manager Units | AF4: Adjusted Award lesser of Assisted Unit Project Cost and Baseline | AG4: Funding Gap on Assisted Units | AH4: Per Unit Funding Gap | AI4: Per Unit Local Match (Lesser of Per Unit Funding Gap and $100,000) | AJ4: Additional Per Unit Award (Equal to Local Match) | AK4: =IF($C$21>$AB$21,"Maximum Match (Doors at Acquisition x Per Unit Amount)","Maximum Match (Proposed Assisted Units x Per Unit Amount)") -> Maximum Match (Proposed Assisted Units x Per Unit Amount) | AL4: Maximum Additional Award (Equal to Maximum Local Match) | AM4: Maximum Capital Award | AN4: Total Restricted Units | AO4: Total Unrestricted Units | AP4: Total Net Monthly Restricted Rent | AQ4: Total Net Monthly Proposed Rent | AR4: Total Monthly Unrestricted Rent | AS4: ="Mo. Subsidy Revenue "&M3 -> Mo. Subsidy Revenue Rental Subsidy Program #1 Name | AT4: ="Mo. Subsidy Revenue "&O3 -> Mo. Subsidy Revenue Rental Subsidy Program #2 Name | AU4: ="Mo. Subsidy Revenue "&O3 -> Mo. Subsidy Revenue Rental Subsidy Program #2 Name | AV4: ="Mo. Subsidy Revenue "&Q3 -> Mo. Subsidy Revenue Rental Subsidy Program #3 Name | AW4: Look up field | AX4: Total Unit Square Feet | AY4: % of Total Unit Square Feet
C5: =B5*IF(A5="",0,IF(OR(A5=0,A5=1),150000,IF(A5=2,175000,IF(A5>=3,200000,0)))) -> 0 | I5: =IF(OR(Overview!$S$34="Interim Housing",Overview!$S$34="Interim Housing & Permanent Housing (Hybrid)"),0,IFERROR(INDEX('Rent Limits'!$A$1:$O$1045,MATCH(AW5,'Rent Limits'!$A$1:$A$1045,0),MATCH(D5,'Rent Limits'!$A$1:$O$1,0)),0)) -> 0 | Y5: =IF(AND(G5<=0.8,G5<>"None",G5<>""),SUM(U5:X5),0) -> 0 | Z5: =IF(OR(G5>0.8,G5="None",G5="",D5>=3),0,(V5*200000)+(X5*175000)) -> 0 | AA5: =IF(OR(G5>0.8,G5="None",G5=""),0,IF(D5>=3,200000*Y5,(Y5-V5-X5)*IF(D5="",0,IF(OR(D5=0,D5=1),150000,IF(D5=2,175000)))))+IF(D5>=3,200000*H5,IF(D5="",0,IF(OR(D5=0,D5=1),150000*H5,IF(D5=2,175000*H5)))) -> 0 | AB5: =Z5+AA5 -> 0 | AC5: =IFERROR(E5*($AL$22/(SUM($E$5:$E$20))),0) -> 0 | AD5: =AC5-AE5 -> 0 | AE5: =IFERROR((Y5+H5)/E5*AC5,0) -> 0 | AF5: =IF($C$21>$AB$21,MIN(C5,AE5),MIN(AB5,AE5)) -> 0 | AG5: =AE5-AF5 -> 0 | AH5: =IFERROR(IF($C$21>$AB$21,AG5/B5,AG5/(H5+Y5)),0) -> 0 | AI5: =MIN(AH5/2,100000) -> 0 | AJ5: =AI5 -> 0 | AK5: =IF($C$21>$AB$21,AI5*B5,AI5*(H5+Y5)) -> 0 | AL5: =AK5 -> 0 | AM5: =AF5+AL5 -> 0 | AN5: =IF(OR(G5="",G5="none"),0,E5) -> 0 | AO5: =IF(OR(G5="",G5="none"),E5,0) -> 0 | AP5: =(I5-L5)*AN5 -> 0 | AQ5: =(J5-L5)*AN5 -> 0 | AR5: =K5*AO5 -> 0 | AS5: =N5*M5 -> 0 | AT5: =P5*O5 -> 0 | AU5: =Q5*R5 -> 0 | AV5: =S5*T5 -> 0 | AW5: =CONCATENATE($D$3,G5) ->  | AX5: =E5*F5 -> 0 | AY5: =IFERROR(AX5/$AX$21,0) -> 0
C6: =B6*IF(A6="",0,IF(OR(A6=0,A6=1),150000,IF(A6=2,175000,IF(A6>=3,200000,0)))) -> 0 | I6: =IF(OR(Overview!$S$34="Interim Housing",Overview!$S$34="Interim Housing & Permanent Housing (Hybrid)"),0,IFERROR(INDEX('Rent Limits'!$A$1:$O$1045,MATCH(AW6,'Rent Limits'!$A$1:$A$1045,0),MATCH(D6,'Rent Limits'!$A$1:$O$1,0)),0)) -> 0 | Y6: 0 | Z6: 0 | AA6: 0 | AB6: =Z6+AA6 -> 0 | AC6: 0 | AD6: =AC6-AE6 -> 0 | AE6: 0 | AF6: 0 | AG6: =AE6-AF6 -> 0 | AH6: 0 | AI6: =MIN(AH6/2,100000) -> 0 | AJ6: =AI6 -> 0 | AK6: 0 | AL6: =AK6 -> 0 | AM6: =AF6+AL6 -> 0 | AN6: 0 | AO6: 0 | AP6: 0 | AQ6: 0 | AR6: 0 | AS6: 0 | AT6: 0 | AU6: =Q6*R6 -> 0 | AV6: =R6*Q6 -> 0 | AX6: 0 | AY6: 0
C7: 0 | I7: =IF(OR(Overview!$S$34="Interim Housing",Overview!$S$34="Interim Housing & Permanent Housing (Hybrid)"),0,IFERROR(INDEX('Rent Limits'!$A$1:$O$1045,MATCH(AW7,'Rent Limits'!$A$1:$A$1045,0),MATCH(D7,'Rent Limits'!$A$1:$O$1,0)),0)) -> 0 | Y7: 0 | Z7: 0 | AA7: 0 | AB7: 0 | AC7: 0 | AD7: 0 | AE7: 0 | AF7: 0 | AG7: 0 | AH7: 0 | AI7: 0 | AJ7: 0 | AK7: 0 | AL7: 0 | AM7: 0 | AN7: 0 | AO7: 0 | AP7: 0 | AQ7: 0 | AR7: 0 | AS7: 0 | AT7: 0 | AU7: 0 | AV7: 0 | AX7: 0 | AY7: 0
C8: 0 | I8: =IF(OR(Overview!$S$34="Interim Housing",Overview!$S$34="Interim Housing & Permanent Housing (Hybrid)"),0,IFERROR(INDEX('Rent Limits'!$A$1:$O$1045,MATCH(AW8,'Rent Limits'!$A$1:$A$1045,0),MATCH(D8,'Rent Limits'!$A$1:$O$1,0)),0)) -> 0 | Y8: 0 | Z8: 0 | AA8: 0 | AB8: =Z8+AA8 -> 0 | AC8: 0 | AD8: 0 | AE8: 0 | AF8: 0 | AG8: 0 | AH8: 0 | AI8: 0 | AJ8: 0 | AK8: 0 | AL8: 0 | AM8: 0 | AN8: 0 | AO8: 0 | AP8: 0 | AQ8: 0 | AR8: 0 | AS8: 0 | AT8: 0 | AU8: 0 | AV8: 0 | AX8: 0 | AY8: 0
C9: 0 | I9: =IF(OR(Overview!$S$34="Interim Housing",Overview!$S$34="Interim Housing & Permanent Housing (Hybrid)"),0,IFERROR(INDEX('Rent Limits'!$A$1:$O$1045,MATCH(AW9,'Rent Limits'!$A$1:$A$1045,0),MATCH(D9,'Rent Limits'!$A$1:$O$1,0)),0)) -> 0 | Y9: 0 | Z9: 0 | AA9: 0 | AB9: 0 | AC9: 0 | AD9: =AC9-AE9 -> 0 | AE9: 0 | AF9: 0 | AG9: 0 | AH9: 0 | AI9: 0 | AJ9: 0 | AK9: 0 | AL9: 0 | AM9: 0 | AN9: 0 | AO9: 0 | AP9: 0 | AQ9: 0 | AR9: 0 | AS9: 0 | AT9: 0 | AU9: 0 | AV9: 0 | AX9: 0 | AY9: 0
C10: 0 | I10: =IF(OR(Overview!$S$34="Interim Housing",Overview!$S$34="Interim Housing & Permanent Housing (Hybrid)"),0,IFERROR(INDEX('Rent Limits'!$A$1:$O$1045,MATCH(AW10,'Rent Limits'!$A$1:$A$1045,0),MATCH(D10,'Rent Limits'!$A$1:$O$1,0)),0)) -> 0 | Y10: 0 | Z10: 0 | AA10: 0 | AB10: 0 | AC10: 0 | AD10: 0 | AE10: 0 | AF10: 0 | AG10: 0 | AH10: 0 | AI10: 0 | AJ10: 0 | AK10: 0 | AL10: 0 | AM10: 0 | AN10: 0 | AO10: 0 | AP10: 0 | AQ10: 0 | AR10: 0 | AS10: 0 | AT10: 0 | AU10: 0 | AV10: 0 | AX10: 0 | AY10: 0
C11: 0 | I11: =IF(OR(Overview!$S$34="Interim Housing",Overview!$S$34="Interim Housing & Permanent Housing (Hybrid)"),0,IFERROR(INDEX('Rent Limits'!$A$1:$O$1045,MATCH(AW11,'Rent Limits'!$A$1:$A$1045,0),MATCH(D11,'Rent Limits'!$A$1:$O$1,0)),0)) -> 0 | Y11: 0 | Z11: 0 | AA11: 0 | AB11: 0 | AC11: 0 | AD11: 0 | AE11: 0 | AF11: 0 | AG11: 0 | AH11: 0 | AI11: 0 | AJ11: 0 | AK11: 0 | AL11: 0 | AM11: 0 | AN11: 0 | AO11: 0 | AP11: 0 | AQ11: 0 | AR11: 0 | AS11: 0 | AT11: 0 | AU11: 0 | AV11: 0 | AX11: 0 | AY11: 0
C12: 0 | I12: =IF(OR(Overview!$S$34="Interim Housing",Overview!$S$34="Interim Housing & Permanent Housing (Hybrid)"),0,IFERROR(INDEX('Rent Limits'!$A$1:$O$1045,MATCH(AW12,'Rent Limits'!$A$1:$A$1045,0),MATCH(D12,'Rent Limits'!$A$1:$O$1,0)),0)) -> 0 | Y12: 0 | Z12: 0 | AA12: 0 | AB12: 0 | AC12: 0 | AD12: 0 | AE12: 0 | AF12: 0 | AG12: 0 | AH12: 0 | AI12: 0 | AJ12: 0 | AK12: 0 | AL12: 0 | AM12: 0 | AN12: 0 | AO12: 0 | AP12: 0 | AQ12: 0 | AR12: 0 | AS12: 0 | AT12: 0 | AU12: 0 | AV12: 0 | AX12: 0 | AY12: 0
C13: 0 | I13: =IF(OR(Overview!$S$34="Interim Housing",Overview!$S$34="Interim Housing & Permanent Housing (Hybrid)"),0,IFERROR(INDEX('Rent Limits'!$A$1:$O$1045,MATCH(AW13,'Rent Limits'!$A$1:$A$1045,0),MATCH(D13,'Rent Limits'!$A$1:$O$1,0)),0)) -> 0 | Y13: 0 | Z13: 0 | AA13: 0 | AB13: 0 | AC13: 0 | AD13: 0 | AE13: 0 | AF13: 0 | AG13: 0 | AH13: 0 | AI13: 0 | AJ13: 0 | AK13: 0 | AL13: 0 | AM13: 0 | AN13: 0 | AO13: 0 | AP13: 0 | AQ13: 0 | AR13: 0 | AS13: 0 | AT13: 0 | AU13: 0 | AV13: 0 | AX13: 0 | AY13: 0
C14: 0 | I14: =IF(OR(Overview!$S$34="Interim Housing",Overview!$S$34="Interim Housing & Permanent Housing (Hybrid)"),0,IFERROR(INDEX('Rent Limits'!$A$1:$O$1045,MATCH(AW14,'Rent Limits'!$A$1:$A$1045,0),MATCH(D14,'Rent Limits'!$A$1:$O$1,0)),0)) -> 0 | Y14: 0 | Z14: 0 | AA14: 0 | AB14: 0 | AC14: 0 | AD14: 0 | AE14: 0 | AF14: 0 | AG14: 0 | AH14: 0 | AI14: 0 | AJ14: 0 | AK14: 0 | AL14: 0 | AM14: 0 | AN14: 0 | AO14: 0 | AP14: 0 | AQ14: 0 | AR14: 0 | AS14: 0 | AT14: 0 | AU14: 0 | AV14: 0 | AX14: 0 | AY14: 0
C15: 0 | I15: =IF(OR(Overview!$S$34="Interim Housing",Overview!$S$34="Interim Housing & Permanent Housing (Hybrid)"),0,IFERROR(INDEX('Rent Limits'!$A$1:$O$1045,MATCH(AW15,'Rent Limits'!$A$1:$A$1045,0),MATCH(D15,'Rent Limits'!$A$1:$O$1,0)),0)) -> 0 | Y15: 0 | Z15: 0 | AA15: 0 | AB15: 0 | AC15: 0 | AD15: 0 | AE15: 0 | AF15: 0 | AG15: 0 | AH15: 0 | AI15: 0 | AJ15: 0 | AK15: 0 | AL15: 0 | AM15: 0 | AN15: 0 | AO15: 0 | AP15: 0 | AQ15: 0 | AR15: 0 | AS15: 0 | AT15: 0 | AU15: 0 | AV15: 0 | AX15: 0 | AY15: 0
C16: 0 | I16: =IF(OR(Overview!$S$34="Interim Housing",Overview!$S$34="Interim Housing & Permanent Housing (Hybrid)"),0,IFERROR(INDEX('Rent Limits'!$A$1:$O$1045,MATCH(AW16,'Rent Limits'!$A$1:$A$1045,0),MATCH(D16,'Rent Limits'!$A$1:$O$1,0)),0)) -> 0 | Y16: 0 | Z16: 0 | AA16: 0 | AB16: 0 | AC16: 0 | AD16: 0 | AE16: 0 | AF16: 0 | AG16: 0 | AH16: 0 | AI16: 0 | AJ16: 0 | AK16: 0 | AL16: 0 | AM16: 0 | AN16: 0 | AO16: 0 | AP16: 0 | AQ16: 0 | AR16: 0 | AS16: 0 | AT16: 0 | AU16: 0 | AV16: 0 | AX16: 0 | AY16: 0
C17: 0 | I17: =IF(OR(Overview!$S$34="Interim Housing",Overview!$S$34="Interim Housing & Permanent Housing (Hybrid)"),0,IFERROR(INDEX('Rent Limits'!$A$1:$O$1045,MATCH(AW17,'Rent Limits'!$A$1:$A$1045,0),MATCH(D17,'Rent Limits'!$A$1:$O$1,0)),0)) -> 0 | Y17: 0 | Z17: 0 | AA17: 0 | AB17: 0 | AC17: 0 | AD17: 0 | AE17: 0 | AF17: 0 | AG17: 0 | AH17: 0 | AI17: 0 | AJ17: 0 | AK17: 0 | AL17: 0 | AM17: 0 | AN17: 0 | AO17: 0 | AP17: 0 | AQ17: 0 | AR17: 0 | AS17: 0 | AT17: 0 | AU17: 0 | AV17: 0 | AX17: 0 | AY17: 0
C18: 0 | I18: =IF(OR(Overview!$S$34="Interim Housing",Overview!$S$34="Interim Housing & Permanent Housing (Hybrid)"),0,IFERROR(INDEX('Rent Limits'!$A$1:$O$1045,MATCH(AW18,'Rent Limits'!$A$1:$A$1045,0),MATCH(D18,'Rent Limits'!$A$1:$O$1,0)),0)) -> 0 | Y18: 0 | Z18: 0 | AA18: 0 | AB18: 0 | AC18: 0 | AD18: 0 | AE18: 0 | AF18: 0 | AG18: 0 | AH18: 0 | AI18: 0 | AJ18: 0 | AK18: 0 | AL18: 0 | AM18: 0 | AN18: 0 | AO18: 0 | AP18: 0 | AQ18: 0 | AR18: 0 | AS18: 0 | AT18: 0 | AU18: 0 | AV18: 0 | AX18: 0 | AY18: 0
C19: 0 | I19: =IF(OR(Overview!$S$34="Interim Housing",Overview!$S$34="Interim Housing & Permanent Housing (Hybrid)"),0,IFERROR(INDEX('Rent Limits'!$A$1:$O$1045,MATCH(AW19,'Rent Limits'!$A$1:$A$1045,0),MATCH(D19,'Rent Limits'!$A$1:$O$1,0)),0)) -> 0 | Y19: 0 | Z19: 0 | AA19: 0 | AB19: 0 | AC19: 0 | AD19: 0 | AE19: 0 | AF19: 0 | AG19: 0 | AH19: 0 | AI19: 0 | AJ19: 0 | AK19: 0 | AL19: 0 | AM19: 0 | AN19: 0 | AO19: 0 | AP19: 0 | AQ19: 0 | AR19: 0 | AS19: 0 | AT19: 0 | AU19: 0 | AV19: 0 | AX19: 0 | AY19: 0
C20: 0 | I20: =IF(OR(Overview!$S$34="Interim Housing",Overview!$S$34="Interim Housing & Permanent Housing (Hybrid)"),0,IFERROR(INDEX('Rent Limits'!$A$1:$O$1045,MATCH(AW20,'Rent Limits'!$A$1:$A$1045,0),MATCH(D20,'Rent Limits'!$A$1:$O$1,0)),0)) -> 0 | Y20: 0 | Z20: 0 | AA20: 0 | AB20: 0 | AC20: 0 | AD20: 0 | AE20: 0 | AF20: 0 | AG20: 0 | AH20: 0 | AI20: 0 | AJ20: 0 | AK20: 0 | AL20: 0 | AM20: 0 | AN20: 0 | AO20: 0 | AP20: 0 | AQ20: 0 | AR20: 0 | AS20: 0 | AT20: 0 | AU20: =Q20*R20 -> 0 | AV20: 0 | AX20: 0 | AY20: 0
A21: Total | B21: =SUM(B5:B20) -> 0 | C21: =SUM(C5:C20) -> 0 | E21: =SUM(E5:E20) -> 0 | H21: =SUM(H5:H20) -> 0 | M21: =SUM(M5:M20) -> 0 | O21: =SUM(O5:O20) -> 0 | Q21: =SUM(Q5:Q20) -> 0 | S21: =SUM(S5:S20) -> 0 | U21: =SUM(U5:U20) -> 0 | V21: =SUM(V5:V20) -> 0 | W21: 0 | X21: 0 | Y21: =SUM(Y5:Y20) -> 0 | Z21: 0 | AA21: 0 | AB21: 0 | AC21: 0 | AD21: 0 | AE21: 0 | AF21: 0 | AG21: 0 | AK21: =SUM(AK5:AK20) -> 0 | AL21: =ROUNDDOWN(SUM(AL5:AL20),0) -> 0 | AM21: 0 | AN21: 0 | AO21: 0 | AP21: 0 | AQ21: 0 | AR21: 0 | AS21: 0 | AT21: 0 | AU21: =SUM(AU5:AU20) -> 0 | AV21: =SUM(AV5:AV20) -> 0 | AX21: =SUM(AX5:AX20) -> 0 | AY21: =SUM(AY5:AY20) -> 0
E22: Annual Net Rents | I22: =12*AP21 -> 0 | J22: =12*AQ21 -> 0 | K22: =12*AR21 -> 0 | L22: Annual Subsidy Revenue | N22: =AS21*12 -> 0 | P22: =AT21*12 -> 0 | R22: =AU21*12 -> 0 | T22: =AV21*12 -> 0 | U22: =IFERROR(U21/$Y$21,0) -> 0 | V22: =IFERROR(V21/$Y$21,0) -> 0 | W22: =IFERROR(W21/$Y$21,0) -> 0 | X22: =IFERROR(X21/$Y$21,0) -> 0 | Y22: =IFERROR(Y21/$Y$21,0) -> 0 | Z22: Total Budgeted Development costs from 'Dev Budget' worksheet cell M125 | AL22: ='Dev Budget'!$M$125 -> 0
A24: File Name: | C24: Utility Allowance | H24: 1Local housing authority document showing current utility allowance chart, with relevant components circled. | P24: Uploaded to HCD?
E27: Proposed Project Units by Bedroom Size | J27: Assisted Units by Bedroom Size
E28: Total 0 bedroom units | G28: =SUMIF($D$5:$D$20,0,$E$5:$E$20) -> 0 | H28: =IFERROR(G28/$G$34,0) -> 0 | J28: Total 0 bedroom units | L28: =SUMIF($D$5:$D$20,0,$Y$5:$Y$20) -> 0 | M28: =IFERROR(L28/$L$34,0) -> 0
E29: Total 1 bedroom units | G29: =SUMIF($D$5:$D$20,1,$E$5:$E$20) -> 0 | H29: 0 | J29: Total 1 bedroom units | L29: =SUMIF($D$5:$D$20,1,$Y$5:$Y$20) -> 0 | M29: =IFERROR(L29/$L$34,0) -> 0
E30: Total 2 bedroom units | G30: =SUMIF($D$5:$D$20,2,$E$5:$E$20) -> 0 | H30: 0 | J30: Total 2 bedroom units | L30: =SUMIF($D$5:$D$20,2,$Y$5:$Y$20) -> 0 | M30: 0
E31: Total 3 bedroom units | G31: =SUMIF($D$5:$D$20,3,$E$5:$E$20) -> 0 | H31: 0 | J31: Total 3 bedroom units | L31: =SUMIF($D$5:$D$20,3,$Y$5:$Y$20) -> 0 | M31: 0
E32: Total 4 bedroom units | G32: =SUMIF($D$5:$D$20,4,$E$5:$E$20) -> 0 | H32: 0 | J32: Total 4 bedroom units | L32: =SUMIF($D$5:$D$20,4,$Y$5:$Y$20) -> 0 | M32: 0
E33: Total 5 Bedroom units | G33: =SUMIF($D$5:$D$20,5,$E$5:$E$20) -> 0 | H33: 0 | J33: Total 5 Bedroom units | L33: =SUMIF($D$5:$D$20,5,$Y$5:$Y$20) -> 0 | M33: 0
E34: Total proposed units | G34: =SUM(G28:G33) -> 0 | H34: 0 | J34: Total Assisted units | L34: =SUM(L28:L33) -> 0 | M34: =IFERROR(L34/$G$34,0) -> 0
A39: Applicant Comments

Sheet Dev Budget
A1: =Overview!AJ1 -> Rev 4/23/2023 | B1: Sources/Uses of Funds
A2: USES OF FUNDS | B2: Homekey Award | C2: ='Dev Sources'!$C$23 -> 0 | D2: ='Dev Sources'!$C$24 -> 0 | E2: ='Dev Sources'!$C$25 -> 0 | F2: ='Dev Sources'!$C$26 -> 0 | G2: ='Dev Sources'!$C$27 -> 0 | H2: ='Dev Sources'!$C$28 -> 0 | I2: ='Dev Sources'!$C$29 -> 0 | J2: ='Dev Sources'!$C$30 -> Private Mortgage Financing | K2: =IF('Dev Sources'!$C$31="","","Deferred Costs") -> Deferred Costs | L2: =IF('Dev Sources'!$D$32="","",'Dev Sources'!$D$32) ->  | M2: Total Sources/Costs
A4: Project Development Costs
A5: LAND COST/ACQUISITION
A6: Land Cost or Value | M6: =SUM(B6:L6) -> 0
A7: Demolition | M7: =SUM(B7:L7) -> 0
A8: Legal | M8: =SUM(B8:L8) -> 0
A9: Land Lease Rent Prepayment | M9: =SUM(B9:L9) -> 0
A10: Total Land Cost or Value | B10: =SUM(B6:B9) -> 0 | C10: 0 | D10: 0 | E10: 0 | F10: 0 | G10: 0 | H10: 0 | I10: 0 | J10: 0 | K10: 0 | L10: 0 | M10: =SUM(M6:M9) -> 0
A11: Existing Improvements Cost or Value | M11: =SUM(B11:L11) -> 0
A12: Off-Site Improvements | M12: =SUM(B12:L12) -> 0
A13: Total Acquisition Cost | B13: =SUM(B11:B12) -> 0 | C13: 0 | D13: 0 | E13: 0 | F13: 0 | G13: 0 | H13: 0 | I13: =SUM(I11:I12) -> 0 | J13: 0 | K13: =SUM(K11:K12) -> 0 | L13: 0 | M13: 0
A14: Total Land Cost / Acquisition Cost | B14: =SUM(B10+B13) -> 0 | C14: =SUM(C10+C13) -> 0 | D14: 0 | E14: 0 | F14: 0 | G14: 0 | H14: 0 | I14: =SUM(I10+I13) -> 0 | J14: 0 | K14: =SUM(K10+K13) -> 0 | L14: 0 | M14: 0
A15: Predevelopment Interest/Holding Cost | M15: =SUM(B15:L15) -> 0
A16: Assumed, Accrued Interest on Existing Debt (Rehab/Acq) | M16: =SUM(B16:L16) -> 0
A17: Excess Purchase Price Over Appraisal | M17: =SUM(B17:L17) -> 0
A18: REHABILITATION
A19: Site Work | M19: =SUM(B19:L19) -> 0
A20: Structures | M20: =SUM(B20:L20) -> 0
A21: General Requirements | M21: 0
A22: Contractor Overhead | M22: 0
A23: Contractor Profit | M23: 0
A24: Prevailing Wages | M24: 0
A25: General Liability Insurance | M25: =SUM(B25:L25) -> 0
A26: Urban Greening | M26: 0
A27: Other Rehabilitation: (Specify) | M27: 0
A28: Other Rehabilitation: (Specify) | M28: 0
A29: Other Rehabilitation: (Specify) | M29: 0
A30: Total Rehabilitation Costs | B30: =SUM(B19:B29) -> 0 | C30: =SUM(C19:C29) -> 0 | D30: 0 | E30: 0 | F30: 0 | G30: 0 | H30: 0 | I30: 0 | J30: 0 | K30: 0 | L30: 0 | M30: =SUM(M19:M29) -> 0
A31: Total Relocation Expenses | M31: =SUM(B31:L31) -> 0
A32: NEW CONSTRUCTION
A33: Site Work | M33: =SUM(B33:L33) -> 0
A34: Structures | M34: 0
A35: General Requirements | M35: 0
A36: Contractor Overhead | M36: 0
A37: Contractor Profit | M37: 0
A38: Prevailing Wages | M38: 0
A39: General Liability Insurance | M39: 0
A40: Urban Greening | M40: 0
A41: Other New Construction: (Specify) | M41: 0
A42: Other New Construction: (Specify) | M42: 0
A43: Other New Construction: (Specify) | M43: 0
A44: Other New Construction: (Specify) | M44: 0
A45: Other New Construction: (Specify) | M45: 0
A46: Other New Construction: (Specify) | M46: 0
A47: Total New Construction Costs | B47: =SUM(B33:B46) -> 0 | C47: =SUM(C33:C46) -> 0 | D47: =SUM(D33:D46) -> 0 | E47: 0 | F47: 0 | G47: 0 | H47: 0 | I47: 0 | J47: 0 | K47: 0 | L47: 0 | M47: 0
A48: ARCHITECTURAL FEES
A49: Design | M49: =SUM(B49:L49) -> 0
A50: Supervision | M50: =SUM(B50:L50) -> 0
A51: Total Architectural Costs | B51: =SUM(B48:B50) -> 0 | C51: =SUM(C48:C50) -> 0 | D51: =SUM(D48:D50) -> 0 | E51: 0 | F51: 0 | G51: 0 | H51: 0 | I51: 0 | J51: 0 | K51: 0 | L51: 0 | M51: 0
A52: Total Survey & Engineering | M52: =SUM(B52:L52) -> 0
A53: CONSTRUCTION INTEREST & FEES
A54: Construction Loan Interest | M54: =SUM(B54:L54) -> 0
A55: Origination Fee | M55: 0
A56: Credit Enhancement/Application Fee | M56: 0
A57: Bond Premium | M57: 0
A58: Cost of Issuance | M58: 0
A59: Title & Recording | M59: 0
A60: Taxes | M60: 0
A61: Insurance | M61: 0
A62: Employment Reporting | M62: 0
A63: Other Construction Int. & Fees: (Specify) | M63: 0
A64: Other Construction Int. & Fees: (Specify) | M64: 0
A65: Other Construction Int. & Fees: (Specify) | M65: 0
A66: Other Construction Int. & Fees: (Specify) | M66: 0
A67: Total Construction Interest & Fees | B67: =SUM(B54:B66) -> 0 | C67: =SUM(C54:C66) -> 0 | D67: =SUM(D54:D66) -> 0 | E67: 0 | F67: 0 | G67: 0 | H67: 0 | I67: 0 | J67: 0 | K67: 0 | L67: 0 | M67: 0
A68: PERMANENT FINANCING
A69: Loan Origination Fee | M69: =SUM(B69:L69) -> 0
A70: Credit Enhancement/Application Fee | M70: 0
A71: Title & Recording | M71: 0
A72: Taxes | M72: 0
A73: Insurance | M73: 0
A74: Other Perm. Financing Costs: (Specify) | M74: 0
A75: Other Perm. Financing Costs: (Specify) | M75: 0
A76: Other Perm. Financing Costs: (Specify) | M76: 0
A77: Other Perm. Financing Costs: (Specify) | M77: 0
A78: Total Permanent Financing Costs | B78: =SUM(B69:B77) -> 0 | C78: 0 | D78: 0 | E78: 0 | F78: 0 | G78: 0 | H78: 0 | I78: =SUM(I69:I77) -> 0 | J78: 0 | K78: =SUM(K69:K77) -> 0 | L78: 0 | M78: 0
A79: Subtotals Forward | B79: =SUM(B10+B13+B15+B16+B17+B30+B31+B47+B51+B52+B67+B78) -> 0 | C79: =SUM(C10+C13+C15+C16+C17+C30+C31+C47+C51+C52+C67+C78) -> 0 | D79: 0 | E79: 0 | F79: 0 | G79: 0 | H79: 0 | I79: =SUM(I10+I13+I15+I16+I17+I30+I31+I47+I51+I52+I67+I78) -> 0 | J79: 0 | K79: =SUM(K10+K13+K15+K16+K17+K30+K31+K47+K51+K52+K67+K78) -> 0 | L79: 0 | M79: 0
A80: LEGAL FEES
A81: Legal Paid by Applicant | M81: =SUM(B81:L81) -> 0
A82: Other Attorney Costs: (Specify) | M82: =SUM(B82:L82) -> 0
A83: Other Attorney Costs: (Specify) | M83: =SUM(B83:L83) -> 0
A84: Other Attorney Costs: (Specify) | M84: =SUM(B84:L84) -> 0
A85: Total Attorney Costs | B85: =SUM(B80:B84) -> 0 | C85: =SUM(C80:C84) -> 0 | D85: =SUM(D80:D84) -> 0 | E85: 0 | F85: 0 | G85: 0 | H85: 0 | I85: 0 | J85: 0 | K85: 0 | L85: 0 | M85: 0
A86: RESERVES
A87: Operating Reserve | M87: =SUM(B87:L87) -> 0
A88: Replacement Reserve | M88: 0
A89: Rent Reserve | M89: 0
A90: Other Reserve Costs: (Specify) | M90: 0
A91: Other Reserve Costs: (Specify) | M91: 0
A92: Other Reserve Costs: (Specify) | M92: 0
A93: Total Reserve Costs | B93: =SUM(B87:B92) -> 0 | C93: 0 | D93: 0 | E93: 0 | F93: 0 | G93: 0 | H93: 0 | I93: 0 | J93: 0 | K93: 0 | L93: =SUM(L87:L92) -> 0 | M93: =SUM(M87:M92) -> 0
A94: CONTINGENCY COSTS
A95: Construction Hard Cost Contingency | M95: =SUM(B95:L95) -> 0
A96: Soft Cost Contingency | M96: =SUM(B96:L96) -> 0
A97: Total Contingency Costs | B97: =SUM(B95:B96) -> 0 | C97: 0 | D97: 0 | E97: 0 | F97: 0 | G97: 0 | H97: 0 | I97: 0 | J97: 0 | K97: 0 | L97: 0 | M97: 0
A98: OTHER PROJECT COSTS
A99: TCAC App/Allocation/Monitoring Fees | M99: =SUM(B99:L99) -> 0
A100: Environmental Audit | M100: 0
A101: Local Development Impact Fees | M101: 0
A102: Permit Processing Fees | M102: 0
A103: Capital Fees | M103: 0
A104: Marketing | M104: 0
A105: Furnishings | M105: 0
A106: Market Study | M106: 0
A107: Accounting/Reimbursable | M107: 0
A108: Appraisal Costs | M108: 0
A109: Other Costs: (Specify) | M109: 0
A110: Other Costs: (Specify) | M110: 0
A111: Other Costs: (Specify) | M111: 0
A112: Other Costs: (Specify) | M112: 0
A113: Other Costs: (Specify) | M113: 0
A114: Other Costs: (Specify) | M114: 0
A115: Total Other Costs | B115: =SUM(B99:B114) -> 0 | C115: =SUM(C99:C114) -> 0 | D115: =SUM(D99:D114) -> 0 | E115: 0 | F115: 0 | G115: 0 | H115: 0 | I115: =SUM(I99:I114) -> 0 | J115: 0 | K115: =SUM(K99:K114) -> 0 | L115: 0 | M115: 0
A116: SUBTOTAL PROJECT COST | B116: =SUM(B79+B85+B93+B97+B115) -> 0 | C116: 0 | D116: 0 | E116: 0 | F116: 0 | G116: 0 | H116: 0 | I116: =SUM(I79+I85+I93+I97+I115) -> 0 | J116: 0 | K116: =SUM(K79+K85+K93+K97+K115) -> 0 | L116: =SUM(L79+L85+L93+L97+L115) -> 0 | M116: =SUM(M79+M85+M93+M97+M115) -> 0
A117: DEVELOPER COSTS
A118: Developer Overhead/Profit | M118: =SUM(B118:L118) -> 0
A119: Consultant/Processing Agent | M119: 0
A120: Project Administration | M120: 0
A121: Broker Fees Paid to a Related Party | M121: 0
A122: Construction Oversight by Developer | M122: 0
A123: Other Developer Costs: (Specify) | M123: =SUM(B123:L123) -> 0
A124: Total Developer Costs | B124: =SUM(B118:B123) -> 0 | C124: 0 | D124: 0 | E124: 0 | F124: 0 | G124: 0 | H124: 0 | I124: =SUM(I118:I123) -> 0 | J124: 0 | K124: =SUM(K118:K123) -> 0 | L124: 0 | M124: =SUM(M118:M123) -> 0
A125: Total Project Costs | B125: =ROUNDDOWN(SUM($B$116+$B$124),0) -> 0 | C125: =ROUNDDOWN(SUM($C$116+$C$124),0) -> 0 | D125: =ROUNDDOWN(SUM($D$116+$D$124),0) -> 0 | E125: =ROUNDDOWN(SUM($E$116+$E$124),0) -> 0 | F125: =ROUNDDOWN(SUM($F$116+$F$124),0) -> 0 | G125: =ROUNDDOWN(SUM($G$116+$G$124),0) -> 0 | H125: =ROUNDDOWN(SUM($H$116+$H$124),0) -> 0 | I125: =ROUNDDOWN(SUM($I$116+$I$124),0) -> 0 | J125: =ROUNDDOWN(SUM($J$116+$J$124),0) -> 0 | K125: =ROUNDDOWN(SUM($K$116+$K$124),0) -> 0 | L125: =ROUNDDOWN(SUM(L$116+L$124),0) -> 0 | M125: =SUM(M116+M124) -> 0
A127: Applicant Comments

Sheet Dev Sources
A1: Development Sources
A2: Construction Period Sources of Funds
A3: Funding Committed by Application Due Date? | C3: Source Name (listed in order of lien priority) | F3: Source Type | G3: Lien No. | H3: Funding Amount | I3: Interest Rate | J3: Required Payment | K3: Loan Term (months) | L3: *Detail of Deferred Costs
L4: Amount | M4: Description
A5: Construction | B5: Committed? | C5: Homekey Capital Award+Homekey Contribution+50% Relocation Costs from 'Dev Budget' worksheet cell B125 | E5: ='Dev Budget'!$B$125 -> 0 | F5: State-HCD | H5: =E5 -> 0
A6: =IF(B6>"0","Construction","") -> 
C13: Cost deferred to Permanent Conversion
C14: *Deferred Costs (detail at right) | H14: =L16 -> 0
C15: Equity Investor
A16: Total funds committed > | C16: =SUMPRODUCT(($B$6:$B$15="Yes")*($H$6:$H$15)) -> 0 | D16: Total Construction Sources | H16: =SUM($H$5:$H$15) -> 0 | K16: =SUM(K5:K15) -> 0 | L16: =SUM(L5:L15) -> 0
A17: % funds committed > | C17: =IF($H$16=0,0,$C$16/($H$16-$H$14)) -> 0 | D17: Total Development Costs from Dev Budget | H17: ='Dev Budget'!$M$125 -> 0
A19: Permanent Sources of Funds
A20: Funding Committed by Application Due Date? | C20: Source Name (listed in order of lien priority) | F20: Source Type | G20: Lien No. | H20: Funding Amount | I20: Interest Rate | K20: Repayment Terms | M20: Required Debt Service Amount
I21: Type | J21: Rate | K21: Type | L21: Due in (yrs)
A22: Permanent | B22: Committed? | C22: Homekey Capital Award+Homekey Contribution+50% Relocation Costs from 'Dev Budget' worksheet cell B125 | E22: ='Dev Budget'!$B$125 -> 0 | F22: State-HCD | H22: =E22 -> 0
A23: =IF(B23>"0","Permanent","") -> 
C30: Private Mortgage Financing
C31: Deferred Costs
C32: Equity Investor
A33: Total funds committed > | C33: =SUMPRODUCT(($B$23:$B$32="Yes")*($H$23:$H$32)) -> 0 | D33: Total Permanent Sources | H33: =SUM($H$22:$H$32) -> 0 | M33: =SUM(M22:M32) -> 0
A34: % funds committed > | C34: =IF($H$33=0,0,$C$33/$H$33) -> 0 | D34: Total Development Costs from Dev Budget | H34: ='Dev Budget'!$M$125 -> 0
A35: File Name: | C35: EFC1, EFC2, EFCI3, etc. | E35: Documentation for the executed funding commitments (see below) | K35: Uploaded to HCD?
A36: "Article VII(xiv) "Enforceable Funding Commitment” means a letter or other document, in form and substance satisfactory to the Department, which evidences an enforceable commitment of funds or a reservation of funds by a Project funding source, and which contains the following: a. The name of the Applicant; b. The Project name; c. The Project site address, assessor’s parcel number, or legal description; and d. The amount, interest rate (if any), and terms of the funding source. The Enforceable Funding Commitment may be conditioned on certain standard underwriting criteria, such as appraisals, but may not be generally conditional. Examples of unacceptable general conditions include phrases such as “subject to senior management approval,” or a statement that omits the word “commitment,” but instead indicates the lender’s “willingness to process an application” or indicates that financing is subject to loan committee approval of the Project. Contingencies in commitment documents based upon the receipt of tax-exempt bonds or low-income housing tax credits will not disqualify a source from being counted as committed. Note: Where local sources may be dependent upon future budget allocations or are in the process of being allocated, Applicants can demonstrate funding commitments by submitting one of the following: i. An executed authorizing resolution from the governing body of the Local Public Entity describing the intent to commit the funds to the Eligible Project (by name) upon allocation approval, or ii. A formal letter, on official letterhead, from the Local Public Entity’s governing body or from an official with authority, that demonstrates the Local Public Entity’s intent to commit funds to the Eligible Project (by name) upon allocation approval. These funding commitments will be noted in the Homekey Standard Agreement.
A37: Applicant comments: Include a description of balloon payments and unusual or extraordinary circumstances that have resulted in higher than expected Project costs and provide a justification as to why these costs are reasonable.

Sheet Award, Match, and Revenue
A1: §205 & §206 Maximum Program Award, Capital Funding Match, and Operating/Rental Subsidy Revenue
A2: Homekey Award including Capital (Baseline and Match), Operating Subsidy, and Relocation
A3: §205 Maximum Grant Amounts and Capital Match | S3: HCD Amount | T3: Requested Amount | U3: Actual Amount
A4: 1. Maximum Homekey Capital Award based on proposed population and proposed bedroom size | S4: ='Unit Mix'!$AB$21 -> 0 | T4: 0 | U4: =MIN($S$4,$T$4) -> 0
A5: 2. Maximum Homekey Contribution (1:1 match) Award | S5: =ROUNDDOWN('Unit Mix'!$AL$21,0) -> 0 | T5: 0 | U5: =MIN($S$5,$T$5) -> 0
A6: A. Total Maximum Homekey Capital Award (1 + 2) | S6: =SUM(S4:S5) -> 0 | T6: =SUM($T$4:$T$5) -> 0 | U6: =SUM($U$4:$U$5) -> 0
A7: B. Homekey Operating Subsidy (lesser of Need Analysis and Max Homekey Amount) | K7: if requested in 'Overview' worksheet cell S38 | R7: =IF(Overview!S38="","",Overview!$S$38) ->  | S7: =IF($R$7="No",0,MIN(MAX($S$22,$S$20,$S$47,$S$49,S51,S53,S24,S26),S39)) -> 0 | T7: 0 | U7: =MIN($S$7,$T$7) -> 0
A8: 50% of Relocation Costs | K8: if requested on 'Overview' worksheet cell S37 ('Dev Budget' worksheet cell L31) | R8: =IF(Overview!S37="","",Overview!$S$37) ->  | S8: =IF($R$8="No",0,'Dev Budget'!$M$31*0.5) -> 0 | T8: 0 | U8: =MIN($S$8,$T$8) -> 0
A9: C. Total Other Homekey Award | S9: =SUM($S$8:$S$8) -> 0 | T9: =SUM($T$8:$T$8) -> 0 | U9: =SUM($U$8:$U$8) -> 0
A10: Maximum Homekey Program Award (Capital plus Operating Subsidy plus Other) (A + B) | S10: =$S$6+$S$8+$S$7 -> 0 | T10: =$T$6+$T$8+$T$7 -> 0 | U10: =$U$6+$U$8+$U$7 -> 0
A11: Capital Award based on how many Assisted Units from Unit Mix cell Y21 | K11: ='Unit Mix'!Y21 -> 0 | L11: Total proposed Project units from Unit Mix cell E21 | R11: ='Unit Mix'!$E$21 -> 0
A12: File Name | C12: Funding Limit Exemption Form | G12: If total Department sources exceed $35 million, a request for exemption to the per Project funding limit is required. The Funding Limit Exemption Form can be found on the Homekey website. | P12: Uploaded to HCD?
A14: §206 Operating Subsidies and Match | S14: Monthly Amount
A15: i(a). Assisted Units reserved for those experiencing Chronic Homelessness, for Homeless Youth, or for Youth at Risk of Homelessness from Unit Mix cells V21 + X21 | K15: ='Unit Mix'!$V$21+'Unit Mix'!$X$21 -> 0 | L15: Monthly amount per unit | R15: 1400 | S15: =K15*R15 -> 0
A16: i(b). All other Assisted Units from Unit Mix cells U21+ W21 | K16: ='Unit Mix'!$U$21+'Unit Mix'!$W$21 -> 0 | L16: Monthly amount per unit | R16: 1000 | S16: =K16*R16 -> 0
A17: Total qualifying monthly amount per unit | S17: =$S$15+$S$16 -> 0
A18: Operating Subsidy: Maximum Homekey Amount | V18: OP #1 | W18: OP #2 | X18: OP #1 | Y18: OP #2
A19: ii. The total duration of the operating subsidy (as described in i. above) is tied to the amount of the Applicant’s matching funds, and is limited as follows: a. If Projects can demonstrate a commitment of three years of non-Homekey operating funds for Assisted Units, the Department will provide an operating subsidy sized for two years. b. If Projects can demonstrate a commitment of four or more years of non-Homekey operating funds for Assisted Units, the Department will provide an operating subsidy sized for three years. If applicable, from rows 19-35 below, please enter operating subsidy source, funds commitment status, operating subsidy term, operating subsidy amount (Y1 -Y15), and operating subsidy status. If your Project has rental subsidies, complete rows 46 - 62 below: | S19: Maximum Homekey Operating Amt. | V19: Applicant must have | W19: Applicant must have | X19: Applicant must have | Y19: Applicant must have
A20: ii. Operating Subsidy Source: | G20: Funds Committed | J20: Operating Subsidy term (in years) | P20: Qualifying Homekey subsidy years | R20: =IF($O$20>3,3,IF($O$20>2,2,0)) -> 0 | S20: =$R$20*12*$S$17 -> 0 | V20: =$O$20*12*$S$17 -> 0 | W20: =$O$22*12*$S$17 -> 0 | X20: =$O$24*12*$S$17 -> 0 | Y20: =$O$26*12*$S$17 -> 0
J21: Assisted Units receiving Operating Subsidy
A22: ii. Operating Subsidy Source: | G22: Funds Committed | J22: Operating Subsidy term (in years) | R22: =IF($O$22>3,3,IF($O$22>2,2,0)) -> 0 | S22: =$R$22*12*$S$17 -> 0 | W22: Y1 | X22: Y2 | Y22: Y3 | Z22: Y4 | AA22: Y5
J23: Assisted Units receiving Operating Subsidy | K23: Assisted Units receiving Operating Subsidy | V23: =SUM($W$23:$AA$23) -> 0 | W23: =IF(AND($D$29<>"",$M$33="Operating Subsidy Enforceable Funding Commitment (EFC)"),1,0) -> 0 | X23: =IF(AND($E$29<>"",$M$33="Operating Subsidy Enforceable Funding Commitment (EFC)"),1,0) -> 0 | Y23: =IF(AND($F$29<>"",$M$33="Operating Subsidy Enforceable Funding Commitment (EFC)"),1,0) -> 0 | Z23: =IF(AND($G$29<>"",$M$33="Operating Subsidy Enforceable Funding Commitment (EFC)"),1,0) -> 0 | AA23: =IF(AND($H$29<>"",$M$33="Operating Subsidy Enforceable Funding Commitment (EFC)"),1,0) -> 0
A24: ii. Operating Subsidy Source: | G24: Funds Committed | J24: Operating Subsidy term (in years) | R24: =IF($O$24>3,3,IF($O$24>2,2,0)) -> 0 | S24: =$R$24*12*$S$17 -> 0 | V24: =SUM($W$24:$AA$24) -> 0 | W24: =IF(AND(D30<>"",$M$34="Operating Subsidy Enforceable Funding Commitment (EFC)"),1,0) -> 0 | X24: =IF(AND(E30<>"",$M$34="Operating Subsidy Enforceable Funding Commitment (EFC)"),1,0) -> 0 | Y24: =IF(AND(F30<>"",$M$34="Operating Subsidy Enforceable Funding Commitment (EFC)"),1,0) -> 0 | Z24: =IF(AND(G30<>"",$M$34="Operating Subsidy Enforceable Funding Commitment (EFC)"),1,0) -> 0 | AA24: =IF(AND(H30<>"",$M$34="Operating Subsidy Enforceable Funding Commitment (EFC)"),1,0) -> 0
J25: Assisted Units receiving Operating Subsidy | V25: =SUM($W$25:$AA$25) -> 0 | W25: =IF(AND(D31<>"",$M$35="Operating Subsidy Enforceable Funding Commitment (EFC)"),1,0) -> 0 | X25: =IF(AND(E31<>"",$M$35="Operating Subsidy Enforceable Funding Commitment (EFC)"),1,0) -> 0 | Y25: =IF(AND(F31<>"",$M$35="Operating Subsidy Enforceable Funding Commitment (EFC)"),1,0) -> 0 | Z25: =IF(AND(G31<>"",$M$35="Operating Subsidy Enforceable Funding Commitment (EFC)"),1,0) -> 0 | AA25: =IF(AND(H31<>"",$M$35="Operating Subsidy Enforceable Funding Commitment (EFC)"),1,0) -> 0
A26: ii. Operating Subsidy Source: | G26: Funds Committed | J26: Operating Subsidy term (in years) | R26: =IF($O$26>3,3,IF($O$26>2,2,0)) -> 0 | S26: =$R$26*12*$S$17 -> 0 | V26: =SUM($W$26:$AA$26) -> 0 | W26: =IF(AND(D32<>"",$M$36="Operating Subsidy Enforceable Funding Commitment (EFC)"),1,0) -> 0 | X26: =IF(AND(E32<>"",$M$36="Operating Subsidy Enforceable Funding Commitment (EFC)"),1,0) -> 0 | Y26: =IF(AND(F32<>"",$M$36="Operating Subsidy Enforceable Funding Commitment (EFC)"),1,0) -> 0 | Z26: =IF(AND(G32<>"",$M$36="Operating Subsidy Enforceable Funding Commitment (EFC)"),1,0) -> 0 | AA26: =IF(AND(H32<>"",$M$36="Operating Subsidy Enforceable Funding Commitment (EFC)"),1,0) -> 0
J27: Assisted Units receiving Operating Subsidy | K27: Assisted Units receiving Operating Subsidy
A28: Operating subsidy source (rolls to 'Cash Flow' worksheet, rows 14-16) | D28: Year 1 | E28: Year 2 | F28: Year 3 | G28: Year 4 | H28: Year 5 | I28: Year 6 | J28: Year 7 | K28: Year 8 | L28: Year 9 | M28: Year 10 | N28: Year 11 | O28: Year 12 | P28: Year 13 | Q28: Year 14 | R28: Year 15 | S28: Total Applicant's Operating Subsidy
A29: =IF(Overview!$S$34="Interim Housing",'Unit Mix'!$M$3,'Award, Match, and Revenue'!$C$20) -> 0 | S29: =SUM($D$29:$R$29) -> 0 | V29: =SUM($W$29:$AF$29) -> 0 | W29: =IF(AND($I$29<>"",$M$33="Operating Subsidy Enforceable Funding Commitment (EFC)"),1,0) -> 0 | X29: =IF(AND($J$29<>"",$M$33="Operating Subsidy Enforceable Funding Commitment (EFC)"),1,0) -> 0 | Y29: =IF(AND($K$29<>"",$M$33="Operating Subsidy Enforceable Funding Commitment (EFC)"),1,0) -> 0 | Z29: =IF(AND($L$29<>"",$M$33="Operating Subsidy Enforceable Funding Commitment (EFC)"),1,0) -> 0 | AA29: =IF(AND($M$29<>"",$M$33="Operating Subsidy Enforceable Funding Commitment (EFC)"),1,0) -> 0 | AB29: =IF(AND($N$29<>"",$M$33="Operating Subsidy Enforceable Funding Commitment (EFC)"),1,0) -> 0 | AC29: =IF(AND($O$29<>"",$M$33="Operating Subsidy Enforceable Funding Commitment (EFC)"),1,0) -> 0 | AD29: =IF(AND($P$29<>"",$M$33="Operating Subsidy Enforceable Funding Commitment (EFC)"),1,0) -> 0 | AE29: =IF(AND($Q$29<>"",$M$33="Operating Subsidy Enforceable Funding Commitment (EFC)"),1,0) -> 0 | AF29: =IF(AND($R$29<>"",$M$33="Operating Subsidy Enforceable Funding Commitment (EFC)"),1,0) -> 0
A30: =IF(Overview!$S$34="Interim Housing",'Unit Mix'!$O$3,'Award, Match, and Revenue'!$C$22) -> 0 | S30: =SUM($D$30:$R$30) -> 0 | V30: =SUM($W$30:$AF$30) -> 0 | W30: =IF(AND($I$30<>"",$M$34="Operating Subsidy Enforceable Funding Commitment (EFC)"),1,0) -> 0 | X30: =IF(AND($J$30<>"",$M$34="Operating Subsidy Enforceable Funding Commitment (EFC)"),1,0) -> 0 | Y30: =IF(AND($K$30<>"",$M$34="Operating Subsidy Enforceable Funding Commitment (EFC)"),1,0) -> 0 | Z30: =IF(AND($L$30<>"",$M$34="Operating Subsidy Enforceable Funding Commitment (EFC)"),1,0) -> 0 | AA30: =IF(AND($M$30<>"",$M$34="Operating Subsidy Enforceable Funding Commitment (EFC)"),1,0) -> 0 | AB30: =IF(AND($N$30<>"",$M$34="Operating Subsidy Enforceable Funding Commitment (EFC)"),1,0) -> 0 | AC30: =IF(AND($O$30<>"",$M$34="Operating Subsidy Enforceable Funding Commitment (EFC)"),1,0) -> 0 | AD30: =IF(AND($P$30<>"",$M$34="Operating Subsidy Enforceable Funding Commitment (EFC)"),1,0) -> 0 | AE30: =IF(AND($Q$30<>"",$M$34="Operating Subsidy Enforceable Funding Commitment (EFC)"),1,0) -> 0 | AF30: =IF(AND($R$30<>"",$M$34="Operating Subsidy Enforceable Funding Commitment (EFC)"),1,0) -> 0
A31: =IF(Overview!$S$34="Interim Housing",'Unit Mix'!$Q$3,'Award, Match, and Revenue'!$C$24) -> 0 | S31: =SUM($D$31:$R$31) -> 0 | V31: =SUM($W$31:$AF$31) -> 0 | W31: =IF(AND($I$31<>"",$M$35="Operating Subsidy Enforceable Funding Commitment (EFC)"),1,0) -> 0 | X31: =IF(AND($J$31<>"",$M$35="Operating Subsidy Enforceable Funding Commitment (EFC)"),1,0) -> 0 | Y31: =IF(AND($K$31<>"",$M$35="Operating Subsidy Enforceable Funding Commitment (EFC)"),1,0) -> 0 | Z31: =IF(AND($L$31<>"",$M$35="Operating Subsidy Enforceable Funding Commitment (EFC)"),1,0) -> 0 | AA31: =IF(AND($M$31<>"",$M$35="Operating Subsidy Enforceable Funding Commitment (EFC)"),1,0) -> 0 | AB31: =IF(AND($N$31<>"",$M$35="Operating Subsidy Enforceable Funding Commitment (EFC)"),1,0) -> 0 | AC31: =IF(AND($O$31<>"",$M$35="Operating Subsidy Enforceable Funding Commitment (EFC)"),1,0) -> 0 | AD31: =IF(AND($P$31<>"",$M$35="Operating Subsidy Enforceable Funding Commitment (EFC)"),1,0) -> 0 | AE31: =IF(AND($Q$31<>"",$M$35="Operating Subsidy Enforceable Funding Commitment (EFC)"),1,0) -> 0 | AF31: =IF(AND($R$31<>"",$M$35="Operating Subsidy Enforceable Funding Commitment (EFC)"),1,0) -> 0
A32: =IF(Overview!$S$34="Interim Housing",'Unit Mix'!$S$3,'Award, Match, and Revenue'!$C$26) -> 0 | S32: =SUM($D$32:$R$32) -> 0 | V32: =SUM($W$32:$AF$32) -> 0 | W32: =IF(AND(I32<>"",$M$36="Operating Subsidy Enforceable Funding Commitment (EFC)"),1,0) -> 0 | X32: =IF(AND(J32<>"",$M$36="Operating Subsidy Enforceable Funding Commitment (EFC)"),1,0) -> 0 | Y32: =IF(AND(K32<>"",$M$36="Operating Subsidy Enforceable Funding Commitment (EFC)"),1,0) -> 0 | Z32: =IF(AND(L32<>"",$M$36="Operating Subsidy Enforceable Funding Commitment (EFC)"),1,0) -> 0 | AA32: 0 | AB32: 0 | AC32: 0 | AD32: 0 | AE32: =IF(AND(Q32<>"",$M$36="Operating Subsidy Enforceable Funding Commitment (EFC)"),1,0) -> 0 | AF32: =IF(AND(R32<>"",$M$36="Operating Subsidy Enforceable Funding Commitment (EFC)"),1,0) -> 0
A33: File Name: | C33: =IF($C$20="","",$C$20) ->  | G33: Provide commitment of this non-HK operating subsidy that will be used to maintain the ongoing affordability of the Project. | P33: Uploaded to HCD? | V33: =IF(M33="Operating Subsidy Enforceable Funding Commitment (EFC)",1,2) -> 2
A34: File Name: | C34: =IF($C$22="","",$C$22) ->  | G34: Provide commitment of this non-HK operating subsidy that will be used to maintain the ongoing affordability of the Project. | P34: Uploaded to HCD? | V34: =IF(M34="Operating Subsidy Enforceable Funding Commitment (EFC)",1,2) -> 2
A35: File Name: | C35: =IF($C$24="","",$C$24) ->  | G35: Provide commitment of this non-HK operating subsidy that will be used to maintain the ongoing affordability of the Project. | P35: Uploaded to HCD? | V35: =IF(M35="Operating Subsidy Enforceable Funding Commitment (EFC)",1,2) -> 2
A36: File Name: | C36: =IF($C$26="","",$C$26) ->  | G36: Provide commitment of this non-HK operating subsidy that will be used to maintain the ongoing affordability of the Project. | P36: Uploaded to HCD? | V36: =IF(M36="Operating Subsidy Enforceable Funding Commitment (EFC)",1,2) -> 2
A37: iii. Applicant acknowledges operating awards are determined based on need, exclusive of any debt service. The amounts and durations referenced in (i) and (ii) above represent maximums.
A38: Operating Subsidy: Need Analysis | D38: Year 1 | G38: Year 2 | J38: Year 3 | M38: Year 4 | P38: Year 5 | S38: Five Year Total
A39: 'Cash Flow' worksheet | D39: =IF('Cash Flow'!$D$46+'Cash Flow'!$D$40+'Cash Flow'!$D$41<0,-('Cash Flow'!$D$46+'Cash Flow'!$D$40+'Cash Flow'!$D$41),0) -> 0 | G39: =IF('Cash Flow'!$E$46+'Cash Flow'!$E$40+'Cash Flow'!$E$41<0,-('Cash Flow'!$E$46+'Cash Flow'!$E$40+'Cash Flow'!$E$41),0) -> 0 | J39: =IF('Cash Flow'!$F$46+'Cash Flow'!$F$40+'Cash Flow'!$F$41<0,-('Cash Flow'!$F$46+'Cash Flow'!$F$40+'Cash Flow'!$F$41),0) -> 0 | M39: =IF('Cash Flow'!$G$46+'Cash Flow'!$G$40+'Cash Flow'!$G$41<0,-('Cash Flow'!$G$46+'Cash Flow'!$G$40+'Cash Flow'!$G$41),0) -> 0 | P39: =IF('Cash Flow'!$H$46+'Cash Flow'!$H$40+'Cash Flow'!$H$41<0,-('Cash Flow'!$H$46+'Cash Flow'!$H$40+'Cash Flow'!$H$41),0) -> 0 | S39: =ROUNDDOWN(SUM($D$39:$R$39),0) -> 0
A40: iv. Applicant acknowledges that operating awards may pay for a Project’s necessary, recurring Operating Expenses in an amount approved by the Department. Qualifying expenses include utilities, maintenance, management fees, taxes, licenses, and Supportive Services costs, but not debt service or required reserve account deposits. Operating Expenses should be included in the Project’s submitted budget?
A41: v. If requesting an operating subsidy, upload a letter of support from the applicable Housing Authority confirming the need for an operating subsidy and evidencing why other subsidies, such as Project Based Vouchers, are not available.
A42: File Name: | C42: HA Support for Homekey Operating Subsidy | H42: Provide a letter of support from the applicable housing authority confirming the need for an operating award and evidencing why other subsidies, such as Project-based vouchers (PBVs), are not available. The Housing Authority Support for Homekey Operating Subsidy template can be found on the Homekey website. | P42: Uploaded to HCD?
A43: vi. Applicants acknowledges the Homekey-funded portion of the operating award must be disbursed by HCD by June 30, 2025 and expended by the Grantee by June 30, 2026, with the Grantee establishing a capitalized operating subsidy reserve and disbursing the funds as outlined in this NOFA. No extensions will be granted on the Grantee expenditure deadline for the operating award?
A44: vii. Applicant acknowledges that the Department requires the Eligible Applicant to demonstrate a minimum five-year commitment to provide operating funds for the proposed project? The first two years of operating funds may include an award from Homekey. Operating match may be obtained from any source, including any federal, state, local, private, or philanthropic source. Applicants are encouraged to consider Project Based Vouchers; Veterans Affairs Supportive Housing (HUD-VASH) Vouchers; Faircloth to Rental Assistance Demonstration (RAD) conversions; Homeless Housing Assistance and Prevention Program (HHAP) funding; Permanent Local Housing Allocation (PLHA) funding; and HOME-ARP funding. Note: The preceding list of potential match sources is not exhaustive. Eligible Applicants will have an opportunity to discuss the match requirements and potential match sources during the pre-application consultation.
A45: §304 Application Scoring Criteria (1)(b)(i) and (ii) | V45: RS #1 | W45: RS #2 | X45: RS #3 | Y45: RS #4
A46: 1(b)(i). Applicant contribution of non-Homekey Enforceable Funding Commitments for operating subsidies, including, but not limited to, Project-Based Vouchers, VASH vouchers, Faircloth to RAD conversions, tenant-based vouchers, or locally funded rental assistance. 1(b)(ii). The length and strength of non Homekey operating funding leveraged to cover operating costs committed beyond the required five (5) years of initial Project operations. Score is based on weighted commitment type, percentage of costs covered, and length of commitment. If applicable, from rows 46-62 below, please enter funds commitment status, rental subsidy term, rental subsidy amount (Y1 -Y15), and rental subsidy status. | S46: Maximum Homekey Operating Amt. | V46: Applicant must have | W46: Applicant must have | X46: Applicant must have | Y46: Applicant must have
A47: Rental Subsidy from 'Unit Mix cell M3 | D47: =IF(Overview!$S$34="Interim Housing","",'Unit Mix'!$M$3) -> Rental Subsidy Program #1 Name | G47: Funds Committed | J47: Rental Subsidy term (in years) | P47: Qualifying Homekey subsidy years | R47: =IF($O$47>3,3,IF($O$47>2,2,0)) -> 0 | S47: =$R$47*12*$S$17 -> 0 | V47: =O47*12*$S$17 -> 0 | W47: =O49*12*$S$17 -> 0 | X47: =O51*12*$S$17 -> 0 | Y47: =O53*12*$S$17 -> 0
J48: Assisted Units Receiving Rental Subsidy | O48: ='Unit Mix'!M$21 -> 0
A49: Rental Subsidy from 'Unit Mix cell O3 | D49: =IF(Overview!$S$34="Interim Housing","",'Unit Mix'!$O$3) -> Rental Subsidy Program #2 Name | G49: Funds Committed | J49: Rental Subsidy term (in years) | R49: =IF($O$49>3,3,IF($O$49>2,2,0)) -> 0 | S49: =$R$49*12*$S$17 -> 0 | W49: Y1 | X49: Y2 | Y49: Y3 | Z49: Y4 | AA49: Y5
J50: Assisted Units Receiving Rental Subsidy | K50: Assisted Units receiving Operating Subsidy | O50: ='Unit Mix'!O$21 -> 0 | V50: =SUM($W$50:$AA$50) -> 0 | W50: =IF(AND($D$56<>"",$M$60="Sustained source"),1,IF(AND($D$56<>"",$M$60="Subsidy carried by the tenant or participant"),1,0)) -> 0 | X50: =IF(AND($E$56<>"",$M$60="Sustained source"),1,IF(AND($E$56<>"",$M$60="Subsidy carried by the tenant or participant"),1,0)) -> 0 | Y50: =IF(AND($F$56<>"",$M$60="Sustained source"),1,IF(AND($F$56<>"",$M$60="Subsidy carried by the tenant or participant"),1,0)) -> 0 | Z50: =IF(AND($G$56<>"",$M$60="Sustained source"),1,IF(AND($G$56<>"",$M$60="Subsidy carried by the tenant or participant"),1,0)) -> 0 | AA50: =IF(AND($H$56<>"",$M$60="Sustained source"),1,IF(AND($H$56<>"",$M$60="Subsidy carried by the tenant or participant"),1,0)) -> 0
A51: Rental Subsidy from 'Unit Mix cell Q3 | D51: =IF(Overview!$S$34="Interim Housing","",'Unit Mix'!$Q$3) -> Rental Subsidy Program #3 Name | G51: Funds Committed | J51: Rental Subsidy term (in years) | R51: =IF($O$51>3,3,IF($O$51>2,2,0)) -> 0 | S51: =$R$51*12*$S$17 -> 0 | V51: =SUM($W$51:$AA$51) -> 0 | W51: =IF(AND($D$57<>"",$M$61="Sustained source"),1,IF(AND($D$57<>"",$M$61="Subsidy carried by the tenant or participant"),1,0)) -> 0 | X51: =IF(AND($E$57<>"",$M$61="Sustained source"),1,IF(AND($E$57<>"",$M$61="Subsidy carried by the tenant or participant"),1,0)) -> 0 | Y51: =IF(AND($F$57<>"",$M$61="Sustained source"),1,IF(AND($F$57<>"",$M$61="Subsidy carried by the tenant or participant"),1,0)) -> 0 | Z51: =IF(AND($G$57<>"",$M$61="Sustained source"),1,IF(AND($G$57<>"",$M$61="Subsidy carried by the tenant or participant"),1,0)) -> 0 | AA51: =IF(AND($H$57<>"",$M$61="Sustained source"),1,IF(AND($H$57<>"",$M$61="Subsidy carried by the tenant or participant"),1,0)) -> 0
J52: Assisted Units Receiving Rental Subsidy | O52: ='Unit Mix'!Q$21 -> 0 | V52: =SUM(W52:AA52) -> 0 | W52: =IF(AND(D58<>"",$M$62="Sustained source"),1,IF(AND(D58<>"",$M$62="Subsidy carried by the tenant or participant"),1,0)) -> 0 | X52: =IF(AND(E58<>"",$M$62="Sustained source"),1,IF(AND(E58<>"",$M$62="Subsidy carried by the tenant or participant"),1,0)) -> 0 | Y52: =IF(AND(F58<>"",$M$62="Sustained source"),1,IF(AND(F58<>"",$M$62="Subsidy carried by the tenant or participant"),1,0)) -> 0 | Z52: =IF(AND(G58<>"",$M$62="Sustained source"),1,IF(AND(G58<>"",$M$62="Subsidy carried by the tenant or participant"),1,0)) -> 0 | AA52: =IF(AND(H58<>"",$M$62="Sustained source"),1,IF(AND(H58<>"",$M$62="Subsidy carried by the tenant or participant"),1,0)) -> 0
A53: Rental Subsidy from 'Unit Mix cell S3 | D53: =IF(Overview!$S$34="Interim Housing","",'Unit Mix'!$S$3) -> Rental Subsidy Program #4 Name | G53: Funds Committed | J53: Rental Subsidy term (in years) | R53: =IF($O$53>3,3,IF($O$53>2,2,0)) -> 0 | S53: =$R$53*12*$S$17 -> 0 | V53: =SUM(W53:AA53) -> 0 | W53: =IF(AND(D59<>"",$M$63="Sustained source"),1,IF(AND(D59<>"",$M$63="Subsidy carried by the tenant or participant"),1,0)) -> 0 | X53: =IF(AND(E59<>"",$M$63="Sustained source"),1,IF(AND(E59<>"",$M$63="Subsidy carried by the tenant or participant"),1,0)) -> 0 | Y53: =IF(AND(F59<>"",$M$63="Sustained source"),1,IF(AND(F59<>"",$M$63="Subsidy carried by the tenant or participant"),1,0)) -> 0 | Z53: =IF(AND(G59<>"",$M$63="Sustained source"),1,IF(AND(G59<>"",$M$63="Subsidy carried by the tenant or participant"),1,0)) -> 0 | AA53: =IF(AND(H59<>"",$M$63="Sustained source"),1,IF(AND(H59<>"",$M$63="Subsidy carried by the tenant or participant"),1,0)) -> 0
J54: Assisted Units Receiving Rental Subsidy | O54: ='Unit Mix'!S$21 -> 0
A55: Rental subsidy program (rolls to 'Cash Flow' worksheet, rows 8-11) | D55: Year 1 | E55: Year 2 | F55: Year 3 | G55: Year 4 | H55: Year 5 | I55: Year 6 | J55: Year 7 | K55: Year 8 | L55: Year 9 | M55: Year 10 | N55: Year 11 | O55: Year 12 | P55: Year 13 | Q55: Year 14 | R55: Year 15 | S55: Total Applicant's Rental Subsidy
A56: =D47 -> Rental Subsidy Program #1 Name | D56: =IF(Overview!$S$34="Interim Housing",0,'Unit Mix'!$N$22) -> 0 | S56: =SUM($D$56:$R$56) -> 0 | T56: 0.025 | V56: =SUM(W56:AF56) -> 0 | W56: =IF(AND(I56<>"",$M$60="Sustained source"),1,IF(AND(I56<>"",$M$60="Subsidy carried by the tenant or participant"),1,IF(AND(I56<>"",$M$60="Intent to pursue funding"),1,0))) -> 0 | X56: =IF(AND(J56<>"",$M$60="Sustained source"),1,IF(AND(J56<>"",$M$60="Subsidy carried by the tenant or participant"),1,IF(AND(J56<>"",$M$60="Intent to pursue funding"),1,0))) -> 0 | Y56: 0 | Z56: 0 | AA56: 0 | AB56: 0 | AC56: 0 | AD56: =IF(AND(P56<>"",$M$60="Sustained source"),1,IF(AND(P56<>"",$M$60="Subsidy carried by the tenant or participant"),1,IF(AND(P56<>"",$M$60="Intent to pursue funding"),1,0))) -> 0 | AE56: 0 | AF56: =IF(AND(R56<>"",$M$60="Sustained source"),1,IF(AND(R56<>"",$M$60="Subsidy carried by the tenant or participant"),1,IF(AND(R56<>"",$M$60="Intent to pursue funding"),1,0))) -> 0
A57: =D49 -> Rental Subsidy Program #2 Name | D57: =IF(Overview!$S$34="Interim Housing",0,'Unit Mix'!$P$22) -> 0 | S57: =SUM($D$57:$R$57) -> 0 | T57: 0.025 | V57: =SUM(W57:AF57) -> 0 | W57: =IF(AND(I57<>"",$M$61="Sustained source"),1,IF(AND(I57<>"",$M$61="Subsidy carried by the tenant or participant"),1,IF(AND(I57<>"",$M$61="Intent to pursue funding"),1,0))) -> 0 | X57: =IF(AND(J57<>"",$M$61="Sustained source"),1,IF(AND(J57<>"",$M$61="Subsidy carried by the tenant or participant"),1,IF(AND(J57<>"",$M$61="Intent to pursue funding"),1,0))) -> 0 | Y57: =IF(AND(K57<>"",$M$61="Sustained source"),1,IF(AND(K57<>"",$M$61="Subsidy carried by the tenant or participant"),1,IF(AND(K57<>"",$M$61="Intent to pursue funding"),1,0))) -> 0 | Z57: =IF(AND(L57<>"",$M$61="Sustained source"),1,IF(AND(L57<>"",$M$61="Subsidy carried by the tenant or participant"),1,IF(AND(L57<>"",$M$61="Intent to pursue funding"),1,0))) -> 0 | AA57: 0 | AB57: 0 | AC57: 0 | AD57: 0 | AE57: =IF(AND(Q57<>"",$M$61="Sustained source"),1,IF(AND(Q57<>"",$M$61="Subsidy carried by the tenant or participant"),1,IF(AND(Q57<>"",$M$61="Intent to pursue funding"),1,0))) -> 0 | AF57: 0
A58: =D51 -> Rental Subsidy Program #3 Name | D58: =IF(Overview!$S$34="Interim Housing",0,'Unit Mix'!$R$22) -> 0 | S58: =SUM($D$58:$R$58) -> 0 | V58: =SUM(W58:AF58) -> 0 | W58: =IF(AND(I58<>"",$M$62="Sustained source"),1,IF(AND(I58<>"",$M$62="Subsidy carried by the tenant or participant"),1,IF(AND(I58<>"",$M$62="Intent to pursue funding"),1,0))) -> 0 | X58: =IF(AND(J58<>"",$M$62="Sustained source"),1,IF(AND(J58<>"",$M$62="Subsidy carried by the tenant or participant"),1,IF(AND(J58<>"",$M$62="Intent to pursue funding"),1,0))) -> 0 | Y58: =IF(AND(K58<>"",$M$62="Sustained source"),1,IF(AND(K58<>"",$M$62="Subsidy carried by the tenant or participant"),1,IF(AND(K58<>"",$M$62="Intent to pursue funding"),1,0))) -> 0 | Z58: 0 | AA58: 0 | AB58: 0 | AC58: 0 | AD58: 0 | AE58: =IF(AND(Q58<>"",$M$62="Sustained source"),1,IF(AND(Q58<>"",$M$62="Subsidy carried by the tenant or participant"),1,IF(AND(Q58<>"",$M$62="Intent to pursue funding"),1,0))) -> 0 | AF58: 0
A59: =D53 -> Rental Subsidy Program #4 Name | D59: =IF(Overview!$S$34="Interim Housing",0,'Unit Mix'!$T$22) -> 0 | S59: =SUM($D$59:$R$59) -> 0 | V59: =SUM(W59:AF59) -> 0 | W59: =IF(AND(I59<>"",$M$63="Sustained source"),1,IF(AND(I59<>"",$M$63="Subsidy carried by the tenant or participant"),1,IF(AND(I59<>"",$M$63="Intent to pursue funding"),1,0))) -> 0 | X59: 0 | Y59: 0 | Z59: 0 | AA59: 0 | AB59: 0 | AC59: =IF(AND(O59<>"",$M$63="Sustained source"),1,IF(AND(O59<>"",$M$63="Subsidy carried by the tenant or participant"),1,IF(AND(O59<>"",$M$63="Intent to pursue funding"),1,0))) -> 0 | AD59: =IF(AND(P59<>"",$M$63="Sustained source"),1,IF(AND(P59<>"",$M$63="Subsidy carried by the tenant or participant"),1,IF(AND(P59<>"",$M$63="Intent to pursue funding"),1,0))) -> 0 | AE59: =IF(AND(Q59<>"",$M$63="Sustained source"),1,IF(AND(Q59<>"",$M$63="Subsidy carried by the tenant or participant"),1,IF(AND(Q59<>"",$M$63="Intent to pursue funding"),1,0))) -> 0 | AF59: =IF(AND(R59<>"",$M$63="Sustained source"),1,IF(AND(R59<>"",$M$63="Subsidy carried by the tenant or participant"),1,IF(AND(R59<>"",$M$63="Intent to pursue funding"),1,0))) -> 0
A60: File Name: | C60: =$D$47 -> Rental Subsidy Program #1 Name | G60: Provide commitment of this non-Homekey rental subsidy that will be used to maintain the ongoing affordability of the Project. | P60: Uploaded to HCD? | V60: =IF(M60="Sustained source",1,IF(M60="Subsidy carried by the tenant or participant",1,IF(M60="Intent to pursue funding",2,IF(M60="","")))) -> 
A61: File Name: | C61: =$D$49 -> Rental Subsidy Program #2 Name | G61: Provide commitment of this non-Homekey rental subsidy that will be used to maintain the ongoing affordability of the Project. | P61: Uploaded to HCD? | V61: =IF(M61="Sustained source",1,IF(M61="Subsidy carried by the tenant or participant",1,IF(M61="Intent to pursue funding",2,IF(M61="","")))) -> 
A62: File Name: | C62: =$D$51 -> Rental Subsidy Program #3 Name | G62: Provide commitment of this non-Homekey rental subsidy that will be used to maintain the ongoing affordability of the Project. | P62: Uploaded to HCD?
A63: File Name: | C63: =$D$53 -> Rental Subsidy Program #4 Name | G63: Provide commitment of this non-Homekey rental subsidy that will be used to maintain the ongoing affordability of the Project. | P63: Uploaded to HCD?
A65: Applicant Comments

Sheet MTSP 50% Income Limits (hidden)
A1: 2022 HOME & NHTF | B1: lim50_21p1 | C1: lim50_21p2 | D1: lim50_21p3 | E1: lim50_21p4 | F1: lim50_21p5 | G1: lim50_21p6 | H1: lim50_21p7 | I1: lim50_21p8
A2: Alameda | B2: 50000 | C2: 57150 | D2: 64300 | E2: 71400 | F2: 77150 | G2: 82850 | H2: 88550 | I2: 94250
A3: Alpine | B3: 31800 | C3: 36350 | D3: 40900 | E3: 45400 | F3: 49050 | G3: 52700 | H3: 56300 | I3: 59950
A4: Amador | B4: 30350 | C4: 34650 | D4: 39000 | E4: 43300 | F4: 46800 | G4: 50250 | H4: 53700 | I4: 57200
A5: Butte | B5: 27300 | C5: 31200 | D5: 35100 | E5: 38950 | F5: 42100 | G5: 45200 | H5: 48300 | I5: 51450
A6: Calaveras | B6: 31500 | C6: 36000 | D6: 40500 | E6: 45000 | F6: 48600 | G6: 52200 | H6: 55800 | I6: 59400
A7: Colusa | B7: 27300 | C7: 31200 | D7: 35100 | E7: 38950 | F7: 42100 | G7: 45200 | H7: 48300 | I7: 51450
A8: Contra Costa | B8: 50000 | C8: 57150 | D8: 64300 | E8: 71400 | F8: 77150 | G8: 82850 | H8: 88550 | I8: 94250
A9: Del Norte | B9: 27300 | C9: 31200 | D9: 35100 | E9: 38950 | F9: 42100 | G9: 45200 | H9: 48300 | I9: 51450
A10: El Dorado | B10: 35500 | C10: 40550 | D10: 45600 | E10: 50650 | F10: 54750 | G10: 58800 | H10: 62850 | I10: 66900
A11: Fresno | B11: 27300 | C11: 31200 | D11: 35100 | E11: 38950 | F11: 42100 | G11: 45200 | H11: 48300 | I11: 51450
A12: Glenn | B12: 27300 | C12: 31200 | D12: 35100 | E12: 38950 | F12: 42100 | G12: 45200 | H12: 48300 | I12: 51450
A13: Humboldt | B13: 27300 | C13: 31200 | D13: 35100 | E13: 38950 | F13: 42100 | G13: 45200 | H13: 48300 | I13: 51450
A14: Imperial | B14: 27300 | C14: 31200 | D14: 35100 | E14: 38950 | F14: 42100 | G14: 45200 | H14: 48300 | I14: 51450
A15: Inyo | B15: 28950 | C15: 33100 | D15: 37250 | E15: 41350 | F15: 44700 | G15: 48000 | H15: 51300 | I15: 54600
A16: Kern | B16: 27300 | C16: 31200 | D16: 35100 | E16: 38950 | F16: 42100 | G16: 45200 | H16: 48300 | I16: 51450
A17: Kings | B17: 27300 | C17: 31200 | D17: 35100 | E17: 38950 | F17: 42100 | G17: 45200 | H17: 48300 | I17: 51450
A18: Lake | B18: 27300 | C18: 31200 | D18: 35100 | E18: 38950 | F18: 42100 | G18: 45200 | H18: 48300 | I18: 51450
A19: Lassen | B19: 28150 | C19: 32150 | D19: 36150 | E19: 40150 | F19: 43400 | G19: 46600 | H19: 49800 | I19: 53000
A20: Los Angeles | B20: 41700 | C20: 47650 | D20: 53600 | E20: 59550 | F20: 64350 | G20: 69100 | H20: 73850 | I20: 78650
A21: Madera | B21: 27300 | C21: 31200 | D21: 35100 | E21: 38950 | F21: 42100 | G21: 45200 | H21: 48300 | I21: 51450
A22: Marin | B22: 65250 | C22: 74600 | D22: 83900 | E22: 93200 | F22: 100700 | G22: 108150 | H22: 115600 | I22: 123050
A23: Mariposa | B23: 27300 | C23: 31200 | D23: 35100 | E23: 38950 | F23: 42100 | G23: 45200 | H23: 48300 | I23: 51450
A24: Mendocino | B24: 28150 | C24: 32150 | D24: 36150 | E24: 40150 | F24: 43400 | G24: 46600 | H24: 49800 | I24: 53000
A25: Merced | B25: 27300 | C25: 31200 | D25: 35100 | E25: 38950 | F25: 42100 | G25: 45200 | H25: 48300 | I25: 51450
A26: Modoc | B26: 27300 | C26: 31200 | D26: 35100 | E26: 38950 | F26: 42100 | G26: 45200 | H26: 48300 | I26: 51450
A27: Mono | B27: 28150 | C27: 32150 | D27: 36150 | E27: 40150 | F27: 43400 | G27: 46600 | H27: 49800 | I27: 53000
A28: Monterey | B28: 39800 | C28: 45500 | D28: 51200 | E28: 56850 | F28: 61400 | G28: 65950 | H28: 70500 | I28: 75050
A29: Napa | B29: 44150 | C29: 50450 | D29: 56750 | E29: 63050 | F29: 68100 | G29: 73150 | H29: 78200 | I29: 83250
A30: Nevada | B30: 34450 | C30: 39400 | D30: 44300 | E30: 49200 | F30: 53150 | G30: 57100 | H30: 61050 | I30: 64950
A31: Orange | B31: 47450 | C31: 54200 | D31: 61000 | E31: 67750 | F31: 73200 | G31: 78600 | H31: 84050 | I31: 89450
A32: Placer | B32: 35500 | C32: 40550 | D32: 45600 | E32: 50650 | F32: 54750 | G32: 58800 | H32: 62850 | I32: 66900
A33: Plumas | B33: 28600 | C33: 32700 | D33: 36800 | E33: 40850 | F33: 44150 | G33: 47400 | H33: 50700 | I33: 53950
A34: Riverside | B34: 30800 | C34: 35200 | D34: 39600 | E34: 44000 | F34: 47550 | G34: 51050 | H34: 54600 | I34: 58100
A35: Sacramento | B35: 35500 | C35: 40550 | D35: 45600 | E35: 50650 | F35: 54750 | G35: 58800 | H35: 62850 | I35: 66900
A36: San Benito | B36: 36800 | C36: 42050 | D36: 47300 | E36: 52550 | F36: 56800 | G36: 61000 | H36: 65200 | I36: 69400
A37: San Bernardino | B37: 30800 | C37: 35200 | D37: 39600 | E37: 44000 | F37: 47550 | G37: 51050 | H37: 54600 | I37: 58100
A38: San Diego | B38: 45550 | C38: 52050 | D38: 58550 | E38: 65050 | F38: 70300 | G38: 75500 | H38: 80700 | I38: 85900
A39: San Francisco | B39: 65250 | C39: 74600 | D39: 83900 | E39: 93200 | F39: 100700 | G39: 108150 | H39: 115600 | I39: 123050
A40: San Joaquin | B40: 29000 | C40: 33150 | D40: 37300 | E40: 41400 | F40: 44750 | G40: 48050 | H40: 51350 | I40: 54650
A41: San Luis Obispo | B41: 38300 | C41: 43800 | D41: 49250 | E41: 54700 | F41: 59100 | G41: 63500 | H41: 67850 | I41: 72250
A42: San Mateo | B42: 65250 | C42: 74600 | D42: 83900 | E42: 93200 | F42: 100700 | G42: 108150 | H42: 115600 | I42: 123050
A43: Santa Barbara | B43: 48900 | C43: 55900 | D43: 62900 | E43: 69850 | F43: 75450 | G43: 81050 | H43: 86650 | I43: 92250
A44: Santa Clara | B44: 59000 | C44: 67400 | D44: 75850 | E44: 84250 | F44: 91000 | G44: 97750 | H44: 104500 | I44: 111250
A45: Santa Cruz | B45: 54450 | C45: 62200 | D45: 70000 | E45: 77750 | F45: 84000 | G45: 90200 | H45: 96450 | I45: 102650
A46: Shasta | B46: 27800 | C46: 31800 | D46: 35750 | E46: 39700 | F46: 42900 | G46: 46100 | H46: 49250 | I46: 52450
A47: Sierra | B47: 31500 | C47: 36000 | D47: 40500 | E47: 45000 | F47: 48600 | G47: 52200 | H47: 55800 | I47: 59400
A48: Siskiyou | B48: 27300 | C48: 31200 | D48: 35100 | E48: 38950 | F48: 42100 | G48: 45200 | H48: 48300 | I48: 51450
A49: Solano | B49: 38050 | C49: 43450 | D49: 48900 | E49: 54300 | F49: 58650 | G49: 63000 | H49: 67350 | I49: 71700
A50: Sonoma | B50: 41600 | C50: 47550 | D50: 53500 | E50: 59400 | F50: 64200 | G50: 68950 | H50: 73700 | I50: 78450
A51: Stanislaus | B51: 27900 | C51: 31900 | D51: 35900 | E51: 39850 | F51: 43050 | G51: 46250 | H51: 49450 | I51: 52650
A52: Sutter | B52: 27300 | C52: 31200 | D52: 35100 | E52: 38950 | F52: 42100 | G52: 45200 | H52: 48300 | I52: 51450
A53: Tehama | B53: 27300 | C53: 31200 | D53: 35100 | E53: 38950 | F53: 42100 | G53: 45200 | H53: 48300 | I53: 51450
A54: Trinity | B54: 27300 | C54: 31200 | D54: 35100 | E54: 38950 | F54: 42100 | G54: 45200 | H54: 48300 | I54: 51450
A55: Tulare | B55: 27300 | C55: 31200 | D55: 35100 | E55: 38950 | F55: 42100 | G55: 45200 | H55: 48300 | I55: 51450
A56: Tuolumne | B56: 29150 | C56: 33300 | D56: 37450 | E56: 41600 | F56: 44950 | G56: 48300 | H56: 51600 | I56: 54950
A57: Ventura | B57: 43900 | C57: 50200 | D57: 56450 | E57: 62700 | F57: 67750 | G57: 72750 | H57: 77750 | I57: 82800
A58: Yolo | B58: 34700 | C58: 39650 | D58: 44600 | E58: 49550 | F58: 53550 | G58: 57500 | H58: 61450 | I58: 65450
A59: Yuba | B59: 27300 | C59: 31200 | D59: 35100 | E59: 38950 | F59: 42100 | G59: 45200 | H59: 48300 | I59: 51450

Sheet Rent Limits (hidden)
A1: County | B1: 1 Person | C1: 2 Person | D1: 3 Person | E1: 4 Person | F1: 5 Person | G1: 6 Person | H1: 7 Person | I1: 8 Person | J1: 0 | K1: 1 | L1: 2 | M1: 3 | N1: 4 | O1: 5
A2: Alameda0.15 | B2: =B9*2*0.15 -> 15000 | C2: =C9*2*0.15 -> 17145 | D2: =D9*2*0.15 -> 19290 | E2: =E9*2*0.15 -> 21420 | F2: =F9*2*0.15 -> 23145 | G2: =G9*2*0.15 -> 24855 | H2: 26565 | I2: 28275 | J2: =TRUNC(B2/12*0.3) -> 375 | K2: =TRUNC((B2+C2)/2/12*0.3) -> 401 | L2: =TRUNC((D2)/12*0.3) -> 482 | M2: =TRUNC(((E2+F2)/2)/12*0.3) -> 557 | N2: =TRUNC(G2/12*0.3) -> 621 | O2: =TRUNC(((H2+I2)/2)/12*0.3) -> 685
A3: Alameda0.2 | B3: =B9*2*0.2 -> 20000 | C3: =C9*2*0.2 -> 22860 | D3: 25720 | E3: 28560 | F3: 30860 | G3: 33140 | H3: 35420 | I3: 37700 | J3: =TRUNC(B3/12*0.3) -> 500 | K3: 535 | L3: 643 | M3: 742 | N3: 828 | O3: =TRUNC(((H3+I3)/2)/12*0.3) -> 914
A4: Alameda0.25 | B4: =B9*2*0.25 -> 25000 | C4: =C9*2*0.25 -> 28575 | D4: 32150 | E4: 35700 | F4: 38575 | G4: 41425 | H4: 44275 | I4: 47125 | J4: 625 | K4: 669 | L4: 803 | M4: 928 | N4: 1035 | O4: 1142
A5: Alameda0.3 | B5: =B9*2*0.3 -> 30000 | C5: =C9*2*0.3 -> 34290 | D5: 38580 | E5: 42840 | F5: 46290 | G5: 49710 | H5: 53130 | I5: 56550 | J5: 750 | K5: 803 | L5: 964 | M5: 1114 | N5: 1242 | O5: 1371
A6: Alameda0.35 | B6: =B9*2*0.35 -> 35000 | C6: =C9*2*0.35 -> 40005 | D6: 45010 | E6: 49980 | F6: 54005 | G6: 57995 | H6: 61985 | I6: 65975 | J6: 875 | K6: 937 | L6: 1125 | M6: 1299 | N6: 1449 | O6: 1599
A7: Alameda0.4 | B7: =B9*2*0.4 -> 40000 | C7: =C9*2*0.4 -> 45720 | D7: 51440 | E7: 57120 | F7: 61720 | G7: 66280 | H7: 70840 | I7: 75400 | J7: 1000 | K7: 1071 | L7: 1286 | M7: 1485 | N7: 1657 | O7: 1828
A8: Alameda0.45 | B8: =B9*2*0.45 -> 45000 | C8: =C9*2*0.45 -> 51435 | D8: 57870 | E8: 64260 | F8: 69435 | G8: 74565 | H8: 79695 | I8: 84825 | J8: 1125 | K8: 1205 | L8: 1446 | M8: 1671 | N8: 1864 | O8: 2056
A9: Alameda0.5 | B9: ='MTSP 50% Income Limits '!B2 -> 50000 | C9: ='MTSP 50% Income Limits '!C2 -> 57150 | D9: ='MTSP 50% Income Limits '!D2 -> 64300 | E9: ='MTSP 50% Income Limits '!E2 -> 71400 | F9: ='MTSP 50% Income Limits '!F2 -> 77150 | G9: ='MTSP 50% Income Limits '!G2 -> 82850 | H9: ='MTSP 50% Income Limits '!H2 -> 88550 | I9: ='MTSP 50% Income Limits '!I2 -> 94250 | J9: =TRUNC(B9/12*0.3) -> 1250 | K9: =TRUNC((B9+C9)/2/12*0.3) -> 1339 | L9: =TRUNC((D9)/12*0.3) -> 1607 | M9: =TRUNC(((E9+F9)/2)/12*0.3) -> 1856 | N9: =TRUNC(G9/12*0.3) -> 2071 | O9: =TRUNC(((H9+I9)/2)/12*0.3) -> 2285
A10: Alameda0.55 | B10: =B9*2*0.55 -> 55000 | C10: =C9*2*0.55 -> 62865 | D10: 70730 | E10: 78540 | F10: 84865 | G10: 91135 | H10: 97405 | I10: 103675 | J10: =TRUNC(B10/12*0.3) -> 1375 | K10: =TRUNC((B10+C10)/2/12*0.3) -> 1473 | L10: =TRUNC((D10)/12*0.3) -> 1768 | M10: =TRUNC(((E10+F10)/2)/12*0.3) -> 2042 | N10: =TRUNC(G10/12*0.3) -> 2278 | O10: =TRUNC(((H10+I10)/2)/12*0.3) -> 2513
A11: Alameda0.6 | B11: =B9*2*0.6 -> 60000 | C11: =C9*2*0.6 -> 68580 | D11: 77160 | E11: 85680 | F11: 92580 | G11: 99420 | H11: 106260 | I11: 113100 | J11: 1500 | K11: 1607 | L11: 1929 | M11: 2228 | N11: 2485 | O11: 2742
A12: Alameda0.65 | B12: =B9*2*0.65 -> 65000 | C12: =C9*2*0.65 -> 74295 | D12: 83590 | E12: 92820 | F12: 100295 | G12: 107705 | H12: 115115 | I12: 122525 | J12: 1625 | K12: 1741 | L12: 2089 | M12: 2413 | N12: 2692 | O12: 2970
A13: Alameda0.7 | B13: =B9*2*0.7 -> 70000 | C13: =C9*2*0.7 -> 80010 | D13: 90020 | E13: 99960 | F13: 108010 | G13: 115990 | H13: 123970 | I13: 131950 | J13: 1750 | K13: 1875 | L13: 2250 | M13: 2599 | N13: 2899 | O13: 3199
A14: Alameda0.75 | B14: =B9*2*0.75 -> 75000 | C14: =C9*2*0.75 -> 85725 | D14: 96450 | E14: 107100 | F14: 115725 | G14: 124275 | H14: 132825 | I14: 141375 | J14: 1875 | K14: 2009 | L14: 2411 | M14: 2785 | N14: 3106 | O14: 3427
A15: Alameda0.8 | B15: =B9*2*0.8 -> 80000 | C15: =C9*2*0.8 -> 91440 | D15: 102880 | E15: 114240 | F15: 123440 | G15: 132560 | H15: 141680 | I15: 150800 | J15: 2000 | K15: 2143 | L15: 2572 | M15: 2971 | N15: 3314 | O15: 3656
A16: Alameda0.9 | B16: =B9*2*0.9 -> 90000 | C16: =C9*2*0.9 -> 102870 | D16: 115740 | E16: 128520 | F16: 138870 | G16: 149130 | H16: 159390 | I16: 169650 | J16: 2250 | K16: 2410 | L16: 2893 | M16: 3342 | N16: 3728 | O16: 4113
A17: Alameda1 | B17: =B9*2 -> 100000 | C17: =C9*2 -> 114300 | D17: 128600 | E17: 142800 | F17: 154300 | G17: 165700 | H17: 177100 | I17: 188500 | J17: =J9*2 -> 2500 | K17: =K9*2 -> 2678 | L17: 3214 | M17: 3712 | N17: 4142 | O17: 4570
A18: Alameda1.1 | B18: =B9*2*1.1 -> 110000 | C18: =C9*2*1.1 -> 125730 | D18: 141460 | E18: 157080 | F18: 169730 | G18: 182270 | H18: 194810 | I18: 207350 | J18: 2750 | K18: 2946 | L18: 3536 | M18: 4085 | N18: 4556 | O18: 5027
A19: Alameda1.2 | B19: =B9*2*1.2 -> 120000 | C19: =C9*2*1.2 -> 137160 | D19: 154320 | E19: 171360 | F19: 185160 | G19: 198840 | H19: 212520 | I19: 226200 | J19: 3000 | K19: 3214 | L19: 3858 | M19: 4456 | N19: 4971 | O19: 5484
A20: Alpine0.15 | B20: =B27*2*0.15 -> 9540 | C20: =C27*2*0.15 -> 10905 | D20: =D27*2*0.15 -> 12270 | E20: =E27*2*0.15 -> 13620 | F20: =F27*2*0.15 -> 14715 | G20: =G27*2*0.15 -> 15810 | H20: 16890 | I20: 17985 | J20: 238 | K20: 255 | L20: 306 | M20: 354 | N20: 395 | O20: 435
A21: Alpine0.2 | B21: =B27*2*0.2 -> 12720 | C21: =C27*2*0.2 -> 14540 | D21: 16360 | E21: 18160 | F21: 19620 | G21: 21080 | H21: 22520 | I21: 23980 | J21: 318 | K21: 340 | L21: 409 | M21: 472 | N21: 527 | O21: 581
A22: Alpine0.25 | B22: =B27*2*0.25 -> 15900 | C22: =C27*2*0.25 -> 18175 | D22: 20450 | E22: 22700 | F22: 24525 | G22: 26350 | H22: 28150 | I22: 29975 | J22: 397 | K22: 425 | L22: 511 | M22: 590 | N22: 658 | O22: 726
A23: Alpine0.3 | B23: =B27*2*0.3 -> 19080 | C23: =C27*2*0.3 -> 21810 | D23: 24540 | E23: 27240 | F23: 29430 | G23: 31620 | H23: 33780 | I23: 35970 | J23: 477 | K23: 511 | L23: 613 | M23: 708 | N23: 790 | O23: 871
A24: Alpine0.35 | B24: =B27*2*0.35 -> 22260 | C24: =C27*2*0.35 -> 25445 | D24: 28630 | E24: 31780 | F24: 34335 | G24: 36890 | H24: 39410 | I24: 41965 | J24: 556 | K24: 596 | L24: 715 | M24: 826 | N24: 922 | O24: 1017
A25: Alpine0.4 | B25: =B27*2*0.4 -> 25440 | C25: =C27*2*0.4 -> 29080 | D25: 32720 | E25: 36320 | F25: 39240 | G25: 42160 | H25: 45040 | I25: 47960 | J25: 636 | K25: 681 | L25: 818 | M25: 944 | N25: 1054 | O25: 1162
A26: Alpine0.45 | B26: =B27*2*0.45 -> 28620 | C26: =C27*2*0.45 -> 32715 | D26: 36810 | E26: 40860 | F26: 44145 | G26: 47430 | H26: 50670 | I26: 53955 | J26: 715 | K26: 766 | L26: 920 | M26: 1062 | N26: 1185 | O26: 1307
A27: Alpine0.5 | B27: ='MTSP 50% Income Limits '!B3 -> 31800 | C27: ='MTSP 50% Income Limits '!C3 -> 36350 | D27: ='MTSP 50% Income Limits '!D3 -> 40900 | E27: ='MTSP 50% Income Limits '!E3 -> 45400 | F27: ='MTSP 50% Income Limits '!F3 -> 49050 | G27: ='MTSP 50% Income Limits '!G3 -> 52700 | H27: ='MTSP 50% Income Limits '!H3 -> 56300 | I27: ='MTSP 50% Income Limits '!I3 -> 59950 | J27: =TRUNC(B27/12*0.3) -> 795 | K27: =TRUNC((B27+C27)/2/12*0.3) -> 851 | L27: =TRUNC((D27)/12*0.3) -> 1022 | M27: =TRUNC(((E27+F27)/2)/12*0.3) -> 1180 | N27: =TRUNC(G27/12*0.3) -> 1317 | O27: =TRUNC(((H27+I27)/2)/12*0.3) -> 1453
A28: Alpine0.55 | B28: =B27*2*0.55 -> 34980 | C28: =C27*2*0.55 -> 39985 | D28: 44990 | E28: 49940 | F28: 53955 | G28: 57970 | H28: 61930 | I28: 65945 | J28: =TRUNC(B28/12*0.3) -> 874 | K28: =TRUNC((B28+C28)/2/12*0.3) -> 937 | L28: =TRUNC((D28)/12*0.3) -> 1124 | M28: =TRUNC(((E28+F28)/2)/12*0.3) -> 1298 | N28: =TRUNC(G28/12*0.3) -> 1449 | O28: =TRUNC(((H28+I28)/2)/12*0.3) -> 1598
A29: Alpine0.6 | B29: =B27*2*0.6 -> 38160 | C29: =C27*2*0.6 -> 43620 | D29: 49080 | E29: 54480 | F29: 58860 | G29: 63240 | H29: 67560 | I29: 71940 | J29: 954 | K29: 1022 | L29: 1227 | M29: 1416 | N29: 1581 | O29: 1743
A30: Alpine0.65 | B30: =B27*2*0.65 -> 41340 | C30: =C27*2*0.65 -> 47255 | D30: 53170 | E30: 59020 | F30: 63765 | G30: 68510 | H30: 73190 | I30: 77935 | J30: 1033 | K30: 1107 | L30: 1329 | M30: 1534 | N30: 1712 | O30: 1889
A31: Alpine0.7 | B31: =B27*2*0.7 -> 44520 | C31: =C27*2*0.7 -> 50890 | D31: 57260 | E31: 63560 | F31: 68670 | G31: 73780 | H31: 78820 | I31: 83930 | J31: 1113 | K31: 1192 | L31: 1431 | M31: 1652 | N31: 1844 | O31: 2034
A32: Alpine0.75 | B32: =B27*2*0.75 -> 47700 | C32: =C27*2*0.75 -> 54525 | D32: 61350 | E32: 68100 | F32: 73575 | G32: 79050 | H32: 84450 | I32: 89925 | J32: 1192 | K32: 1277 | L32: 1533 | M32: 1770 | N32: 1976 | O32: 2179
A33: Alpine0.8 | B33: =B27*2*0.8 -> 50880 | C33: =C27*2*0.8 -> 58160 | D33: 65440 | E33: 72640 | F33: 78480 | G33: 84320 | H33: 90080 | I33: 95920 | J33: 1272 | K33: 1363 | L33: 1636 | M33: 1889 | N33: 2108 | O33: 2325
A34: Alpine0.9 | B34: =B27*2*0.9 -> 57240 | C34: =C27*2*0.9 -> 65430 | D34: 73620 | E34: 81720 | F34: 88290 | G34: 94860 | H34: 101340 | I34: 107910 | J34: 1431 | K34: 1533 | L34: 1840 | M34: 2125 | N34: 2371 | O34: 2615
A35: Alpine1 | B35: =B27*2 -> 63600 | C35: =C27*2 -> 72700 | D35: 81800 | E35: 90800 | F35: 98100 | G35: 105400 | H35: 112600 | I35: 119900 | J35: =J27*2 -> 1590 | K35: =K27*2 -> 1702 | L35: 2044 | M35: 2360 | N35: 2634 | O35: 2906
A36: Alpine1.1 | B36: =B27*2*1.1 -> 69960 | C36: =C27*2*1.1 -> 79970 | D36: 89980 | E36: 99880 | F36: 107910 | G36: 115940 | H36: 123860 | I36: 131890 | J36: =TRUNC(B36/12*0.3) -> 1749 | K36: =TRUNC((B36+C36)/2/12*0.3) -> 1874 | L36: =TRUNC((D36)/12*0.3) -> 2249 | M36: =TRUNC(((E36+F36)/2)/12*0.3) -> 2597 | N36: =TRUNC(G36/12*0.3) -> 2898 | O36: =TRUNC(((H36+I36)/2)/12*0.3) -> 3196
A37: Alpine1.2 | B37: =B27*2*1.2 -> 76320 | C37: =C27*2*1.2 -> 87240 | D37: 98160 | E37: 108960 | F37: 117720 | G37: 126480 | H37: 135120 | I37: 143880 | J37: 1908 | K37: 2044 | L37: 2454 | M37: 2833 | N37: 3162 | O37: 3487
A38: Amador0.15 | B38: =B45*2*0.15 -> 9105 | C38: =C45*2*0.15 -> 10395 | D38: =D45*2*0.15 -> 11700 | E38: =E45*2*0.15 -> 12990 | F38: =F45*2*0.15 -> 14040 | G38: =G45*2*0.15 -> 15075 | H38: 16110 | I38: 17160 | J38: 227 | K38: 243 | L38: 292 | M38: 337 | N38: 376 | O38: 415
A39: Amador0.2 | B39: =B45*2*0.2 -> 12140 | C39: =C45*2*0.2 -> 13860 | D39: 15600 | E39: 17320 | F39: 18720 | G39: 20100 | H39: 21480 | I39: 22880 | J39: 303 | K39: 325 | L39: 390 | M39: 450 | N39: 502 | O39: 554
A40: Amador0.25 | B40: =B45*2*0.25 -> 15175 | C40: =C45*2*0.25 -> 17325 | D40: 19500 | E40: 21650 | F40: 23400 | G40: 25125 | H40: 26850 | I40: 28600 | J40: 379 | K40: 406 | L40: 487 | M40: 563 | N40: 628 | O40: 693
A41: Amador0.3 | B41: =B45*2*0.3 -> 18210 | C41: =C45*2*0.3 -> 20790 | D41: 23400 | E41: 25980 | F41: 28080 | G41: 30150 | H41: 32220 | I41: 34320 | J41: 455 | K41: 487 | L41: 585 | M41: 675 | N41: 753 | O41: 831
A42: Amador0.35 | B42: =B45*2*0.35 -> 21245 | C42: =C45*2*0.35 -> 24255 | D42: 27300 | E42: 30310 | F42: 32760 | G42: 35175 | H42: 37590 | I42: 40040 | J42: 531 | K42: 568 | L42: 682 | M42: 788 | N42: 879 | O42: 970
A43: Amador0.4 | B43: =B45*2*0.4 -> 24280 | C43: =C45*2*0.4 -> 27720 | D43: 31200 | E43: 34640 | F43: 37440 | G43: 40200 | H43: 42960 | I43: 45760 | J43: 607 | K43: 650 | L43: 780 | M43: 901 | N43: 1005 | O43: 1109
A44: Amador0.45 | B44: =B45*2*0.45 -> 27315 | C44: =C45*2*0.45 -> 31185 | D44: 35100 | E44: 38970 | F44: 42120 | G44: 45225 | H44: 48330 | I44: 51480 | J44: 682 | K44: 731 | L44: 877 | M44: 1013 | N44: 1130 | O44: 1247
A45: Amador0.5 | B45: ='MTSP 50% Income Limits '!B4 -> 30350 | C45: ='MTSP 50% Income Limits '!C4 -> 34650 | D45: ='MTSP 50% Income Limits '!D4 -> 39000 | E45: ='MTSP 50% Income Limits '!E4 -> 43300 | F45: ='MTSP 50% Income Limits '!F4 -> 46800 | G45: ='MTSP 50% Income Limits '!G4 -> 50250 | H45: ='MTSP 50% Income Limits '!H4 -> 53700 | I45: ='MTSP 50% Income Limits '!I4 -> 57200 | J45: =TRUNC(B45/12*0.3) -> 758 | K45: =TRUNC((B45+C45)/2/12*0.3) -> 812 | L45: =TRUNC((D45)/12*0.3) -> 975 | M45: =TRUNC(((E45+F45)/2)/12*0.3) -> 1126 | N45: =TRUNC(G45/12*0.3) -> 1256 | O45: =TRUNC(((H45+I45)/2)/12*0.3) -> 1386
A46: Amador0.55 | B46: =B45*2*0.55 -> 33385 | C46: =C45*2*0.55 -> 38115 | D46: 42900 | E46: 47630 | F46: 51480 | G46: 55275 | H46: 59070 | I46: 62920 | J46: =TRUNC(B46/12*0.3) -> 834 | K46: =TRUNC((B46+C46)/2/12*0.3) -> 893 | L46: =TRUNC((D46)/12*0.3) -> 1072 | M46: =TRUNC(((E46+F46)/2)/12*0.3) -> 1238 | N46: =TRUNC(G46/12*0.3) -> 1381 | O46: =TRUNC(((H46+I46)/2)/12*0.3) -> 1524
A47: Amador0.6 | B47: =B45*2*0.6 -> 36420 | C47: =C45*2*0.6 -> 41580 | D47: 46800 | E47: 51960 | F47: 56160 | G47: 60300 | H47: 64440 | I47: 68640 | J47: 910 | K47: 975 | L47: 1170 | M47: 1351 | N47: 1507 | O47: 1663
A48: Amador0.65 | B48: =B45*2*0.65 -> 39455 | C48: =C45*2*0.65 -> 45045 | D48: 50700 | E48: 56290 | F48: 60840 | G48: 65325 | H48: 69810 | I48: 74360 | J48: 986 | K48: 1056 | L48: 1267 | M48: 1464 | N48: 1633 | O48: 1802
A49: Amador0.7 | B49: =B45*2*0.7 -> 42490 | C49: =C45*2*0.7 -> 48510 | D49: 54600 | E49: 60620 | F49: 65520 | G49: 70350 | H49: 75180 | I49: 80080 | J49: 1062 | K49: 1137 | L49: 1365 | M49: 1576 | N49: 1758 | O49: 1940
A50: Amador0.75 | B50: =B45*2*0.75 -> 45525 | C50: =C45*2*0.75 -> 51975 | D50: 58500 | E50: 64950 | F50: 70200 | G50: 75375 | H50: 80550 | I50: 85800 | J50: 1138 | K50: 1218 | L50: 1462 | M50: 1689 | N50: 1884 | O50: 2079
A51: Amador0.8 | B51: =B45*2*0.8 -> 48560 | C51: =C45*2*0.8 -> 55440 | D51: 62400 | E51: 69280 | F51: 74880 | G51: 80400 | H51: 85920 | I51: 91520 | J51: 1214 | K51: 1300 | L51: 1560 | M51: 1802 | N51: 2010 | O51: 2218
A52: Amador0.9 | B52: =B45*2*0.9 -> 54630 | C52: =C45*2*0.9 -> 62370 | D52: 70200 | E52: 77940 | F52: 84240 | G52: 90450 | H52: 96660 | I52: 102960 | J52: 1365 | K52: 1462 | L52: 1755 | M52: 2027 | N52: 2261 | O52: 2495
A53: Amador1 | B53: =B45*2 -> 60700 | C53: =C45*2 -> 69300 | D53: 78000 | E53: 86600 | F53: 93600 | G53: 100500 | H53: 107400 | I53: 114400 | J53: =J45*2 -> 1516 | K53: =K45*2 -> 1624 | L53: 1950 | M53: 2252 | N53: 2512 | O53: 2772
A54: Amador1.1 | B54: =B45*2*1.1 -> 66770 | C54: =C45*2*1.1 -> 76230 | D54: 85800 | E54: 95260 | F54: 102960 | G54: 110550 | H54: 118140 | I54: 125840 | J54: =TRUNC(B54/12*0.3) -> 1669 | K54: =TRUNC((B54+C54)/2/12*0.3) -> 1787 | L54: =TRUNC((D54)/12*0.3) -> 2145 | M54: =TRUNC(((E54+F54)/2)/12*0.3) -> 2477 | N54: =TRUNC(G54/12*0.3) -> 2763 | O54: =TRUNC(((H54+I54)/2)/12*0.3) -> 3049
A55: Amador1.2 | B55: =B45*2*1.2 -> 72840 | C55: =C45*2*1.2 -> 83160 | D55: 93600 | E55: 103920 | F55: 112320 | G55: 120600 | H55: 128880 | I55: 137280 | J55: 1821 | K55: 1950 | L55: 2340 | M55: 2703 | N55: 3015 | O55: 3327
A56: Butte0.15 | B56: =B63*2*0.15 -> 8190 | C56: =C63*2*0.15 -> 9360 | D56: =D63*2*0.15 -> 10530 | E56: =E63*2*0.15 -> 11685 | F56: =F63*2*0.15 -> 12630 | G56: =G63*2*0.15 -> 13560 | H56: 14490 | I56: 15435 | J56: 204 | K56: 219 | L56: 263 | M56: 303 | N56: 339 | O56: 374
A57: Butte0.2 | B57: =B63*2*0.2 -> 10920 | C57: =C63*2*0.2 -> 12480 | D57: 14040 | E57: 15580 | F57: 16840 | G57: 18080 | H57: 19320 | I57: 20580 | J57: 273 | K57: 292 | L57: 351 | M57: 405 | N57: 452 | O57: 498
A58: Butte0.25 | B58: =B63*2*0.25 -> 13650 | C58: =C63*2*0.25 -> 15600 | D58: 17550 | E58: 19475 | F58: 21050 | G58: 22600 | H58: 24150 | I58: 25725 | J58: 341 | K58: 365 | L58: 438 | M58: 506 | N58: 565 | O58: 623
A59: Butte0.3 | B59: =B63*2*0.3 -> 16380 | C59: =C63*2*0.3 -> 18720 | D59: 21060 | E59: 23370 | F59: 25260 | G59: 27120 | H59: 28980 | I59: 30870 | J59: 409 | K59: 438 | L59: 526 | M59: 607 | N59: 678 | O59: 748
A60: Butte0.35 | B60: =B63*2*0.35 -> 19110 | C60: =C63*2*0.35 -> 21840 | D60: 24570 | E60: 27265 | F60: 29470 | G60: 31640 | H60: 33810 | I60: 36015 | J60: 477 | K60: 511 | L60: 614 | M60: 709 | N60: 791 | O60: 872
A61: Butte0.4 | B61: =B63*2*0.4 -> 21840 | C61: =C63*2*0.4 -> 24960 | D61: 28080 | E61: 31160 | F61: 33680 | G61: 36160 | H61: 38640 | I61: 41160 | J61: 546 | K61: 585 | L61: 702 | M61: 810 | N61: 904 | O61: 997
A62: Butte0.45 | B62: =B63*2*0.45 -> 24570 | C62: =C63*2*0.45 -> 28080 | D62: 31590 | E62: 35055 | F62: 37890 | G62: 40680 | H62: 43470 | I62: 46305 | J62: 614 | K62: 658 | L62: 789 | M62: 911 | N62: 1017 | O62: 1122
A63: Butte0.5 | B63: ='MTSP 50% Income Limits '!B5 -> 27300 | C63: ='MTSP 50% Income Limits '!C5 -> 31200 | D63: ='MTSP 50% Income Limits '!D5 -> 35100 | E63: ='MTSP 50% Income Limits '!E5 -> 38950 | F63: ='MTSP 50% Income Limits '!F5 -> 42100 | G63: ='MTSP 50% Income Limits '!G5 -> 45200 | H63: ='MTSP 50% Income Limits '!H5 -> 48300 | I63: ='MTSP 50% Income Limits '!I5 -> 51450 | J63: =TRUNC(B63/12*0.3) -> 682 | K63: =TRUNC((B63+C63)/2/12*0.3) -> 731 | L63: =TRUNC((D63)/12*0.3) -> 877 | M63: =TRUNC(((E63+F63)/2)/12*0.3) -> 1013 | N63: =TRUNC(G63/12*0.3) -> 1130 | O63: =TRUNC(((H63+I63)/2)/12*0.3) -> 1246
A64: Butte0.55 | B64: =B63*2*0.55 -> 30030 | C64: =C63*2*0.55 -> 34320 | D64: 38610 | E64: 42845 | F64: 46310 | G64: 49720 | H64: 53130 | I64: 56595 | J64: =TRUNC(B64/12*0.3) -> 750 | K64: =TRUNC((B64+C64)/2/12*0.3) -> 804 | L64: =TRUNC((D64)/12*0.3) -> 965 | M64: =TRUNC(((E64+F64)/2)/12*0.3) -> 1114 | N64: =TRUNC(G64/12*0.3) -> 1243 | O64: =TRUNC(((H64+I64)/2)/12*0.3) -> 1371
A65: Butte0.6 | B65: =B63*2*0.6 -> 32760 | C65: =C63*2*0.6 -> 37440 | D65: 42120 | E65: 46740 | F65: 50520 | G65: 54240 | H65: 57960 | I65: 61740 | J65: 819 | K65: 877 | L65: 1053 | M65: 1215 | N65: 1356 | O65: 1496
A66: Butte0.65 | B66: =B63*2*0.65 -> 35490 | C66: =C63*2*0.65 -> 40560 | D66: 45630 | E66: 50635 | F66: 54730 | G66: 58760 | H66: 62790 | I66: 66885 | J66: 887 | K66: 950 | L66: 1140 | M66: 1317 | N66: 1469 | O66: 1620
A67: Butte0.7 | B67: =B63*2*0.7 -> 38220 | C67: =C63*2*0.7 -> 43680 | D67: 49140 | E67: 54530 | F67: 58940 | G67: 63280 | H67: 67620 | I67: 72030 | J67: 955 | K67: 1023 | L67: 1228 | M67: 1418 | N67: 1582 | O67: 1745
A68: Butte0.75 | B68: =B63*2*0.75 -> 40950 | C68: =C63*2*0.75 -> 46800 | D68: 52650 | E68: 58425 | F68: 63150 | G68: 67800 | H68: 72450 | I68: 77175 | J68: 1023 | K68: 1096 | L68: 1316 | M68: 1519 | N68: 1695 | O68: 1870
A69: Butte0.8 | B69: =B63*2*0.8 -> 43680 | C69: =C63*2*0.8 -> 49920 | D69: 56160 | E69: 62320 | F69: 67360 | G69: 72320 | H69: 77280 | I69: 82320 | J69: 1092 | K69: 1170 | L69: 1404 | M69: 1621 | N69: 1808 | O69: 1995
A70: Butte0.9 | B70: =B63*2*0.9 -> 49140 | C70: =C63*2*0.9 -> 56160 | D70: 63180 | E70: 70110 | F70: 75780 | G70: 81360 | H70: 86940 | I70: 92610 | J70: 1228 | K70: 1316 | L70: 1579 | M70: 1823 | N70: 2034 | O70: 2244
A71: Butte1 | B71: =B63*2 -> 54600 | C71: =C63*2 -> 62400 | D71: 70200 | E71: 77900 | F71: 84200 | G71: 90400 | H71: 96600 | I71: 102900 | J71: =J63*2 -> 1364 | K71: =K63*2 -> 1462 | L71: 1754 | M71: 2026 | N71: 2260 | O71: 2492
A72: Butte1.1 | B72: =B63*2*1.1 -> 60060 | C72: =C63*2*1.1 -> 68640 | D72: 77220 | E72: 85690 | F72: 92620 | G72: 99440 | H72: 106260 | I72: 113190 | J72: =TRUNC(B72/12*0.3) -> 1501 | K72: =TRUNC((B72+C72)/2/12*0.3) -> 1608 | L72: =TRUNC((D72)/12*0.3) -> 1930 | M72: =TRUNC(((E72+F72)/2)/12*0.3) -> 2228 | N72: =TRUNC(G72/12*0.3) -> 2486 | O72: =TRUNC(((H72+I72)/2)/12*0.3) -> 2743
A73: Butte1.2 | B73: =B63*2*1.2 -> 65520 | C73: =C63*2*1.2 -> 74880 | D73: 84240 | E73: 93480 | F73: 101040 | G73: 108480 | H73: 115920 | I73: 123480 | J73: 1638 | K73: 1755 | L73: 2106 | M73: 2431 | N73: 2712 | O73: 2992
A74: Calaveras0.15 | B74: =B81*2*0.15 -> 9450 | C74: =C81*2*0.15 -> 10800 | D74: =D81*2*0.15 -> 12150 | E74: =E81*2*0.15 -> 13500 | F74: =F81*2*0.15 -> 14580 | G74: =G81*2*0.15 -> 15660 | H74: 16740 | I74: 17820 | J74: 236 | K74: 253 | L74: 303 | M74: 351 | N74: 391 | O74: 432
A75: Calaveras0.2 | B75: =B81*2*0.2 -> 12600 | C75: =C81*2*0.2 -> 14400 | D75: 16200 | E75: 18000 | F75: 19440 | G75: 20880 | H75: 22320 | I75: 23760 | J75: 315 | K75: 337 | L75: 405 | M75: 468 | N75: 522 | O75: 576
A76: Calaveras0.25 | B76: =B81*2*0.25 -> 15750 | C76: =C81*2*0.25 -> 18000 | D76: 20250 | E76: 22500 | F76: 24300 | G76: 26100 | H76: 27900 | I76: 29700 | J76: 393 | K76: 421 | L76: 506 | M76: 585 | N76: 652 | O76: 720
A77: Calaveras0.3 | B77: =B81*2*0.3 -> 18900 | C77: =C81*2*0.3 -> 21600 | D77: 24300 | E77: 27000 | F77: 29160 | G77: 31320 | H77: 33480 | I77: 35640 | J77: 472 | K77: 506 | L77: 607 | M77: 702 | N77: 783 | O77: 864
A78: Calaveras0.35 | B78: =B81*2*0.35 -> 22050 | C78: =C81*2*0.35 -> 25200 | D78: 28350 | E78: 31500 | F78: 34020 | G78: 36540 | H78: 39060 | I78: 41580 | J78: 551 | K78: 590 | L78: 708 | M78: 819 | N78: 913 | O78: 1008
A79: Calaveras0.4 | B79: =B81*2*0.4 -> 25200 | C79: =C81*2*0.4 -> 28800 | D79: 32400 | E79: 36000 | F79: 38880 | G79: 41760 | H79: 44640 | I79: 47520 | J79: 630 | K79: 675 | L79: 810 | M79: 936 | N79: 1044 | O79: 1152
A80: Calaveras0.45 | B80: =B81*2*0.45 -> 28350 | C80: =C81*2*0.45 -> 32400 | D80: 36450 | E80: 40500 | F80: 43740 | G80: 46980 | H80: 50220 | I80: 53460 | J80: 708 | K80: 759 | L80: 911 | M80: 1053 | N80: 1174 | O80: 1296
A81: Calaveras0.5 | B81: ='MTSP 50% Income Limits '!B6 -> 31500 | C81: ='MTSP 50% Income Limits '!C6 -> 36000 | D81: ='MTSP 50% Income Limits '!D6 -> 40500 | E81: ='MTSP 50% Income Limits '!E6 -> 45000 | F81: ='MTSP 50% Income Limits '!F6 -> 48600 | G81: ='MTSP 50% Income Limits '!G6 -> 52200 | H81: ='MTSP 50% Income Limits '!H6 -> 55800 | I81: ='MTSP 50% Income Limits '!I6 -> 59400 | J81: =TRUNC(B81/12*0.3) -> 787 | K81: =TRUNC((B81+C81)/2/12*0.3) -> 843 | L81: =TRUNC((D81)/12*0.3) -> 1012 | M81: =TRUNC(((E81+F81)/2)/12*0.3) -> 1170 | N81: =TRUNC(G81/12*0.3) -> 1305 | O81: =TRUNC(((H81+I81)/2)/12*0.3) -> 1440
A82: Calaveras0.55 | B82: =B81*2*0.55 -> 34650 | C82: =C81*2*0.55 -> 39600 | D82: 44550 | E82: 49500 | F82: 53460 | G82: 57420 | H82: 61380 | I82: 65340 | J82: =TRUNC(B82/12*0.3) -> 866 | K82: =TRUNC((B82+C82)/2/12*0.3) -> 928 | L82: =TRUNC((D82)/12*0.3) -> 1113 | M82: =TRUNC(((E82+F82)/2)/12*0.3) -> 1287 | N82: =TRUNC(G82/12*0.3) -> 1435 | O82: =TRUNC(((H82+I82)/2)/12*0.3) -> 1584
A83: Calaveras0.6 | B83: =B81*2*0.6 -> 37800 | C83: =C81*2*0.6 -> 43200 | D83: 48600 | E83: 54000 | F83: 58320 | G83: 62640 | H83: 66960 | I83: 71280 | J83: 945 | K83: 1012 | L83: 1215 | M83: 1404 | N83: 1566 | O83: 1728
A84: Calaveras0.65 | B84: =B81*2*0.65 -> 40950 | C84: =C81*2*0.65 -> 46800 | D84: 52650 | E84: 58500 | F84: 63180 | G84: 67860 | H84: 72540 | I84: 77220 | J84: 1023 | K84: 1096 | L84: 1316 | M84: 1521 | N84: 1696 | O84: 1872
A85: Calaveras0.7 | B85: =B81*2*0.7 -> 44100 | C85: =C81*2*0.7 -> 50400 | D85: 56700 | E85: 63000 | F85: 68040 | G85: 73080 | H85: 78120 | I85: 83160 | J85: 1102 | K85: 1181 | L85: 1417 | M85: 1638 | N85: 1827 | O85: 2016
A86: Calaveras0.75 | B86: =B81*2*0.75 -> 47250 | C86: =C81*2*0.75 -> 54000 | D86: 60750 | E86: 67500 | F86: 72900 | G86: 78300 | H86: 83700 | I86: 89100 | J86: 1181 | K86: 1265 | L86: 1518 | M86: 1755 | N86: 1957 | O86: 2160
A87: Calaveras0.8 | B87: =B81*2*0.8 -> 50400 | C87: =C81*2*0.8 -> 57600 | D87: 64800 | E87: 72000 | F87: 77760 | G87: 83520 | H87: 89280 | I87: 95040 | J87: 1260 | K87: 1350 | L87: 1620 | M87: 1872 | N87: 2088 | O87: 2304
A88: Calaveras0.9 | B88: =B81*2*0.9 -> 56700 | C88: =C81*2*0.9 -> 64800 | D88: 72900 | E88: 81000 | F88: 87480 | G88: 93960 | H88: 100440 | I88: 106920 | J88: 1417 | K88: 1518 | L88: 1822 | M88: 2106 | N88: 2349 | O88: 2592
A89: Calaveras1 | B89: =B81*2 -> 63000 | C89: =C81*2 -> 72000 | D89: 81000 | E89: 90000 | F89: 97200 | G89: 104400 | H89: 111600 | I89: 118800 | J89: =J81*2 -> 1574 | K89: =K81*2 -> 1686 | L89: 2024 | M89: 2340 | N89: 2610 | O89: 2880
A90: Calaveras1.1 | B90: =B81*2*1.1 -> 69300 | C90: =C81*2*1.1 -> 79200 | D90: 89100 | E90: 99000 | F90: 106920 | G90: 114840 | H90: 122760 | I90: 130680 | J90: =TRUNC(B90/12*0.3) -> 1732 | K90: =TRUNC((B90+C90)/2/12*0.3) -> 1856 | L90: =TRUNC((D90)/12*0.3) -> 2227 | M90: =TRUNC(((E90+F90)/2)/12*0.3) -> 2574 | N90: =TRUNC(G90/12*0.3) -> 2871 | O90: =TRUNC(((H90+I90)/2)/12*0.3) -> 3168
A91: Calaveras1.2 | B91: =B81*2*1.2 -> 75600 | C91: =C81*2*1.2 -> 86400 | D91: 97200 | E91: 108000 | F91: 116640 | G91: 125280 | H91: 133920 | I91: 142560 | J91: 1890 | K91: 2025 | L91: 2430 | M91: 2808 | N91: 3132 | O91: 3456
A92: Colusa0.15 | B92: =B99*2*0.15 -> 8190 | C92: =C99*2*0.15 -> 9360 | D92: =D99*2*0.15 -> 10530 | E92: =E99*2*0.15 -> 11685 | F92: =F99*2*0.15 -> 12630 | G92: =G99*2*0.15 -> 13560 | H92: 14490 | I92: 15435 | J92: 204 | K92: 219 | L92: 263 | M92: 303 | N92: 339 | O92: 374
A93: Colusa0.2 | B93: =B99*2*0.2 -> 10920 | C93: =C99*2*0.2 -> 12480 | D93: 14040 | E93: 15580 | F93: 16840 | G93: 18080 | H93: 19320 | I93: 20580 | J93: 273 | K93: 292 | L93: 351 | M93: 405 | N93: 452 | O93: 498
A94: Colusa0.25 | B94: =B99*2*0.25 -> 13650 | C94: =C99*2*0.25 -> 15600 | D94: 17550 | E94: 19475 | F94: 21050 | G94: 22600 | H94: 24150 | I94: 25725 | J94: 341 | K94: 365 | L94: 438 | M94: 506 | N94: 565 | O94: 623
A95: Colusa0.3 | B95: =B99*2*0.3 -> 16380 | C95: =C99*2*0.3 -> 18720 | D95: 21060 | E95: 23370 | F95: 25260 | G95: 27120 | H95: 28980 | I95: 30870 | J95: 409 | K95: 438 | L95: 526 | M95: 607 | N95: 678 | O95: 748
A96: Colusa0.35 | B96: =B99*2*0.35 -> 19110 | C96: =C99*2*0.35 -> 21840 | D96: 24570 | E96: 27265 | F96: 29470 | G96: 31640 | H96: 33810 | I96: 36015 | J96: 477 | K96: 511 | L96: 614 | M96: 709 | N96: 791 | O96: 872
A97: Colusa0.4 | B97: =B99*2*0.4 -> 21840 | C97: =C99*2*0.4 -> 24960 | D97: 28080 | E97: 31160 | F97: 33680 | G97: 36160 | H97: 38640 | I97: 41160 | J97: 546 | K97: 585 | L97: 702 | M97: 810 | N97: 904 | O97: 997
A98: Colusa0.45 | B98: =B99*2*0.45 -> 24570 | C98: =C99*2*0.45 -> 28080 | D98: 31590 | E98: 35055 | F98: 37890 | G98: 40680 | H98: 43470 | I98: 46305 | J98: 614 | K98: 658 | L98: 789 | M98: 911 | N98: 1017 | O98: 1122
A99: Colusa0.5 | B99: ='MTSP 50% Income Limits '!B7 -> 27300 | C99: ='MTSP 50% Income Limits '!C7 -> 31200 | D99: ='MTSP 50% Income Limits '!D7 -> 35100 | E99: ='MTSP 50% Income Limits '!E7 -> 38950 | F99: ='MTSP 50% Income Limits '!F7 -> 42100 | G99: ='MTSP 50% Income Limits '!G7 -> 45200 | H99: ='MTSP 50% Income Limits '!H7 -> 48300 | I99: ='MTSP 50% Income Limits '!I7 -> 51450 | J99: =TRUNC(B99/12*0.3) -> 682 | K99: =TRUNC((B99+C99)/2/12*0.3) -> 731 | L99: =TRUNC((D99)/12*0.3) -> 877 | M99: =TRUNC(((E99+F99)/2)/12*0.3) -> 1013 | N99: =TRUNC(G99/12*0.3) -> 1130 | O99: =TRUNC(((H99+I99)/2)/12*0.3) -> 1246
A100: Colusa0.55 | B100: =B99*2*0.55 -> 30030 | C100: =C99*2*0.55 -> 34320 | D100: 38610 | E100: 42845 | F100: 46310 | G100: 49720 | H100: 53130 | I100: 56595 | J100: =TRUNC(B100/12*0.3) -> 750 | K100: =TRUNC((B100+C100)/2/12*0.3) -> 804 | L100: =TRUNC((D100)/12*0.3) -> 965 | M100: =TRUNC(((E100+F100)/2)/12*0.3) -> 1114 | N100: =TRUNC(G100/12*0.3) -> 1243 | O100: =TRUNC(((H100+I100)/2)/12*0.3) -> 1371
A101: Colusa0.6 | B101: =B99*2*0.6 -> 32760 | C101: =C99*2*0.6 -> 37440 | D101: 42120 | E101: 46740 | F101: 50520 | G101: 54240 | H101: 57960 | I101: 61740 | J101: 819 | K101: 877 | L101: 1053 | M101: 1215 | N101: 1356 | O101: 1496
A102: Colusa0.65 | B102: =B99*2*0.65 -> 35490 | C102: =C99*2*0.65 -> 40560 | D102: 45630 | E102: 50635 | F102: 54730 | G102: 58760 | H102: 62790 | I102: 66885 | J102: 887 | K102: 950 | L102: 1140 | M102: 1317 | N102: 1469 | O102: 1620
A103: Colusa0.7 | B103: =B99*2*0.7 -> 38220 | C103: =C99*2*0.7 -> 43680 | D103: 49140 | E103: 54530 | F103: 58940 | G103: 63280 | H103: 67620 | I103: 72030 | J103: 955 | K103: 1023 | L103: 1228 | M103: 1418 | N103: 1582 | O103: 1745
A104: Colusa0.75 | B104: =B99*2*0.75 -> 40950 | C104: =C99*2*0.75 -> 46800 | D104: 52650 | E104: 58425 | F104: 63150 | G104: 67800 | H104: 72450 | I104: 77175 | J104: 1023 | K104: 1096 | L104: 1316 | M104: 1519 | N104: 1695 | O104: 1870
A105: Colusa0.8 | B105: =B99*2*0.8 -> 43680 | C105: =C99*2*0.8 -> 49920 | D105: 56160 | E105: 62320 | F105: 67360 | G105: 72320 | H105: 77280 | I105: 82320 | J105: 1092 | K105: 1170 | L105: 1404 | M105: 1621 | N105: 1808 | O105: 1995
A106: Colusa0.9 | B106: =B99*2*0.9 -> 49140 | C106: =C99*2*0.9 -> 56160 | D106: 63180 | E106: 70110 | F106: 75780 | G106: 81360 | H106: 86940 | I106: 92610 | J106: 1228 | K106: 1316 | L106: 1579 | M106: 1823 | N106: 2034 | O106: 2244
A107: Colusa1 | B107: =B99*2 -> 54600 | C107: =C99*2 -> 62400 | D107: 70200 | E107: 77900 | F107: 84200 | G107: 90400 | H107: 96600 | I107: 102900 | J107: =J99*2 -> 1364 | K107: =K99*2 -> 1462 | L107: 1754 | M107: 2026 | N107: 2260 | O107: 2492
A108: Colusa1.1 | B108: =B99*2*1.1 -> 60060 | C108: =C99*2*1.1 -> 68640 | D108: 77220 | E108: 85690 | F108: 92620 | G108: 99440 | H108: 106260 | I108: 113190 | J108: =TRUNC(B108/12*0.3) -> 1501 | K108: =TRUNC((B108+C108)/2/12*0.3) -> 1608 | L108: =TRUNC((D108)/12*0.3) -> 1930 | M108: =TRUNC(((E108+F108)/2)/12*0.3) -> 2228 | N108: =TRUNC(G108/12*0.3) -> 2486 | O108: =TRUNC(((H108+I108)/2)/12*0.3) -> 2743
A109: Colusa1.2 | B109: =B99*2*1.2 -> 65520 | C109: =C99*2*1.2 -> 74880 | D109: 84240 | E109: 93480 | F109: 101040 | G109: 108480 | H109: 115920 | I109: 123480 | J109: 1638 | K109: 1755 | L109: 2106 | M109: 2431 | N109: 2712 | O109: 2992
A110: Contra Costa0.15 | B110: =B117*2*0.15 -> 15000 | C110: =C117*2*0.15 -> 17145 | D110: =D117*2*0.15 -> 19290 | E110: =E117*2*0.15 -> 21420 | F110: =F117*2*0.15 -> 23145 | G110: =G117*2*0.15 -> 24855 | H110: 26565 | I110: 28275 | J110: 375 | K110: 401 | L110: 482 | M110: 557 | N110: 621 | O110: 685
A111: Contra Costa0.2 | B111: =B117*2*0.2 -> 20000 | C111: =C117*2*0.2 -> 22860 | D111: 25720 | E111: 28560 | F111: 30860 | G111: 33140 | H111: 35420 | I111: 37700 | J111: 500 | K111: 535 | L111: 643 | M111: 742 | N111: 828 | O111: 914
A112: Contra Costa0.25 | B112: =B117*2*0.25 -> 25000 | C112: =C117*2*0.25 -> 28575 | D112: 32150 | E112: 35700 | F112: 38575 | G112: 41425 | H112: 44275 | I112: 47125 | J112: 625 | K112: 669 | L112: 803 | M112: 928 | N112: 1035 | O112: 1142
A113: Contra Costa0.3 | B113: =B117*2*0.3 -> 30000 | C113: =C117*2*0.3 -> 34290 | D113: 38580 | E113: 42840 | F113: 46290 | G113: 49710 | H113: 53130 | I113: 56550 | J113: 750 | K113: 803 | L113: 964 | M113: 1114 | N113: 1242 | O113: 1371
A114: Contra Costa0.35 | B114: =B117*2*0.35 -> 35000 | C114: =C117*2*0.35 -> 40005 | D114: 45010 | E114: 49980 | F114: 54005 | G114: 57995 | H114: 61985 | I114: 65975 | J114: 875 | K114: 937 | L114: 1125 | M114: 1299 | N114: 1449 | O114: 1599
A115: Contra Costa0.4 | B115: =B117*2*0.4 -> 40000 | C115: =C117*2*0.4 -> 45720 | D115: 51440 | E115: 57120 | F115: 61720 | G115: 66280 | H115: 70840 | I115: 75400 | J115: 1000 | K115: 1071 | L115: 1286 | M115: 1485 | N115: 1657 | O115: 1828
A116: Contra Costa0.45 | B116: =B117*2*0.45 -> 45000 | C116: =C117*2*0.45 -> 51435 | D116: 57870 | E116: 64260 | F116: 69435 | G116: 74565 | H116: 79695 | I116: 84825 | J116: 1125 | K116: 1205 | L116: 1446 | M116: 1671 | N116: 1864 | O116: 2056
A117: Contra Costa0.5 | B117: ='MTSP 50% Income Limits '!B8 -> 50000 | C117: ='MTSP 50% Income Limits '!C8 -> 57150 | D117: ='MTSP 50% Income Limits '!D8 -> 64300 | E117: ='MTSP 50% Income Limits '!E8 -> 71400 | F117: ='MTSP 50% Income Limits '!F8 -> 77150 | G117: ='MTSP 50% Income Limits '!G8 -> 82850 | H117: ='MTSP 50% Income Limits '!H8 -> 88550 | I117: ='MTSP 50% Income Limits '!I8 -> 94250 | J117: =TRUNC(B117/12*0.3) -> 1250 | K117: =TRUNC((B117+C117)/2/12*0.3) -> 1339 | L117: =TRUNC((D117)/12*0.3) -> 1607 | M117: =TRUNC(((E117+F117)/2)/12*0.3) -> 1856 | N117: =TRUNC(G117/12*0.3) -> 2071 | O117: =TRUNC(((H117+I117)/2)/12*0.3) -> 2285
A118: Contra Costa0.55 | B118: =B117*2*0.55 -> 55000 | C118: =C117*2*0.55 -> 62865 | D118: 70730 | E118: 78540 | F118: 84865 | G118: 91135 | H118: 97405 | I118: 103675 | J118: =TRUNC(B118/12*0.3) -> 1375 | K118: =TRUNC((B118+C118)/2/12*0.3) -> 1473 | L118: =TRUNC((D118)/12*0.3) -> 1768 | M118: =TRUNC(((E118+F118)/2)/12*0.3) -> 2042 | N118: =TRUNC(G118/12*0.3) -> 2278 | O118: =TRUNC(((H118+I118)/2)/12*0.3) -> 2513
A119: Contra Costa0.6 | B119: =B117*2*0.6 -> 60000 | C119: =C117*2*0.6 -> 68580 | D119: 77160 | E119: 85680 | F119: 92580 | G119: 99420 | H119: 106260 | I119: 113100 | J119: 1500 | K119: 1607 | L119: 1929 | M119: 2228 | N119: 2485 | O119: 2742
A120: Contra Costa0.65 | B120: =B117*2*0.65 -> 65000 | C120: =C117*2*0.65 -> 74295 | D120: 83590 | E120: 92820 | F120: 100295 | G120: 107705 | H120: 115115 | I120: 122525 | J120: 1625 | K120: 1741 | L120: 2089 | M120: 2413 | N120: 2692 | O120: 2970
A121: Contra Costa0.7 | B121: =B117*2*0.7 -> 70000 | C121: =C117*2*0.7 -> 80010 | D121: 90020 | E121: 99960 | F121: 108010 | G121: 115990 | H121: 123970 | I121: 131950 | J121: 1750 | K121: 1875 | L121: 2250 | M121: 2599 | N121: 2899 | O121: 3199
A122: Contra Costa0.75 | B122: =B117*2*0.75 -> 75000 | C122: =C117*2*0.75 -> 85725 | D122: 96450 | E122: 107100 | F122: 115725 | G122: 124275 | H122: 132825 | I122: 141375 | J122: 1875 | K122: 2009 | L122: 2411 | M122: 2785 | N122: 3106 | O122: 3427
A123: Contra Costa0.8 | B123: =B117*2*0.8 -> 80000 | C123: =C117*2*0.8 -> 91440 | D123: 102880 | E123: 114240 | F123: 123440 | G123: 132560 | H123: 141680 | I123: 150800 | J123: 2000 | K123: 2143 | L123: 2572 | M123: 2971 | N123: 3314 | O123: 3656
A124: Contra Costa0.9 | B124: =B117*2*0.9 -> 90000 | C124: =C117*2*0.9 -> 102870 | D124: 115740 | E124: 128520 | F124: 138870 | G124: 149130 | H124: 159390 | I124: 169650 | J124: 2250 | K124: 2410 | L124: 2893 | M124: 3342 | N124: 3728 | O124: 4113
A125: Contra Costa1 | B125: =B117*2 -> 100000 | C125: =C117*2 -> 114300 | D125: 128600 | E125: 142800 | F125: 154300 | G125: 165700 | H125: 177100 | I125: 188500 | J125: =J117*2 -> 2500 | K125: =K117*2 -> 2678 | L125: 3214 | M125: 3712 | N125: 4142 | O125: 4570
A126: Contra Costa1.1 | B126: =B117*2*1.1 -> 110000 | C126: =C117*2*1.1 -> 125730 | D126: 141460 | E126: 157080 | F126: 169730 | G126: 182270 | H126: 194810 | I126: 207350 | J126: =TRUNC(B126/12*0.3) -> 2750 | K126: =TRUNC((B126+C126)/2/12*0.3) -> 2946 | L126: =TRUNC((D126)/12*0.3) -> 3536 | M126: =TRUNC(((E126+F126)/2)/12*0.3) -> 4085 | N126: =TRUNC(G126/12*0.3) -> 4556 | O126: =TRUNC(((H126+I126)/2)/12*0.3) -> 5027
A127: Contra Costa1.2 | B127: =B117*2*1.2 -> 120000 | C127: =C117*2*1.2 -> 137160 | D127: 154320 | E127: 171360 | F127: 185160 | G127: 198840 | H127: 212520 | I127: 226200 | J127: 3000 | K127: 3214 | L127: 3858 | M127: 4456 | N127: 4971 | O127: 5484
A128: Del Norte0.15 | B128: =B135*2*0.15 -> 8190 | C128: =C135*2*0.15 -> 9360 | D128: =D135*2*0.15 -> 10530 | E128: =E135*2*0.15 -> 11685 | F128: =F135*2*0.15 -> 12630 | G128: =G135*2*0.15 -> 13560 | H128: 14490 | I128: 15435 | J128: 204 | K128: 219 | L128: 263 | M128: 303 | N128: 339 | O128: 374
A129: Del Norte0.2 | B129: =B135*2*0.2 -> 10920 | C129: =C135*2*0.2 -> 12480 | D129: 14040 | E129: 15580 | F129: 16840 | G129: 18080 | H129: 19320 | I129: 20580 | J129: 273 | K129: 292 | L129: 351 | M129: 405 | N129: 452 | O129: 498
A130: Del Norte0.25 | B130: =B135*2*0.25 -> 13650 | C130: =C135*2*0.25 -> 15600 | D130: 17550 | E130: 19475 | F130: 21050 | G130: 22600 | H130: 24150 | I130: 25725 | J130: 341 | K130: 365 | L130: 438 | M130: 506 | N130: 565 | O130: 623
A131: Del Norte0.3 | B131: =B135*2*0.3 -> 16380 | C131: =C135*2*0.3 -> 18720 | D131: 21060 | E131: 23370 | F131: 25260 | G131: 27120 | H131: 28980 | I131: 30870 | J131: 409 | K131: 438 | L131: 526 | M131: 607 | N131: 678 | O131: 748
A132: Del Norte0.35 | B132: =B135*2*0.35 -> 19110 | C132: =C135*2*0.35 -> 21840 | D132: 24570 | E132: 27265 | F132: 29470 | G132: 31640 | H132: 33810 | I132: 36015 | J132: 477 | K132: 511 | L132: 614 | M132: 709 | N132: 791 | O132: 872
A133: Del Norte0.4 | B133: =B135*2*0.4 -> 21840 | C133: =C135*2*0.4 -> 24960 | D133: 28080 | E133: 31160 | F133: 33680 | G133: 36160 | H133: 38640 | I133: 41160 | J133: 546 | K133: 585 | L133: 702 | M133: 810 | N133: 904 | O133: 997
A134: Del Norte0.45 | B134: =B135*2*0.45 -> 24570 | C134: =C135*2*0.45 -> 28080 | D134: 31590 | E134: 35055 | F134: 37890 | G134: 40680 | H134: 43470 | I134: 46305 | J134: 614 | K134: 658 | L134: 789 | M134: 911 | N134: 1017 | O134: 1122
A135: Del Norte0.5 | B135: ='MTSP 50% Income Limits '!B9 -> 27300 | C135: ='MTSP 50% Income Limits '!C9 -> 31200 | D135: ='MTSP 50% Income Limits '!D9 -> 35100 | E135: ='MTSP 50% Income Limits '!E9 -> 38950 | F135: ='MTSP 50% Income Limits '!F9 -> 42100 | G135: ='MTSP 50% Income Limits '!G9 -> 45200 | H135: ='MTSP 50% Income Limits '!H9 -> 48300 | I135: ='MTSP 50% Income Limits '!I9 -> 51450 | J135: =TRUNC(B135/12*0.3) -> 682 | K135: =TRUNC((B135+C135)/2/12*0.3) -> 731 | L135: =TRUNC((D135)/12*0.3) -> 877 | M135: =TRUNC(((E135+F135)/2)/12*0.3) -> 1013 | N135: =TRUNC(G135/12*0.3) -> 1130 | O135: =TRUNC(((H135+I135)/2)/12*0.3) -> 1246
A136: Del Norte0.55 | B136: =B135*2*0.55 -> 30030 | C136: =C135*2*0.55 -> 34320 | D136: 38610 | E136: 42845 | F136: 46310 | G136: 49720 | H136: 53130 | I136: 56595 | J136: =TRUNC(B136/12*0.3) -> 750 | K136: =TRUNC((B136+C136)/2/12*0.3) -> 804 | L136: =TRUNC((D136)/12*0.3) -> 965 | M136: =TRUNC(((E136+F136)/2)/12*0.3) -> 1114 | N136: =TRUNC(G136/12*0.3) -> 1243 | O136: =TRUNC(((H136+I136)/2)/12*0.3) -> 1371
A137: Del Norte0.6 | B137: =B135*2*0.6 -> 32760 | C137: =C135*2*0.6 -> 37440 | D137: 42120 | E137: 46740 | F137: 50520 | G137: 54240 | H137: 57960 | I137: 61740 | J137: 819 | K137: 877 | L137: 1053 | M137: 1215 | N137: 1356 | O137: 1496
A138: Del Norte0.65 | B138: =B135*2*0.65 -> 35490 | C138: =C135*2*0.65 -> 40560 | D138: 45630 | E138: 50635 | F138: 54730 | G138: 58760 | H138: 62790 | I138: 66885 | J138: 887 | K138: 950 | L138: 1140 | M138: 1317 | N138: 1469 | O138: 1620
A139: Del Norte0.7 | B139: =B135*2*0.7 -> 38220 | C139: =C135*2*0.7 -> 43680 | D139: 49140 | E139: 54530 | F139: 58940 | G139: 63280 | H139: 67620 | I139: 72030 | J139: 955 | K139: 1023 | L139: 1228 | M139: 1418 | N139: 1582 | O139: 1745
A140: Del Norte0.75 | B140: =B135*2*0.75 -> 40950 | C140: =C135*2*0.75 -> 46800 | D140: 52650 | E140: 58425 | F140: 63150 | G140: 67800 | H140: 72450 | I140: 77175 | J140: 1023 | K140: 1096 | L140: 1316 | M140: 1519 | N140: 1695 | O140: 1870
A141: Del Norte0.8 | B141: =B135*2*0.8 -> 43680 | C141: =C135*2*0.8 -> 49920 | D141: 56160 | E141: 62320 | F141: 67360 | G141: 72320 | H141: 77280 | I141: 82320 | J141: 1092 | K141: 1170 | L141: 1404 | M141: 1621 | N141: 1808 | O141: 1995
A142: Del Norte0.9 | B142: =B135*2*0.9 -> 49140 | C142: =C135*2*0.9 -> 56160 | D142: 63180 | E142: 70110 | F142: 75780 | G142: 81360 | H142: 86940 | I142: 92610 | J142: 1228 | K142: 1316 | L142: 1579 | M142: 1823 | N142: 2034 | O142: 2244
A143: Del Norte1 | B143: =B135*2 -> 54600 | C143: =C135*2 -> 62400 | D143: 70200 | E143: 77900 | F143: 84200 | G143: 90400 | H143: 96600 | I143: 102900 | J143: =J135*2 -> 1364 | K143: =K135*2 -> 1462 | L143: 1754 | M143: 2026 | N143: 2260 | O143: 2492
A144: Del Norte1.1 | B144: =B135*2*1.1 -> 60060 | C144: =C135*2*1.1 -> 68640 | D144: 77220 | E144: 85690 | F144: 92620 | G144: 99440 | H144: 106260 | I144: 113190 | J144: =TRUNC(B144/12*0.3) -> 1501 | K144: =TRUNC((B144+C144)/2/12*0.3) -> 1608 | L144: =TRUNC((D144)/12*0.3) -> 1930 | M144: =TRUNC(((E144+F144)/2)/12*0.3) -> 2228 | N144: =TRUNC(G144/12*0.3) -> 2486 | O144: =TRUNC(((H144+I144)/2)/12*0.3) -> 2743
A145: Del Norte1.2 | B145: =B135*2*1.2 -> 65520 | C145: =C135*2*1.2 -> 74880 | D145: 84240 | E145: 93480 | F145: 101040 | G145: 108480 | H145: 115920 | I145: 123480 | J145: 1638 | K145: 1755 | L145: 2106 | M145: 2431 | N145: 2712 | O145: 2992
A146: El Dorado0.15 | B146: =B153*2*0.15 -> 10650 | C146: =C153*2*0.15 -> 12165 | D146: =D153*2*0.15 -> 13680 | E146: =E153*2*0.15 -> 15195 | F146: =F153*2*0.15 -> 16425 | G146: =G153*2*0.15 -> 17640 | H146: 18855 | I146: 20070 | J146: 266 | K146: 285 | L146: 342 | M146: 395 | N146: 441 | O146: 486
A147: El Dorado0.2 | B147: =B153*2*0.2 -> 14200 | C147: =C153*2*0.2 -> 16220 | D147: 18240 | E147: 20260 | F147: 21900 | G147: 23520 | H147: 25140 | I147: 26760 | J147: 355 | K147: 380 | L147: 456 | M147: 527 | N147: 588 | O147: 648
A148: El Dorado0.25 | B148: =B153*2*0.25 -> 17750 | C148: =C153*2*0.25 -> 20275 | D148: 22800 | E148: 25325 | F148: 27375 | G148: 29400 | H148: 31425 | I148: 33450 | J148: 443 | K148: 475 | L148: 570 | M148: 658 | N148: 735 | O148: 810
A149: El Dorado0.3 | B149: =B153*2*0.3 -> 21300 | C149: =C153*2*0.3 -> 24330 | D149: 27360 | E149: 30390 | F149: 32850 | G149: 35280 | H149: 37710 | I149: 40140 | J149: 532 | K149: 570 | L149: 684 | M149: 790 | N149: 882 | O149: 973
A150: El Dorado0.35 | B150: =B153*2*0.35 -> 24850 | C150: =C153*2*0.35 -> 28385 | D150: 31920 | E150: 35455 | F150: 38325 | G150: 41160 | H150: 43995 | I150: 46830 | J150: 621 | K150: 665 | L150: 798 | M150: 922 | N150: 1029 | O150: 1135
A151: El Dorado0.4 | B151: =B153*2*0.4 -> 28400 | C151: =C153*2*0.4 -> 32440 | D151: 36480 | E151: 40520 | F151: 43800 | G151: 47040 | H151: 50280 | I151: 53520 | J151: 710 | K151: 760 | L151: 912 | M151: 1054 | N151: 1176 | O151: 1297
A152: El Dorado0.45 | B152: =B153*2*0.45 -> 31950 | C152: =C153*2*0.45 -> 36495 | D152: 41040 | E152: 45585 | F152: 49275 | G152: 52920 | H152: 56565 | I152: 60210 | J152: 798 | K152: 855 | L152: 1026 | M152: 1185 | N152: 1323 | O152: 1459
A153: El Dorado0.5 | B153: ='MTSP 50% Income Limits '!B10 -> 35500 | C153: ='MTSP 50% Income Limits '!C10 -> 40550 | D153: ='MTSP 50% Income Limits '!D10 -> 45600 | E153: ='MTSP 50% Income Limits '!E10 -> 50650 | F153: ='MTSP 50% Income Limits '!F10 -> 54750 | G153: ='MTSP 50% Income Limits '!G10 -> 58800 | H153: ='MTSP 50% Income Limits '!H10 -> 62850 | I153: ='MTSP 50% Income Limits '!I10 -> 66900 | J153: =TRUNC(B153/12*0.3) -> 887 | K153: =TRUNC((B153+C153)/2/12*0.3) -> 950 | L153: =TRUNC((D153)/12*0.3) -> 1140 | M153: =TRUNC(((E153+F153)/2)/12*0.3) -> 1317 | N153: =TRUNC(G153/12*0.3) -> 1470 | O153: =TRUNC(((H153+I153)/2)/12*0.3) -> 1621
A154: El Dorado0.55 | B154: =B153*2*0.55 -> 39050 | C154: =C153*2*0.55 -> 44605 | D154: 50160 | E154: 55715 | F154: 60225 | G154: 64680 | H154: 69135 | I154: 73590 | J154: =TRUNC(B154/12*0.3) -> 976 | K154: =TRUNC((B154+C154)/2/12*0.3) -> 1045 | L154: =TRUNC((D154)/12*0.3) -> 1254 | M154: =TRUNC(((E154+F154)/2)/12*0.3) -> 1449 | N154: =TRUNC(G154/12*0.3) -> 1617 | O154: =TRUNC(((H154+I154)/2)/12*0.3) -> 1784
A155: El Dorado0.6 | B155: =B153*2*0.6 -> 42600 | C155: =C153*2*0.6 -> 48660 | D155: 54720 | E155: 60780 | F155: 65700 | G155: 70560 | H155: 75420 | I155: 80280 | J155: 1065 | K155: 1140 | L155: 1368 | M155: 1581 | N155: 1764 | O155: 1946
A156: El Dorado0.65 | B156: =B153*2*0.65 -> 46150 | C156: =C153*2*0.65 -> 52715 | D156: 59280 | E156: 65845 | F156: 71175 | G156: 76440 | H156: 81705 | I156: 86970 | J156: 1153 | K156: 1235 | L156: 1482 | M156: 1712 | N156: 1911 | O156: 2108
A157: El Dorado0.7 | B157: =B153*2*0.7 -> 49700 | C157: =C153*2*0.7 -> 56770 | D157: 63840 | E157: 70910 | F157: 76650 | G157: 82320 | H157: 87990 | I157: 93660 | J157: 1242 | K157: 1330 | L157: 1596 | M157: 1844 | N157: 2058 | O157: 2270
A158: El Dorado0.75 | B158: =B153*2*0.75 -> 53250 | C158: =C153*2*0.75 -> 60825 | D158: 68400 | E158: 75975 | F158: 82125 | G158: 88200 | H158: 94275 | I158: 100350 | J158: 1331 | K158: 1425 | L158: 1710 | M158: 1976 | N158: 2205 | O158: 2432
A159: El Dorado0.8 | B159: =B153*2*0.8 -> 56800 | C159: =C153*2*0.8 -> 64880 | D159: 72960 | E159: 81040 | F159: 87600 | G159: 94080 | H159: 100560 | I159: 107040 | J159: 1420 | K159: 1521 | L159: 1824 | M159: 2108 | N159: 2352 | O159: 2595
A160: El Dorado0.9 | B160: =B153*2*0.9 -> 63900 | C160: =C153*2*0.9 -> 72990 | D160: 82080 | E160: 91170 | F160: 98550 | G160: 105840 | H160: 113130 | I160: 120420 | J160: 1597 | K160: 1711 | L160: 2052 | M160: 2371 | N160: 2646 | O160: 2919
A161: El Dorado1 | B161: =B153*2 -> 71000 | C161: =C153*2 -> 81100 | D161: 91200 | E161: 101300 | F161: 109500 | G161: 117600 | H161: 125700 | I161: 133800 | J161: =J153*2 -> 1774 | K161: =K153*2 -> 1900 | L161: 2280 | M161: 2634 | N161: 2940 | O161: 3242
A162: El Dorado1.1 | B162: =B153*2*1.1 -> 78100 | C162: =C153*2*1.1 -> 89210 | D162: 100320 | E162: 111430 | F162: 120450 | G162: 129360 | H162: 138270 | I162: 147180 | J162: =TRUNC(B162/12*0.3) -> 1952 | K162: =TRUNC((B162+C162)/2/12*0.3) -> 2091 | L162: =TRUNC((D162)/12*0.3) -> 2508 | M162: =TRUNC(((E162+F162)/2)/12*0.3) -> 2898 | N162: =TRUNC(G162/12*0.3) -> 3234 | O162: =TRUNC(((H162+I162)/2)/12*0.3) -> 3568
A163: El Dorado1.2 | B163: =B153*2*1.2 -> 85200 | C163: =C153*2*1.2 -> 97320 | D163: 109440 | E163: 121560 | F163: 131400 | G163: 141120 | H163: 150840 | I163: 160560 | J163: 2130 | K163: 2281 | L163: 2736 | M163: 3162 | N163: 3528 | O163: 3892
A164: Fresno0.15 | B164: =B171*2*0.15 -> 8190 | C164: =C171*2*0.15 -> 9360 | D164: =D171*2*0.15 -> 10530 | E164: =E171*2*0.15 -> 11685 | F164: =F171*2*0.15 -> 12630 | G164: =G171*2*0.15 -> 13560 | H164: 14490 | I164: 15435 | J164: 204 | K164: 219 | L164: 263 | M164: 303 | N164: 339 | O164: 374
A165: Fresno0.2 | B165: =B171*2*0.2 -> 10920 | C165: =C171*2*0.2 -> 12480 | D165: 14040 | E165: 15580 | F165: 16840 | G165: 18080 | H165: 19320 | I165: 20580 | J165: 273 | K165: 292 | L165: 351 | M165: 405 | N165: 452 | O165: 498
A166: Fresno0.25 | B166: =B171*2*0.25 -> 13650 | C166: =C171*2*0.25 -> 15600 | D166: 17550 | E166: 19475 | F166: 21050 | G166: 22600 | H166: 24150 | I166: 25725 | J166: 341 | K166: 365 | L166: 438 | M166: 506 | N166: 565 | O166: 623
A167: Fresno0.3 | B167: =B171*2*0.3 -> 16380 | C167: =C171*2*0.3 -> 18720 | D167: 21060 | E167: 23370 | F167: 25260 | G167: 27120 | H167: 28980 | I167: 30870 | J167: 409 | K167: 438 | L167: 526 | M167: 607 | N167: 678 | O167: 748
A168: Fresno0.35 | B168: =B171*2*0.35 -> 19110 | C168: =C171*2*0.35 -> 21840 | D168: 24570 | E168: 27265 | F168: 29470 | G168: 31640 | H168: 33810 | I168: 36015 | J168: 477 | K168: 511 | L168: 614 | M168: 709 | N168: 791 | O168: 872
A169: Fresno0.4 | B169: =B171*2*0.4 -> 21840 | C169: =C171*2*0.4 -> 24960 | D169: 28080 | E169: 31160 | F169: 33680 | G169: 36160 | H169: 38640 | I169: 41160 | J169: 546 | K169: 585 | L169: 702 | M169: 810 | N169: 904 | O169: 997
A170: Fresno0.45 | B170: =B171*2*0.45 -> 24570 | C170: =C171*2*0.45 -> 28080 | D170: 31590 | E170: 35055 | F170: 37890 | G170: 40680 | H170: 43470 | I170: 46305 | J170: 614 | K170: 658 | L170: 789 | M170: 911 | N170: 1017 | O170: 1122
A171: Fresno0.5 | B171: ='MTSP 50% Income Limits '!B11 -> 27300 | C171: ='MTSP 50% Income Limits '!C11 -> 31200 | D171: ='MTSP 50% Income Limits '!D11 -> 35100 | E171: ='MTSP 50% Income Limits '!E11 -> 38950 | F171: ='MTSP 50% Income Limits '!F11 -> 42100 | G171: ='MTSP 50% Income Limits '!G11 -> 45200 | H171: ='MTSP 50% Income Limits '!H11 -> 48300 | I171: ='MTSP 50% Income Limits '!I11 -> 51450 | J171: =TRUNC(B171/12*0.3) -> 682 | K171: =TRUNC((B171+C171)/2/12*0.3) -> 731 | L171: =TRUNC((D171)/12*0.3) -> 877 | M171: =TRUNC(((E171+F171)/2)/12*0.3) -> 1013 | N171: =TRUNC(G171/12*0.3) -> 1130 | O171: =TRUNC(((H171+I171)/2)/12*0.3) -> 1246
A172: Fresno0.55 | B172: =B171*2*0.55 -> 30030 | C172: =C171*2*0.55 -> 34320 | D172: 38610 | E172: 42845 | F172: 46310 | G172: 49720 | H172: 53130 | I172: 56595 | J172: =TRUNC(B172/12*0.3) -> 750 | K172: =TRUNC((B172+C172)/2/12*0.3) -> 804 | L172: =TRUNC((D172)/12*0.3) -> 965 | M172: =TRUNC(((E172+F172)/2)/12*0.3) -> 1114 | N172: =TRUNC(G172/12*0.3) -> 1243 | O172: =TRUNC(((H172+I172)/2)/12*0.3) -> 1371
A173: Fresno0.6 | B173: =B171*2*0.6 -> 32760 | C173: =C171*2*0.6 -> 37440 | D173: 42120 | E173: 46740 | F173: 50520 | G173: 54240 | H173: 57960 | I173: 61740 | J173: 819 | K173: 877 | L173: 1053 | M173: 1215 | N173: 1356 | O173: 1496
A174: Fresno0.65 | B174: =B171*2*0.65 -> 35490 | C174: =C171*2*0.65 -> 40560 | D174: 45630 | E174: 50635 | F174: 54730 | G174: 58760 | H174: 62790 | I174: 66885 | J174: 887 | K174: 950 | L174: 1140 | M174: 1317 | N174: 1469 | O174: 1620
A175: Fresno0.7 | B175: =B171*2*0.7 -> 38220 | C175: =C171*2*0.7 -> 43680 | D175: 49140 | E175: 54530 | F175: 58940 | G175: 63280 | H175: 67620 | I175: 72030 | J175: 955 | K175: 1023 | L175: 1228 | M175: 1418 | N175: 1582 | O175: 1745
A176: Fresno0.75 | B176: =B171*2*0.75 -> 40950 | C176: =C171*2*0.75 -> 46800 | D176: 52650 | E176: 58425 | F176: 63150 | G176: 67800 | H176: 72450 | I176: 77175 | J176: 1023 | K176: 1096 | L176: 1316 | M176: 1519 | N176: 1695 | O176: 1870
A177: Fresno0.8 | B177: =B171*2*0.8 -> 43680 | C177: =C171*2*0.8 -> 49920 | D177: 56160 | E177: 62320 | F177: 67360 | G177: 72320 | H177: 77280 | I177: 82320 | J177: 1092 | K177: 1170 | L177: 1404 | M177: 1621 | N177: 1808 | O177: 1995
A178: Fresno0.9 | B178: =B171*2*0.9 -> 49140 | C178: =C171*2*0.9 -> 56160 | D178: 63180 | E178: 70110 | F178: 75780 | G178: 81360 | H178: 86940 | I178: 92610 | J178: 1228 | K178: 1316 | L178: 1579 | M178: 1823 | N178: 2034 | O178: 2244
A179: Fresno1 | B179: =B171*2 -> 54600 | C179: =C171*2 -> 62400 | D179: 70200 | E179: 77900 | F179: 84200 | G179: 90400 | H179: 96600 | I179: 102900 | J179: =J171*2 -> 1364 | K179: =K171*2 -> 1462 | L179: 1754 | M179: 2026 | N179: 2260 | O179: 2492
A180: Fresno1.1 | B180: =B171*2*1.1 -> 60060 | C180: =C171*2*1.1 -> 68640 | D180: 77220 | E180: 85690 | F180: 92620 | G180: 99440 | H180: 106260 | I180: 113190 | J180: =TRUNC(B180/12*0.3) -> 1501 | K180: =TRUNC((B180+C180)/2/12*0.3) -> 1608 | L180: =TRUNC((D180)/12*0.3) -> 1930 | M180: =TRUNC(((E180+F180)/2)/12*0.3) -> 2228 | N180: =TRUNC(G180/12*0.3) -> 2486 | O180: =TRUNC(((H180+I180)/2)/12*0.3) -> 2743
A181: Fresno1.2 | B181: =B171*2*1.2 -> 65520 | C181: =C171*2*1.2 -> 74880 | D181: 84240 | E181: 93480 | F181: 101040 | G181: 108480 | H181: 115920 | I181: 123480 | J181: 1638 | K181: 1755 | L181: 2106 | M181: 2431 | N181: 2712 | O181: 2992
A182: Glenn0.15 | B182: =B189*2*0.15 -> 8190 | C182: =C189*2*0.15 -> 9360 | D182: =D189*2*0.15 -> 10530 | E182: =E189*2*0.15 -> 11685 | F182: =F189*2*0.15 -> 12630 | G182: =G189*2*0.15 -> 13560 | H182: 14490 | I182: 15435 | J182: 204 | K182: 219 | L182: 263 | M182: 303 | N182: 339 | O182: 374
A183: Glenn0.2 | B183: =B189*2*0.2 -> 10920 | C183: =C189*2*0.2 -> 12480 | D183: 14040 | E183: 15580 | F183: 16840 | G183: 18080 | H183: 19320 | I183: 20580 | J183: 273 | K183: 292 | L183: 351 | M183: 405 | N183: 452 | O183: 498
A184: Glenn0.25 | B184: =B189*2*0.25 -> 13650 | C184: =C189*2*0.25 -> 15600 | D184: 17550 | E184: 19475 | F184: 21050 | G184: 22600 | H184: 24150 | I184: 25725 | J184: 341 | K184: 365 | L184: 438 | M184: 506 | N184: 565 | O184: 623
A185: Glenn0.3 | B185: =B189*2*0.3 -> 16380 | C185: =C189*2*0.3 -> 18720 | D185: 21060 | E185: 23370 | F185: 25260 | G185: 27120 | H185: 28980 | I185: 30870 | J185: 409 | K185: 438 | L185: 526 | M185: 607 | N185: 678 | O185: 748
A186: Glenn0.35 | B186: =B189*2*0.35 -> 19110 | C186: =C189*2*0.35 -> 21840 | D186: 24570 | E186: 27265 | F186: 29470 | G186: 31640 | H186: 33810 | I186: 36015 | J186: 477 | K186: 511 | L186: 614 | M186: 709 | N186: 791 | O186: 872
A187: Glenn0.4 | B187: =B189*2*0.4 -> 21840 | C187: =C189*2*0.4 -> 24960 | D187: 28080 | E187: 31160 | F187: 33680 | G187: 36160 | H187: 38640 | I187: 41160 | J187: 546 | K187: 585 | L187: 702 | M187: 810 | N187: 904 | O187: 997
A188: Glenn0.45 | B188: =B189*2*0.45 -> 24570 | C188: =C189*2*0.45 -> 28080 | D188: 31590 | E188: 35055 | F188: 37890 | G188: 40680 | H188: 43470 | I188: 46305 | J188: 614 | K188: 658 | L188: 789 | M188: 911 | N188: 1017 | O188: 1122
A189: Glenn0.5 | B189: ='MTSP 50% Income Limits '!B12 -> 27300 | C189: ='MTSP 50% Income Limits '!C12 -> 31200 | D189: ='MTSP 50% Income Limits '!D12 -> 35100 | E189: ='MTSP 50% Income Limits '!E12 -> 38950 | F189: ='MTSP 50% Income Limits '!F12 -> 42100 | G189: ='MTSP 50% Income Limits '!G12 -> 45200 | H189: ='MTSP 50% Income Limits '!H12 -> 48300 | I189: ='MTSP 50% Income Limits '!I12 -> 51450 | J189: =TRUNC(B189/12*0.3) -> 682 | K189: =TRUNC((B189+C189)/2/12*0.3) -> 731 | L189: =TRUNC((D189)/12*0.3) -> 877 | M189: =TRUNC(((E189+F189)/2)/12*0.3) -> 1013 | N189: =TRUNC(G189/12*0.3) -> 1130 | O189: =TRUNC(((H189+I189)/2)/12*0.3) -> 1246
A190: Glenn0.55 | B190: =B189*2*0.55 -> 30030 | C190: =C189*2*0.55 -> 34320 | D190: 38610 | E190: 42845 | F190: 46310 | G190: 49720 | H190: 53130 | I190: 56595 | J190: =TRUNC(B190/12*0.3) -> 750 | K190: =TRUNC((B190+C190)/2/12*0.3) -> 804 | L190: =TRUNC((D190)/12*0.3) -> 965 | M190: =TRUNC(((E190+F190)/2)/12*0.3) -> 1114 | N190: =TRUNC(G190/12*0.3) -> 1243 | O190: =TRUNC(((H190+I190)/2)/12*0.3) -> 1371
A191: Glenn0.6 | B191: =B189*2*0.6 -> 32760 | C191: =C189*2*0.6 -> 37440 | D191: 42120 | E191: 46740 | F191: 50520 | G191: 54240 | H191: 57960 | I191: 61740 | J191: 819 | K191: 877 | L191: 1053 | M191: 1215 | N191: 1356 | O191: 1496
A192: Glenn0.65 | B192: =B189*2*0.65 -> 35490 | C192: =C189*2*0.65 -> 40560 | D192: 45630 | E192: 50635 | F192: 54730 | G192: 58760 | H192: 62790 | I192: 66885 | J192: 887 | K192: 950 | L192: 1140 | M192: 1317 | N192: 1469 | O192: 1620
A193: Glenn0.7 | B193: =B189*2*0.7 -> 38220 | C193: =C189*2*0.7 -> 43680 | D193: 49140 | E193: 54530 | F193: 58940 | G193: 63280 | H193: 67620 | I193: 72030 | J193: 955 | K193: 1023 | L193: 1228 | M193: 1418 | N193: 1582 | O193: 1745
A194: Glenn0.75 | B194: =B189*2*0.75 -> 40950 | C194: =C189*2*0.75 -> 46800 | D194: 52650 | E194: 58425 | F194: 63150 | G194: 67800 | H194: 72450 | I194: 77175 | J194: 1023 | K194: 1096 | L194: 1316 | M194: 1519 | N194: 1695 | O194: 1870
A195: Glenn0.8 | B195: =B189*2*0.8 -> 43680 | C195: =C189*2*0.8 -> 49920 | D195: 56160 | E195: 62320 | F195: 67360 | G195: 72320 | H195: 77280 | I195: 82320 | J195: 1092 | K195: 1170 | L195: 1404 | M195: 1621 | N195: 1808 | O195: 1995
A196: Glenn0.9 | B196: =B189*2*0.9 -> 49140 | C196: =C189*2*0.9 -> 56160 | D196: 63180 | E196: 70110 | F196: 75780 | G196: 81360 | H196: 86940 | I196: 92610 | J196: 1228 | K196: 1316 | L196: 1579 | M196: 1823 | N196: 2034 | O196: 2244
A197: Glenn1 | B197: =B189*2 -> 54600 | C197: =C189*2 -> 62400 | D197: 70200 | E197: 77900 | F197: 84200 | G197: 90400 | H197: 96600 | I197: 102900 | J197: =J189*2 -> 1364 | K197: =K189*2 -> 1462 | L197: 1754 | M197: 2026 | N197: 2260 | O197: 2492
A198: Glenn1.1 | B198: =B189*2*1.1 -> 60060 | C198: =C189*2*1.1 -> 68640 | D198: 77220 | E198: 85690 | F198: 92620 | G198: 99440 | H198: 106260 | I198: 113190 | J198: =TRUNC(B198/12*0.3) -> 1501 | K198: =TRUNC((B198+C198)/2/12*0.3) -> 1608 | L198: =TRUNC((D198)/12*0.3) -> 1930 | M198: =TRUNC(((E198+F198)/2)/12*0.3) -> 2228 | N198: =TRUNC(G198/12*0.3) -> 2486 | O198: =TRUNC(((H198+I198)/2)/12*0.3) -> 2743
A199: Glenn1.2 | B199: =B189*2*1.2 -> 65520 | C199: =C189*2*1.2 -> 74880 | D199: 84240 | E199: 93480 | F199: 101040 | G199: 108480 | H199: 115920 | I199: 123480 | J199: 1638 | K199: 1755 | L199: 2106 | M199: 2431 | N199: 2712 | O199: 2992
A200: Humboldt0.15 | B200: =B207*2*0.15 -> 8190 | C200: =C207*2*0.15 -> 9360 | D200: =D207*2*0.15 -> 10530 | E200: =E207*2*0.15 -> 11685 | F200: =F207*2*0.15 -> 12630 | G200: =G207*2*0.15 -> 13560 | H200: 14490 | I200: 15435 | J200: 204 | K200: 219 | L200: 263 | M200: 303 | N200: 339 | O200: 374
... 845 more rows

Sheet Drop Down (hidden)
A1: Contacts | B1: Contacts | C1: Site & Units | D1: Alameda | E1: Bay Area | F1: Rents | G1: Dev Sources | H1: Dev Sources | I1: Dev Sources | J1: Target Population
A2: FORM OF ENTITY | B2: Partner or Member Role | C2: Site Control | D2: Alpine | E2: Balance of State | F2: Income Limit | G2: Required Payment | H2: Repayment Terms Type | I2: Interest Rate Type | J2: At-Risk of Homelessness | K2: City
A3: Yet to be formed L.P. | B3: Managing General Partner of Owner | C3: Fee Title | D3: Amador | E3: Balance of State | F3: None | G3: Interest Only | H3: Fully Amortized | I3: Fixed for Term | J3: Chronic Homeless | K3: County
A4: Yet to be formed LLC | B4: General Partner of Owner | C4: Purchase Option | D4: Butte | E4: Balance of State | F4: 0.15 | G4: Deferred | H4: Amortized with Call | I4: Fixed with Reset | J4: Homeless | K4: Council of Governement
A5: Limited Partnership | B5: Administrative General Partner of Owner | C5: Lease | D5: Calaveras | E5: Balance of State | F5: 0.2 | G5: None | H5: Residual Receipts | I5: Fixed, then Variable | J5: Homeless Youth or Youth at Risk of Homelessness | K5: Metropolitan Planning Organization
A6: Limited Liability Company | B6: Managing Member | C6: Lease Option | D6: Colusa | E6: Balance of State | F6: 0.25 | G6: Other | H6: Deferred | I6: Variable | K6: Regional Transportation Planning Agency
A7: Non-profit Corporation | B7: Other | C7: DDA | D7: Contra Costa | E7: Bay Area | F7: 0.3 | H7: Interest Only | I7: Other | K7: Public Housing Authority (PHA)
A8: Non-profit Public Benefit Corporation | C8: Eminent Domain | D8: Del Norte | E8: Balance of State | F8: 0.35 | H8: Fixed to Float | K8: Other local public entity
A9: For-profit Corporation | C9: Other -specify in Applicant Notes | D9: El Dorado | E9: Sacramento Area | F9: 0.4 | H9: Partial Int. Only | K9: Tribal Entity
A10: Tribal Government | D10: Fresno | E10: San Joaquin Valley | F10: 0.45 | K10: Nonprofit Corporation
A11: Public Agency | D11: Glenn | E11: Balance of State | F11: 0.5 | K11: For-profit Corporation
A12: Joint Powers Authority | C12: i. Conversion of nonresidential structurs to residential dwelling units | D12: Humboldt | E12: Balance of State | F12: 0.55
A13: Individual(s) | C13: ii. Conversion of commercially zoned structures, such as office or retail spaces, to residential dwelling units | D13: Imperial | E13: Southern California | F13: 0.6
A14: Other | C14: iii. Adult residential facilities, residential care facilities for the elderly, manufactured housing, and other buildings with existing residential uses | D14: Inyo | E14: Balance of State | F14: 0.65 | J14: i. Acquisition or rehabilitation, or acquisition and rehabilitation, of motels, hotels, hostels, or other sites and assets, including apartments or homes, adult residential facilities, residential care facilities for the elderly, manufactured housing, commercial properties, and other buildings with existing uses that could be converted to permanent or interim housing.
C15: iv. Multifamily rental housing Projects | D15: Kern | E15: San Joaquin Valley | F15: 0.7 | J15: ii. Master leasing of properties for non-congregant housing. If Yes, provide a recent market study and/or rent roll, and/or other supporting documentation.
C16: v. Excess state-owned properties | D16: Kings | E16: San Joaquin Valley | F16: 0.75 | J16: iii. Conversion of units from nonresidential to residential.
C17: vi. Scattered site housing on multiple contiguous or non-contiguous sites | D17: Lake | E17: Balance of State | F17: 0.8 | J17: iv. New construction of dwelling units.
C18: vii. Shared housing in a structure shared by two or more households, where each household is in a separate private bedroom that can be locked | D18: Lassen | E18: Balance of State | F18: 0.9 | J18: v. The purchase of affordability covenants and restrictions for units. If Yes, provide a recent market study and/or rent roll, and/or other supporting documentation.
C19: viii. Existing Homekey Assisted Units, previously awarded under Rounds 1 and 2 of Homekey funding, are ineligible for funding under this NOFA | D19: Los Angeles | E19: Los Angeles County | F19: 1 | J19: vi. Relocation costs for individuals who are being displaced as a result of your Homekey Project.
C20: Other describe below | D20: Madera | E20: San Joaquin Valley | F20: 1.1 | J20: vii. Capitalized operating subsidies for units purchased, converted, constructed, or altered with funds provided pursuant to HSC §50675.1.3.
D21: Marin | E21: Bay Area | F21: 1.2
D22: Mariposa | E22: Balance of State
D23: Mendocino | E23: Balance of State
D24: Merced | E24: San Joaquin Valley | J24: Sustained source
D25: Modoc | E25: Balance of State | J25: Subsidy carried by the tenant or participant
D26: Mono | E26: Balance of State | J26: Intent to pursue funding
D27: Monterey | E27: Central Coast
D28: Napa | E28: Bay Area | J28: Operating Subsidy Enforceable Funding Commitment (EFC)
D29: Nevada | E29: Balance of State | J29: Intent to Pursue Funding
D30: Orange | E30: Southern California
D31: Placer | E31: Sacramento Area | J31: within 1/2 mile radius of project
D32: Plumas | E32: Balance of State | J32: within 1 mile radius of project
D33: Riverside | E33: Southern California | J33: within 2 miles radius of project
D34: Sacramento | E34: Sacramento Area
D35: San Benito | E35: Central Coast
D36: San Bernardino | E36: Southern California | J36: i. Acquisition
D37: San Diego | E37: San Diego County | J37: i. Rehabilitation
D38: San Francisco | E38: Bay Area | J38: i. Acquisition & Rehabilitation
D39: San Joaquin | E39: San Joaquin Valley | J39: i. New Construction & Acq/Rehab
D40: San Luis Obispo | E40: Central Coast | J40: ii. Master leasing of properties for non-congregant housing
D41: San Mateo | E41: Bay Area | J41: iii. Conversion of units from nonresidential to residential
D42: Santa Barbara | E42: Central Coast | J42: iv. New construction of dwelling units
D43: Santa Clara | E43: Bay Area | J43: v. The purchase of affordability covenants
D44: Santa Cruz | E44: Central Coast
D45: Shasta | E45: Balance of State
D46: Sierra | E46: Balance of State
D47: Siskiyou | E47: Balance of State
D48: Solano | E48: Bay Area
D49: Sonoma | E49: Bay Area
D50: Stanislaus | E50: San Joaquin Valley
D51: Sutter | E51: Sacramento Area
D52: Tehama | E52: Balance of State
D53: Trinity | E53: Balance of State
D54: Tulare | E54: San Joaquin Valley
D55: Tuolumne | E55: Balance of State
D56: Ventura | E56: Southern California
D57: Yolo | E57: Sacramento Area
D58: Yuba | E58: Sacramento Area

Sheet Operating
A1: =IF(Overview!$E$24="","",Overview!$E$24) -> 
A2: =Overview!AJ1 -> Rev 4/23/2023 | C2: Year 1 Annual Income and Expenses
A4: Employee Information | F4: Comments
A5: No. | B5: FTE | C5: Employee Job Title | D5: Salary/Wages | E5: Value of Free Rent
C6: On-Site Manager(s) | D6: 0 | E6: 0
C7: On-Site Assistant Manager(s) | D7: 0 | E7: 0
C8: Supportive Services Staff Supervisor(s) | D8: 0
C9: Supportive Services Coordinator, On-Site | D9: 0
C10: Other Supportive Services Staff (inc. Case Manager) | D10: 0
C11: On-Site Maintenance Employee(s) | D11: 0 | E11: 0
C12: On-Site Leasing Agent/Administrative Employee(s) | D12: 0 | E12: 0
C13: On-Site Security Employee(s) | D13: 0 | E13: 0
C14: Other Supportive Services Costs: (specify) | D14: 0 | E14: 0
C15: Other Supportive Services Costs: (specify) | D15: 0 | E15: 0
C16: Other Supportive Services Costs: (specify) | D16: 0 | E16: 0
C17: Other Supportive Services Costs: (specify) | D17: 0 | E17: 0
C18: Total Salaries and Value of Free Rent Units | D18: =SUM($D$6:$D$17) -> 0 | E18: =SUM(E6:E17) -> 0
B19: 6711 | C19: Payroll Taxes | E19: Show free rent as an expense?
B20: 6722 | C20: Workers Compensation | H20: Count free rent as an
B21: 6723 | C21: Employee Benefits | H21: expense?
C22: Employee(s) Payroll Taxes, Workers Comp. & Benefits | D22: =SUM(D19:D21) -> 0 | H22: =IF($E$21="Yes",1,0) -> 0
C23: Total Employee(s) Expenses | D23: =D22+D18 -> 0
A26: Employee Units
A27: Income Limit | C27: Job Title(s) of Employee(s) Living On-Site | D27: Unit Type (No. of bdrms.) | E27: Square Footage | G27: Income Limit | H27: Job Title(s) of Employee(s) Living On-Site
G28: 0.6 | H28: On-Site Manager(s)
G29: 0.55 | H29: On-Site Assistant Manager(s)
G30: 0.5 | H30: On-Site Maintenance Employee(s)
A31: Total Square Footage | E31: =SUM(E28:E30) -> 0 | G31: None | H31: On-Site Leasing Agent/Administrative Employee(s)
A32: Year 1 Annual Operating Budget | G32: Other | H32: On-Site Security Employee(s)
A33: Acct. No. | C33: Revenue - Income | D33: Residential | E33: Commercial | F33: Comments | H33: Services Coordinator
A34: 5120/5140 | C34: Rent Revenue - Gross Potential | E34: 0
C35: Restricted Unit Rents | D35: ='Cash Flow'!$D$5 -> 0
C36: Unrestricted Unit Rents | D36: ='Cash Flow'!$D$6 -> 0
A37: 5121 | C37: Tenant Assistance Payments
C38: =IF(Overview!$S$34="Interim Housing","",'Unit Mix'!M3) -> Rental Subsidy Program #1 Name | D38: =IF(Overview!$S$34="Interim Housing","",'Unit Mix'!$N$22) -> 0
C39: =IF(Overview!$S$34="Interim Housing","",'Unit Mix'!O3) -> Rental Subsidy Program #2 Name | D39: =IF(Overview!$S$34="Interim Housing","",'Unit Mix'!$P$22) -> 0
C40: =IF(Overview!$S$34="Interim Housing","",'Unit Mix'!Q3) -> Rental Subsidy Program #3 Name | D40: =IF(Overview!$S$34="Interim Housing","",'Unit Mix'!$R$22) -> 0
C41: =IF(Overview!$S$34="Interim Housing","",'Unit Mix'!S3) -> Rental Subsidy Program #4 Name | D41: =IF(Overview!$S$34="Interim Housing","",'Unit Mix'!$T$22) -> 0
C42: =IF(Overview!$S$34="Interim Housing",'Award, Match, and Revenue'!$A$29,'Award, Match, and Revenue'!$A$29) -> 0 | D42: =IF(Overview!$S$34="Interim Housing",'Unit Mix'!$N$22,'Award, Match, and Revenue'!$D$29) -> 0 | E42: 0
C43: =IF(Overview!$S$34="Interim Housing",'Award, Match, and Revenue'!$A$30,'Award, Match, and Revenue'!$A$30) -> 0 | D43: =IF(Overview!$S$34="Interim Housing",'Unit Mix'!$P$22,'Award, Match, and Revenue'!$D$30) -> 0 | E43: 0
C44: =IF(Overview!$S$34="Interim Housing",'Award, Match, and Revenue'!$A$31,'Award, Match, and Revenue'!$A$31) -> 0 | D44: =IF(Overview!$S$34="Interim Housing",'Unit Mix'!$R$22,'Award, Match, and Revenue'!$D$31) -> 0 | E44: 0
C45: =IF(Overview!$S$34="Interim Housing",'Award, Match, and Revenue'!$A$32,'Award, Match, and Revenue'!$A$32) -> 0 | D45: =IF(Overview!$S$34="Interim Housing",'Unit Mix'!$T$22,'Award, Match, and Revenue'!$D$32) -> 0 | E45: 0
A46: 5910 | C46: Laundry and Vending Revenue | D46: 0
A47: 5170 | C47: Garage and Parking Spaces | D47: 0 | E47: 0
A48: 5990 | C48: Interim Housing Revenue | D48: 0 | E48: 0
A49: Gross Potential Income (GPI) | D49: =SUM(D34:D48) -> 0 | E49: =SUM(E34:E48) -> 0
C51: Vacancy Rate: Restricted Units | D51: 0.05
C52: Vacancy Rate: Unrestricted Units | D52: 0.05
C53: Vacancy Rate: Tenant Assistance Payments | D53: 0.05
C54: Vacancy Rate: Laundry & Vending & Other Income | D54: 0.05
C55: Vacancy Rate: Commercial Income | E55: 0.5
A56: 5220/5240 | C56: Vacancy Loss(es) | D56: =(D35*D51)+(D36*D52)+(SUM(D38,D39,D40,D41)*D53)+(SUM(D46,D47,D48)*D54) -> 0 | E56: =+E49*E55 -> 0
A57: Effective Gross Income (EGI) | C57: Effective Gross Income (EGI) | D57: =+D49-D56 -> 0 | E57: =+E49-E56 -> 0
A58: Acct. No. | C58: Expenses | D58: Residential | E58: Commercial | F58: Comments
C59: Administrative Expenses: 6200/6300
A60: 6203 | C60: Conventions and Meetings | D60: 0 | E60: 0
A61: 6210 | C61: Advertising and Marketing | D61: 0 | E61: 0
A62: 6250 | C62: Other Renting Expenses | D62: 0 | E62: 0
A63: 6310 | C63: Office/Administrative Salaries -- from above | D63: =D12 -> 0 | E63: 0
A64: 6311 | C64: Office Expenses | D64: 0 | E64: 0
A65: 6312 | C65: Office or Model Apartment Rent | D65: 0 | E65: 0
A66: 6320 | C66: Management Fee | D66: 0 | E66: 0
A67: 6330 | C67: Site/Resident Manager(s) Salaries -- from above | D67: =D6+D7 -> 0 | E67: 0
A68: 6331 | C68: Administrative Free Rent Unit -- from above | D68: =IF(H22=1,E6+E7+E12,0) -> 0 | E68: 0
A69: 6340 | C69: Legal Expense -- Project | D69: 0 | E69: 0
A70: 6350 | C70: Audit Expense | D70: 0 | E70: 0
A71: 6351 | C71: Bookkeeping Fees/Accounting Services | D71: 0 | E71: 0
A72: 6390 | C72: Miscellaneous Administrative Expenses | D72: 0 | E72: 0
A73: 6263T | C73: Total Administrative Expenses | D73: =SUM(D60:D72) -> 0 | E73: =SUM(E60:E72) -> 0
A74: Acct. No. | C74: Expenses | D74: Residential | E74: Commercial | F74: Comments
C75: Utilities Expenses: 6400
A76: 6450 | C76: Electricity | D76: 0 | E76: 0
A77: 6451 | C77: Water | D77: 0 | E77: 0
A78: 6452 | C78: Gas | D78: 0 | E78: 0
A79: 6453 | C79: Sewer | D79: 0 | E79: 0
C80: Other Utilities: (specify) | D80: 0 | E80: 0
A81: 6400T | C81: Total Utilities Expenses | D81: =SUM(D76:D80) -> 0 | E81: =SUM(E76:E80) -> 0
C82: Operating and Maintenance Expenses: 6500 | F82: Comments
A83: 6510 | C83: Payroll -- from above | D83: =$D$11+$D$13+$D$16+$D$17+$D$14+$D$15 -> 0 | E83: 0
A84: 6515 | C84: Supplies | D84: 0 | E84: 0
A85: 6520 | C85: Contracts | D85: 0 | E85: 0
A86: 6521 | C86: Operating & Maintenance Free Rent Unit -- from above | D86: =IF($H$22=1,$E$11+$E$16+$E$17+$E$15+$E$14,0) -> 0 | E86: 0
A87: 6525 | C87: Garbage and Trash Removal | D87: 0 | E87: 0
A88: 6530 | C88: Security Contract | D88: 0 | E88: 0
A89: 6531 | C89: Security Free Rent Unit -- from above | D89: =IF($H$22=1,$E$13,0) -> 0 | E89: 0
A90: 6546 | C90: Heating/Cooling Repairs and Maintenance | D90: 0 | E90: 0
A91: 6548 | C91: Snow Removal | D91: 0 | E91: 0
A92: 6570 | C92: Vehicle & Maintenance Equipment Operation/Reports | D92: 0 | E92: 0
A93: 6590 | C93: Miscellaneous Operating and Maintenance Expenses | D93: 0 | E93: 0
A94: 6500T | C94: Total Operating & Maintenance Expenses | D94: =SUM(D83:D93) -> 0 | E94: =SUM(E83:E93) -> 0
C95: Taxes and Insurance: 6700 | F95: Comments
A96: 6710 | C96: Real Estate Taxes | D96: 0 | E96: 0
A97: 6711 | C97: Payroll Taxes (Project's Share) -- from above | D97: =$D$19 -> 0 | E97: 0
A98: 6720 | C98: Property and Liability Insurance (Hazard) | D98: 0 | E98: 0
A99: 6729 | C99: Other Insurance (e.g. Earthquake) | D99: 0 | E99: 0
A100: 6721 | C100: Fidelity Bond Insurance | D100: 0 | E100: 0
A101: 6722 | C101: Worker's Compensation -- from above | D101: =$D$20 -> 0 | E101: 0
A102: 6723 | C102: Health Insurance/Other Employee Benefits--from above | D102: =$D$21 -> 0 | E102: 0
A103: 6790 | C103: Miscellaneous Taxes, Licenses, Permits & Insurance | D103: 0 | E103: 0
A104: 6700T | C104: Total Taxes and Insurance | D104: =SUM(D96:D103) -> 0 | E104: =SUM(E96:E103) -> 0
C105: Supportive Services Costs: 6900 | F105: Comments
A106: 6990 | C106: Staff Supervisor(s) Salaries - from above | D106: =$D$8 -> 0 | E106: 0
A107: 6990 | C107: Services Coordinator Salaries, On-Site - from above | D107: =$D$9 -> 0 | E107: 0
A108: 6990 | C108: Other Supportive Services Staff Salaries - from above | D108: =$D$10 -> 0 | E108: 0
A109: 6990 | C109: Supportive Services Admin Overhead | D109: 0 | E109: 0
A110: 6990 | C110: Tenant Transportation (per SSP) | D110: 0 | E110: 0
A111: 6990 | C111: Staff training (per SSP) | D111: 0 | E111: 0
A112: 6990 | C112: Equipment | D112: 0 | E112: 0
A113: 6990 | C113: Supplies | D113: 0 | E113: 0
A114: 6990 | C114: Travel | D114: 0 | E114: 0
A115: 6990 | C115: Office Rent/Occupancy Costs (don't include rent/leasing costs for SH units) | D115: 0 | E115: 0
A116: 6990 | C116: Training | D116: 0 | E116: 0
A117: 6990 | C117: Other Supportive Services Costs: (specify) | D117: 0 | E117: 0
A118: 6990 | C118: Other Supportive Services Costs: (specify) | D118: 0 | E118: 0
A119: 6900T | C119: Total Supportive Services Costs | D119: =SUM(D106:D118) -> 0 | E119: =SUM(E106:E118) -> 0
C121: Total Operating Expenses | D121: =D73+D81+D94+D104+D119 -> 0 | E121: =E73+E81+E94+E104+E119 -> 0 | F121: Comments
C122: Funded Reserves: 7200 | D122: Residential | E122: Commercial
A123: 7210 | C123: Required Replacement Reserve Deposits | D123: 0 | E123: 0
A124: 7220 | C124: Other Reserves: (specify) | D124: 0 | E124: 0
A125: 7230 | C125: Other Reserves: (specify) | D125: 0 | E125: 0
A126: 7240 | C126: Other Reserves: (specify) | D126: 0 | E126: 0
C127: Total Reserves | D127: =SUM(D123:D126) -> 0 | E127: =SUM(E123:E126) -> 0
C128: Ground Lease | D128: Residential | E128: Commercial
C129: Ground Lease | D129: 0 | E129: 0
A130: Total Ground Lease | D130: =SUM(D129:D129) -> 0 | E130: =SUM(E129:E129) -> 0
A131: Net Operating Income | D131: =D57-D121-D127-D130 -> 0 | E131: =E57-E121-E127-E130 -> 0
C133: Financial Expenses: 6800 | F133: Comments
A134: 6820 | C134: 1st Mortgage Debt Service | D134: 0 | E134: 0
A135: 6830 | C135: 2nd Mortgage Debt Service | D135: 0 | E135: 0
A136: 6840 | C136: 3rd Mortgage Debt Service | D136: 0 | E136: 0
A137: 6890 | C137: Misc. Financial Expenses: (specify) | D137: 0 | E137: 0
A138: 6890 | C138: Misc. Financial Expenses: (specify) | D138: 0 | E138: 0
A139: 6890 | C139: Misc. Financial Expenses: (specify) | D139: 0 | E139: 0
A140: 6890 | C140: Misc. Financial Expenses: (specify) | D140: 0 | E140: 0
A141: 6800T | C141: Total Financial Expenses | D141: =SUM(D134:D140) -> 0 | E141: =SUM(E134:E140) -> 0
A142: Cash Flow | D142: =+D131-D141 -> 0 | E142: =+E131-E141 -> 0
A144: 7190 | C144: Asset Management/Similar Fees | D144: 0 | E144: 0
A146: Applicant Comments

Sheet Cash Flow
A1: Cash Flow Analysis
A2: =IF(Overview!$E$24="","",Overview!$E$24) ->  | R2: =Overview!AJ1 -> Rev 4/23/2023
A3: Income from Restricted Units will be based on Proposed Rents. | I3: Proposed Rents | K3: =IF(I3<>"Proposed Rents",1,0) -> 0
A4: Income From Housing Units | C4: Inflation | D4: Year 1 | E4: Year 2 | F4: Year 3 | G4: Year 4 | H4: Year 5 | I4: Year 6 | J4: Year 7 | K4: Year 8 | L4: Year 9 | M4: Year 10 | N4: Year 11 | O4: Year 12 | P4: Year 13 | Q4: Year 14 | R4: Year 15
A5: Restricted Unit Rents | C5: 0.025 | D5: =IF(K3=1,'Unit Mix'!I22,'Unit Mix'!J22) -> 0 | E5: =D5*(1+$C$5) -> 0 | F5: 0 | G5: 0 | H5: 0 | I5: 0 | J5: 0 | K5: 0 | L5: 0 | M5: 0 | N5: 0 | O5: 0 | P5: 0 | Q5: 0 | R5: =Q5*(1+$C$5) -> 0
A6: Unrestricted Unit Rents | C6: 0.025 | D6: ='Unit Mix'!K22 -> 0 | E6: =D6*(1+$C$6) -> 0 | F6: 0 | G6: 0 | H6: 0 | I6: 0 | J6: 0 | K6: 0 | L6: 0 | M6: 0 | N6: 0 | O6: 0 | P6: 0 | Q6: 0 | R6: =Q6*(1+$C$6) -> 0
A7: Tenant Assistance Payments
A8: =Operating!C38 -> Rental Subsidy Program #1 Name | C8: 0.025 | D8: ='Award, Match, and Revenue'!$D$56 -> 0 | E8: ='Award, Match, and Revenue'!E56 -> 0 | F8: ='Award, Match, and Revenue'!F56 -> 0 | G8: ='Award, Match, and Revenue'!G56 -> 0 | H8: ='Award, Match, and Revenue'!H56 -> 0 | I8: ='Award, Match, and Revenue'!I56 -> 0 | J8: ='Award, Match, and Revenue'!J56 -> 0 | K8: ='Award, Match, and Revenue'!K56 -> 0 | L8: ='Award, Match, and Revenue'!L56 -> 0 | M8: ='Award, Match, and Revenue'!M56 -> 0 | N8: ='Award, Match, and Revenue'!N56 -> 0 | O8: ='Award, Match, and Revenue'!O56 -> 0 | P8: ='Award, Match, and Revenue'!P56 -> 0 | Q8: ='Award, Match, and Revenue'!Q56 -> 0 | R8: ='Award, Match, and Revenue'!R56 -> 0
A9: =Operating!C39 -> Rental Subsidy Program #2 Name | C9: 0.025 | D9: ='Award, Match, and Revenue'!$D$57 -> 0 | E9: ='Award, Match, and Revenue'!E57 -> 0 | F9: ='Award, Match, and Revenue'!F57 -> 0 | G9: ='Award, Match, and Revenue'!G57 -> 0 | H9: ='Award, Match, and Revenue'!H57 -> 0 | I9: ='Award, Match, and Revenue'!I57 -> 0 | J9: ='Award, Match, and Revenue'!J57 -> 0 | K9: ='Award, Match, and Revenue'!K57 -> 0 | L9: ='Award, Match, and Revenue'!L57 -> 0 | M9: ='Award, Match, and Revenue'!M57 -> 0 | N9: ='Award, Match, and Revenue'!N57 -> 0 | O9: ='Award, Match, and Revenue'!O57 -> 0 | P9: ='Award, Match, and Revenue'!P57 -> 0 | Q9: ='Award, Match, and Revenue'!Q57 -> 0 | R9: ='Award, Match, and Revenue'!R57 -> 0
A10: =Operating!C40 -> Rental Subsidy Program #3 Name | C10: 0.025 | D10: ='Award, Match, and Revenue'!$D$58 -> 0 | E10: ='Award, Match, and Revenue'!E58 -> 0 | F10: ='Award, Match, and Revenue'!F58 -> 0 | G10: ='Award, Match, and Revenue'!G58 -> 0 | H10: ='Award, Match, and Revenue'!H58 -> 0 | I10: ='Award, Match, and Revenue'!I58 -> 0 | J10: ='Award, Match, and Revenue'!J58 -> 0 | K10: ='Award, Match, and Revenue'!K58 -> 0 | L10: ='Award, Match, and Revenue'!L58 -> 0 | M10: ='Award, Match, and Revenue'!M58 -> 0 | N10: ='Award, Match, and Revenue'!N58 -> 0 | O10: ='Award, Match, and Revenue'!O58 -> 0 | P10: ='Award, Match, and Revenue'!P58 -> 0 | Q10: ='Award, Match, and Revenue'!Q58 -> 0 | R10: ='Award, Match, and Revenue'!R58 -> 0
A11: =Operating!C41 -> Rental Subsidy Program #4 Name | C11: 0.025 | D11: ='Award, Match, and Revenue'!$D$59 -> 0 | E11: ='Award, Match, and Revenue'!E59 -> 0 | F11: ='Award, Match, and Revenue'!F59 -> 0 | G11: ='Award, Match, and Revenue'!G59 -> 0 | H11: ='Award, Match, and Revenue'!H59 -> 0 | I11: ='Award, Match, and Revenue'!I59 -> 0 | J11: ='Award, Match, and Revenue'!J59 -> 0 | K11: ='Award, Match, and Revenue'!K59 -> 0 | L11: ='Award, Match, and Revenue'!L59 -> 0 | M11: ='Award, Match, and Revenue'!M59 -> 0 | N11: ='Award, Match, and Revenue'!N59 -> 0 | O11: ='Award, Match, and Revenue'!O59 -> 0 | P11: ='Award, Match, and Revenue'!P59 -> 0 | Q11: ='Award, Match, and Revenue'!Q59 -> 0 | R11: ='Award, Match, and Revenue'!R59 -> 0
A12: Operating Subsidies
A13: =IF(Operating!C42="","",Operating!C42) -> 0 | D13: =Operating!$D$42 -> 0 | E13: ='Award, Match, and Revenue'!E29 -> 0 | F13: ='Award, Match, and Revenue'!F29 -> 0 | G13: ='Award, Match, and Revenue'!G29 -> 0 | H13: ='Award, Match, and Revenue'!H29 -> 0 | I13: ='Award, Match, and Revenue'!I29 -> 0 | J13: ='Award, Match, and Revenue'!J29 -> 0 | K13: ='Award, Match, and Revenue'!K29 -> 0 | L13: ='Award, Match, and Revenue'!L29 -> 0 | M13: ='Award, Match, and Revenue'!M29 -> 0 | N13: ='Award, Match, and Revenue'!N29 -> 0 | O13: ='Award, Match, and Revenue'!O29 -> 0 | P13: ='Award, Match, and Revenue'!P29 -> 0 | Q13: ='Award, Match, and Revenue'!Q29 -> 0 | R13: ='Award, Match, and Revenue'!R29 -> 0
A14: =IF(Operating!C43="","",Operating!C43) -> 0 | D14: =Operating!$D$43 -> 0 | E14: ='Award, Match, and Revenue'!E30 -> 0 | F14: ='Award, Match, and Revenue'!F30 -> 0 | G14: ='Award, Match, and Revenue'!G30 -> 0 | H14: ='Award, Match, and Revenue'!H30 -> 0 | I14: ='Award, Match, and Revenue'!I30 -> 0 | J14: ='Award, Match, and Revenue'!J30 -> 0 | K14: ='Award, Match, and Revenue'!K30 -> 0 | L14: ='Award, Match, and Revenue'!L30 -> 0 | M14: ='Award, Match, and Revenue'!M30 -> 0 | N14: ='Award, Match, and Revenue'!N30 -> 0 | O14: ='Award, Match, and Revenue'!O30 -> 0 | P14: ='Award, Match, and Revenue'!P30 -> 0 | Q14: ='Award, Match, and Revenue'!Q30 -> 0 | R14: ='Award, Match, and Revenue'!R30 -> 0
A15: =IF(Operating!C44="","",Operating!C44) -> 0 | D15: =Operating!$D$44 -> 0 | E15: ='Award, Match, and Revenue'!E31 -> 0 | F15: ='Award, Match, and Revenue'!F31 -> 0 | G15: ='Award, Match, and Revenue'!G31 -> 0 | H15: ='Award, Match, and Revenue'!H31 -> 0 | I15: ='Award, Match, and Revenue'!I31 -> 0 | J15: ='Award, Match, and Revenue'!J31 -> 0 | K15: ='Award, Match, and Revenue'!K31 -> 0 | L15: ='Award, Match, and Revenue'!L31 -> 0 | M15: ='Award, Match, and Revenue'!M31 -> 0 | N15: ='Award, Match, and Revenue'!N31 -> 0 | O15: ='Award, Match, and Revenue'!O31 -> 0 | P15: ='Award, Match, and Revenue'!P31 -> 0 | Q15: ='Award, Match, and Revenue'!Q31 -> 0 | R15: ='Award, Match, and Revenue'!R31 -> 0
A16: =IF(Operating!C45="","",Operating!C45) -> 0 | D16: =Operating!$D$45 -> 0 | E16: ='Award, Match, and Revenue'!E32 -> 0 | F16: ='Award, Match, and Revenue'!F32 -> 0 | G16: ='Award, Match, and Revenue'!G32 -> 0 | H16: ='Award, Match, and Revenue'!H32 -> 0 | I16: ='Award, Match, and Revenue'!I32 -> 0 | J16: ='Award, Match, and Revenue'!J32 -> 0 | K16: ='Award, Match, and Revenue'!K32 -> 0 | L16: ='Award, Match, and Revenue'!L32 -> 0 | M16: ='Award, Match, and Revenue'!M32 -> 0 | N16: ='Award, Match, and Revenue'!N32 -> 0 | O16: ='Award, Match, and Revenue'!O32 -> 0 | P16: ='Award, Match, and Revenue'!P32 -> 0 | Q16: ='Award, Match, and Revenue'!Q32 -> 0 | R16: ='Award, Match, and Revenue'!R32 -> 0
A17: Gross Potential Income - Housing | D17: =SUM(D5:D16) -> 0 | E17: =SUM(E5:E16) -> 0 | F17: 0 | G17: 0 | H17: 0 | I17: 0 | J17: 0 | K17: 0 | L17: 0 | M17: 0 | N17: 0 | O17: 0 | P17: 0 | Q17: 0 | R17: 0
A19: Other Income
A20: Laundry & Vending | C20: 0.025 | D20: =Operating!D46 -> 0 | E20: =D20*(1+$C$20) -> 0 | F20: 0 | G20: 0 | H20: 0 | I20: 0 | J20: 0 | K20: 0 | L20: 0 | M20: 0 | N20: 0 | O20: 0 | P20: 0 | Q20: 0 | R20: =Q20*(1+$C$20) -> 0
A21: Other Income | C21: 0.025 | D21: =Operating!D47+Operating!D48 -> 0 | E21: =D21*(1+$C$21) -> 0 | F21: =E21*(1+$C$21) -> 0 | G21: 0 | H21: 0 | I21: 0 | J21: 0 | K21: 0 | L21: 0 | M21: 0 | N21: 0 | O21: 0 | P21: 0 | Q21: 0 | R21: =Q21*(1+$C$21) -> 0
A22: Commercial Income | C22: 0.025 | D22: =Operating!E49 -> 0 | E22: =D22*(1+$C$22) -> 0 | F22: 0 | G22: 0 | H22: 0 | I22: 0 | J22: 0 | K22: 0 | L22: 0 | M22: 0 | N22: 0 | O22: 0 | P22: 0 | Q22: 0 | R22: =Q22*(1+$C$22) -> 0
A23: Gross Potential Income - Other | D23: =SUM(D20:D22) -> 0 | E23: =SUM(E20:E22) -> 0 | F23: 0 | G23: 0 | H23: 0 | I23: 0 | J23: 0 | K23: 0 | L23: 0 | M23: 0 | N23: 0 | O23: 0 | P23: 0 | Q23: 0 | R23: 0
A25: Gross Potential Income - Total | D25: =D17+D23 -> 0 | E25: =E17+E23 -> 0 | F25: 0 | G25: 0 | H25: 0 | I25: 0 | J25: 0 | K25: 0 | L25: 0 | M25: 0 | N25: 0 | O25: 0 | P25: 0 | Q25: 0 | R25: 0
A26: Vacancy Assumptions
A27: Restricted Units | C27: =Operating!$D$51 -> 0.05 | D27: =$C27*D5 -> 0 | E27: =$C27*E5 -> 0 | F27: 0 | G27: 0 | H27: 0 | I27: 0 | J27: 0 | K27: 0 | L27: 0 | M27: 0 | N27: 0 | O27: 0 | P27: 0 | Q27: 0 | R27: 0
A28: Unrestricted Units | C28: =Operating!$D$52 -> 0.05 | D28: =$C28*D6 -> 0 | E28: =$C28*E6 -> 0 | F28: 0 | G28: 0 | H28: 0 | I28: 0 | J28: 0 | K28: 0 | L28: 0 | M28: 0 | N28: 0 | O28: 0 | P28: 0 | Q28: 0 | R28: 0
A29: Tenant Assistance Payments | C29: =Operating!$D$53 -> 0.05 | D29: =$C29*(D8+D9+D10+D11) -> 0 | E29: =$C29*(E8+E9+E10+E11) -> 0 | F29: 0 | G29: =$C29*(G8+G9+G10+G11) -> 0 | H29: 0 | I29: 0 | J29: 0 | K29: 0 | L29: 0 | M29: 0 | N29: 0 | O29: 0 | P29: 0 | Q29: 0 | R29: =$C29*(R8+R9+R10+R11) -> 0
A30: Laundry/Vending/Other Income | C30: =Operating!$D$54 -> 0.05 | D30: =$C30*(D20+D21) -> 0 | E30: =$C30*(E20+E21) -> 0 | F30: 0 | G30: 0 | H30: 0 | I30: 0 | J30: 0 | K30: 0 | L30: 0 | M30: 0 | N30: 0 | O30: 0 | P30: 0 | Q30: 0 | R30: 0
A31: Commercial Income | C31: =Operating!$E$55 -> 0.5 | D31: =$C31*D22 -> 0 | E31: =$C31*E22 -> 0 | F31: 0 | G31: 0 | H31: 0 | I31: 0 | J31: 0 | K31: 0 | L31: 0 | M31: 0 | N31: 0 | O31: 0 | P31: 0 | Q31: 0 | R31: 0
A32: Total Vacancy Loss | D32: =SUM(D27:D31) -> 0 | E32: 0 | F32: 0 | G32: 0 | H32: 0 | I32: 0 | J32: 0 | K32: 0 | L32: 0 | M32: 0 | N32: 0 | O32: 0 | P32: 0 | Q32: 0 | R32: 0
A34: Effective Gross Income | D34: =D25-D32 -> 0 | E34: =E25-E32 -> 0 | F34: 0 | G34: 0 | H34: 0 | I34: 0 | J34: 0 | K34: 0 | L34: 0 | M34: 0 | N34: 0 | O34: 0 | P34: 0 | Q34: 0 | R34: 0
A36: Operating Expenses & Reserve Deposits
A37: Residential Exp. (w/o Real Estate Taxes & Sup. Services) | C37: 0.035 | D37: =Operating!D121-Operating!D104-Operating!D119 -> 0 | E37: =(1+$C$37)*D37 -> 0 | F37: 0 | G37: 0 | H37: 0 | I37: 0 | J37: 0 | K37: 0 | L37: 0 | M37: 0 | N37: 0 | O37: 0 | P37: 0 | Q37: 0 | R37: =(1+$C$37)*Q37 -> 0
A38: Real Estate Taxes | C38: 0.035 | D38: =Operating!D104 -> 0 | E38: =(1+$C$38)*D38 -> 0 | F38: =(1+$C$38)*E38 -> 0 | G38: 0 | H38: 0 | I38: 0 | J38: 0 | K38: 0 | L38: 0 | M38: 0 | N38: 0 | O38: 0 | P38: 0 | Q38: 0 | R38: =(1+$C$38)*Q38 -> 0
A39: Supportive Services Costs | C39: 0.035 | D39: =Operating!D119 -> 0 | E39: =(1+$C$39)*D39 -> 0 | F39: =(1+$C$39)*E39 -> 0 | G39: =(1+$C$39)*F39 -> 0 | H39: 0 | I39: 0 | J39: 0 | K39: 0 | L39: 0 | M39: 0 | N39: 0 | O39: 0 | P39: 0 | Q39: 0 | R39: 0
A40: Replacement Reserve | C40: 0 | D40: =IF(Overview!$S$38="No",Operating!$D$123,IF(Overview!$S$38="",Operating!$D$123,IF(Overview!$S$38="Yes",0))) -> 0 | E40: =IF(Overview!$S$38="No",Operating!$D$123,IF(Overview!$S$38="",Operating!$D$123,IF(Overview!$S$38="Yes",0))) -> 0 | F40: =IF(Overview!$S$38="No",Operating!$D$123,IF(Overview!$S$38="",Operating!$D$123,IF(Overview!$S$38="Yes",0))) -> 0 | G40: =IF(Overview!$S$38="No",Operating!$D$123,IF(Overview!$S$38="",Operating!$D$123,IF(Overview!$S$38="Yes",0))) -> 0 | H40: =IF(Overview!$S$38="No",Operating!$D$123,IF(Overview!$S$38="",Operating!$D$123,IF(Overview!$S$38="Yes",0))) -> 0 | I40: =IF(Overview!$S$38="Yes",Operating!$D$123*2,IF(Overview!$S$38="No",Operating!$D$123,IF(Overview!$S$38="",Operating!$D$123,0))) -> 0 | J40: =(1+$C$40)*I40 -> 0 | K40: =(1+$C$40)*J40 -> 0 | L40: 0 | M40: 0 | N40: =Operating!$D$123 -> 0 | O40: =(1+$C$40)*N40 -> 0 | P40: 0 | Q40: 0 | R40: =(1+$C$40)*Q40 -> 0
A41: Other Reserves | C41: 0.035 | D41: =Operating!D124+Operating!D125+Operating!D126+Operating!E124+Operating!E125+Operating!E126 -> 0 | E41: =(1+$C$41)*D41 -> 0 | F41: =(1+$C$41)*E41 -> 0 | G41: 0 | H41: 0 | I41: 0 | J41: 0 | K41: 0 | L41: 0 | M41: 0 | N41: 0 | O41: 0 | P41: 0 | Q41: 0 | R41: =(1+$C$41)*Q41 -> 0
A42: Ground Lease | C42: 0.035 | D42: =Operating!D129+Operating!E129 -> 0 | E42: =(1+$C$42)*D42 -> 0 | F42: =(1+$C$42)*E42 -> 0 | G42: 0 | H42: 0 | I42: 0 | J42: 0 | K42: 0 | L42: 0 | M42: 0 | N42: 0 | O42: 0 | P42: 0 | Q42: 0 | R42: =(1+$C$42)*Q42 -> 0
A43: Commercial Expenses | C43: 0.035 | D43: =Operating!E121 -> 0 | E43: =(1+$C$43)*D43 -> 0 | F43: 0 | G43: 0 | H43: 0 | I43: 0 | J43: 0 | K43: 0 | L43: 0 | M43: 0 | N43: 0 | O43: 0 | P43: 0 | Q43: 0 | R43: =(1+$C$43)*Q43 -> 0
A44: Total Expenses & Reserves | D44: =SUM(D37:D43) -> 0 | E44: =SUM(E37:E43) -> 0 | F44: 0 | G44: 0 | H44: 0 | I44: 0 | J44: 0 | K44: 0 | L44: 0 | M44: 0 | N44: 0 | O44: 0 | P44: 0 | Q44: 0 | R44: 0
A46: Net Operating Income | D46: =D34-D44 -> 0 | E46: =E34-E44 -> 0 | F46: =F34-F44 -> 0 | G46: 0 | H46: 0 | I46: 0 | J46: 0 | K46: 0 | L46: 0 | M46: 0 | N46: 0 | O46: 0 | P46: 0 | Q46: 0 | R46: 0
A48: Debt Service
A49: =Operating!$C$134 -> 1st Mortgage Debt Service | D49: =Operating!$D$134 -> 0 | E49: =$D$49 -> 0 | F49: =$D$49 -> 0 | G49: =$D$49 -> 0 | H49: =$D$49 -> 0 | I49: 0 | J49: 0 | K49: 0 | L49: 0 | M49: 0 | N49: 0 | O49: 0 | P49: 0 | Q49: 0 | R49: 0
A50: Bridge Loan (repaid from Investor equity) | D50: 0 | E50: 0 | F50: 0 | G50: 0 | H50: 0
A51: =Operating!$C$135 -> 2nd Mortgage Debt Service | D51: =Operating!D135+Operating!E135 -> 0 | E51: =$D$51 -> 0 | F51: =$D$51 -> 0 | G51: 0 | H51: 0 | I51: 0 | J51: 0 | K51: 0 | L51: 0 | M51: 0 | N51: 0 | O51: 0 | P51: 0 | Q51: 0 | R51: 0
A52: =Operating!$C$136 -> 3rd Mortgage Debt Service | D52: =Operating!D136+Operating!E136 -> 0 | E52: =$D$52 -> 0 | F52: 0 | G52: 0 | H52: 0 | I52: 0 | J52: 0 | K52: 0 | L52: 0 | M52: 0 | N52: 0 | O52: 0 | P52: 0 | Q52: 0 | R52: 0
A53: =Operating!$C$137 -> Misc. Financial Expenses: (specify) | C53: 0.03 | D53: =Operating!D137+Operating!E137 -> 0 | E53: =(1+C53)*D53 -> 0 | F53: =(1+$C$53)*E53 -> 0 | G53: =(1+$C$53)*F53 -> 0 | H53: 0 | I53: 0 | J53: 0 | K53: 0 | L53: 0 | M53: 0 | N53: 0 | O53: 0 | P53: 0 | Q53: 0 | R53: =(1+$C$53)*Q53 -> 0
A54: =Operating!$C$138 -> Misc. Financial Expenses: (specify) | C54: 0.03 | D54: =Operating!D138+Operating!E138 -> 0 | E54: =(1+$C$54)*D54 -> 0 | F54: 0 | G54: 0 | H54: 0 | I54: 0 | J54: 0 | K54: 0 | L54: 0 | M54: 0 | N54: 0 | O54: 0 | P54: 0 | Q54: 0 | R54: 0
A55: =Operating!$C$139 -> Misc. Financial Expenses: (specify) | C55: 0.03 | D55: =Operating!D139+Operating!E139 -> 0 | E55: =(1+$C$55)*D55 -> 0 | F55: 0 | G55: 0 | H55: 0 | I55: 0 | J55: 0 | K55: 0 | L55: 0 | M55: 0 | N55: 0 | O55: 0 | P55: 0 | Q55: 0 | R55: 0
A56: =Operating!$C$140 -> Misc. Financial Expenses: (specify) | C56: 0.03 | D56: =Operating!D140+Operating!E140 -> 0 | E56: =(1+$CT$56)*D56 -> 0 | F56: 0 | G56: 0 | H56: 0 | I56: 0 | J56: 0 | K56: 0 | L56: 0 | M56: 0 | N56: 0 | O56: 0 | P56: 0 | Q56: 0 | R56: =(1+$C$56)*Q56 -> 0
A57: Total Required Debt Service | D57: =SUM(D49:D56)-D50 -> 0 | E57: 0 | F57: 0 | G57: 0 | H57: 0 | I57: 0 | J57: 0 | K57: 0 | L57: 0 | M57: 0 | N57: 0 | O57: 0 | P57: 0 | Q57: 0 | R57: 0
A59: Cash Flow after all debt service | D59: =D46-D57 -> 0 | E59: 0 | F59: 0 | G59: 0 | H59: 0 | I59: 0 | J59: 0 | K59: 0 | L59: 0 | M59: 0 | N59: 0 | O59: 0 | P59: 0 | Q59: 0 | R59: 0
A61: Debt Service Coverage Ratio (DSCR) | D61: =IF(D57<=0,0,((D46/D57))) -> 0 | E61: 0 | F61: 0 | G61: 0 | H61: 0 | I61: 0 | J61: 0 | K61: 0 | L61: 0 | M61: 0 | N61: 0 | O61: 0 | P61: 0 | Q61: 0 | R61: 0
A63: Cash Flow After Debt Service - HCD Projects
A64: Asset Mgmt./ Similar Fees | D64: =IF(D59>=D65,D65,MAX(0,D59)) -> 0 | E64: =IF(E59>=E65,E65,MAX(0,E59)) -> 0 | F64: 0 | G64: 0 | H64: 0 | I64: 0 | J64: 0 | K64: 0 | L64: 0 | M64: 0 | N64: 0 | O64: 0 | P64: 0 | Q64: 0 | R64: 0
A65: Max Asset Mgmt/Similar Fees | C65: 0.03 | D65: =Operating!$D$144 -> 0 | E65: =(1+$C$65)*D65 -> 0 | F65: =(1+$C$65)*E65 -> 0 | G65: =(1+$C$65)*F65 -> 0 | H65: 0 | I65: 0 | J65: 0 | K65: 0 | L65: 0 | M65: 0 | N65: 0 | O65: 0 | P65: 0 | Q65: 0 | R65: =(1+$C$65)*Q65 -> 0
A66: Target NOI to get to 1.1 DSCR | D66: =$D$57*1.1 -> 0
A67: Subsidy needed to get to 1.1 DSCR | D67: =-$D$66+$D$46 -> 0
A69: Reserves & Debt (not payable by HK Op Subsidy)
A70: Reserve Expenses | D70: =D40+D41 -> 0 | E70: 0 | F70: 0 | G70: 0 | H70: 0 | I70: 0 | J70: 0 | K70: 0 | L70: 0 | M70: 0 | N70: 0 | O70: 0 | P70: 0 | Q70: 0 | R70: 0
A71: Required Debt Service | D71: =D57 -> 0 | E71: =E57 -> 0 | F71: 0 | G71: 0 | H71: 0 | I71: =I57 -> 0 | J71: 0 | K71: 0 | L71: 0 | M71: 0 | N71: 0 | O71: 0 | P71: 0 | Q71: 0 | R71: 0
A72: Total Reserve Expenses and Debt | D72: =D70+D71 -> 0 | E72: =E70+E71 -> 0 | F72: =F70+F71 -> 0 | G72: =G70+G71 -> 0 | H72: 0 | I72: 0 | J72: 0 | K72: 0 | L72: 0 | M72: 0 | N72: 0 | O72: 0 | P72: 0 | Q72: 0 | R72: 0
A73: Reserve Exp. and Debt unpaid | D73: =D72 -> 0 | E73: =E72 -> 0 | F73: 0 | G73: 0 | H73: 0 | I73: 0 | J73: 0 | K73: 0 | L73: 0 | M73: 0 | N73: 0 | O73: 0 | P73: 0 | Q73: 0 | R73: 0
A76: Homekey Operating Subsidy amount | D76: ='Award, Match, and Revenue'!$U$7 -> 0
A77: Homekey Operating Subsidy Draw* | D77: =IF(D46+D70>=0,0,-MAX(D46+D70,-D76)) -> 0 | E77: =IF(E46+E70>=0,0,-MAX(E46+E70,-D81)) -> 0 | F77: =IF(F46+F70>=0,0,-MAX(F46+F70,-E81)) -> 0 | G77: =IF(G46+G70>=0,0,-MAX(G46+G70,-F81)) -> 0 | H77: =IF(H46+H70>=0,0,-MAX(H46+H70,-G81)) -> 0
A78: Cash Flow after HK Op Subsidy draw | D78: =D46+D77 -> 0 | E78: 0 | F78: 0 | G78: 0 | H78: 0 | I78: 0 | J78: 0 | K78: 0 | L78: 0 | M78: 0 | N78: 0 | O78: 0 | P78: 0 | Q78: 0 | R78: 0
A79: NOI after all draws | D79: =D46+D77 -> 0 | E79: 0 | F79: 0 | G79: 0 | H79: 0 | I79: 0 | J79: 0 | K79: 0 | L79: 0 | M79: 0 | N79: 0 | O79: 0 | P79: 0 | Q79: 0 | R79: 0
A80: DSCR with Homekey draws | D80: =IF(D57<=0,0,(D79/D57)) -> 0 | E80: =IF(E57<=0,0,(E79/E57)) -> 0 | F80: 0 | G80: 0 | H80: 0 | I80: 0 | J80: 0 | K80: 0 | L80: 0 | M80: 0 | N80: 0 | O80: 0 | P80: 0 | Q80: 0 | R80: 0
A81: *HK Op Subsidy balance after draws | D81: =D76-D77 -> 0 | E81: =D81-E77 -> 0 | F81: 0 | G81: 0 | H81: 0 | I81: 0 | J81: 0 | K81: 0 | L81: 0 | M81: 0 | N81: 0 | O81: 0 | P81: 0 | Q81: 0 | R81: 0
A83: Applicant Comments:

Sheet Supportive Services Plan
A1: §300(iii) Supportive Services Plan (SSP) | AJ1: =Overview!AJ1 -> Rev 4/23/2023
A2: Part I. Tenant Selection
A3: §502 asks for a detailed description of the Tenant Selection process. Using the titled sections below, the narrative should be as specific as possible, delineating the roles of property management and the support service provider and how these functions will be coordinated. Your description should clearly and conclusively document processes to ensure compliance with the Homekey Round 3 NOFA for Tenant Selection and Housing First Practices.
A4: Section 1: Tenant Selection Criteria
A5: Target Population and Eligibility Criteria
A6: a. Do you use Housing First Practices?
A7: b. Describe the criteria that will be used to ensure that tenants are eligible to occupy the Homekey Assisted Units.
A9: c. Description of the Target Population to be served, and identification of any additional subpopulation target or occupancy preference for the Project. (all sub-population targeting must be approved by HCD prior to standard agreement issuance and must be consistent with federal and state fair housing requirements).
A11: d. Describe any additional eligibility criteria other than those indicated above, i.e., information needed to determine if the tenant can comply with lease terms. NOTE: Selection criteria designed to assess anything other than the ability to comply with lease terms generally run afoul of fair housing laws designed to protect equal access to housing for people with disabilities. See Between the Lines, A Question and Answer Guide on Legal Issues in Supportive Housing Chapter 4.
A13: e. Identify all disclosures that will be provided to applicants/tenants. Example: Megan's Law disclosures, HMIS reporting, etc.
A15: Section 2: Referrals
A16: The following addresses the required use of the Coordinated Entry System (CES) for all referrals into Homekey Assisted Units or an alternate comparable prioritization system for those At Risk of Homelessness based on greatest need. Note that use of standard waiting lists is prohibited, in that both of these systems must prioritize referrals based on highest acuity needs, rather than first-come first served.
A17: a. Describe how the local CES will be used to fill Homekey Assisted Units based on the use of a standardized assessment tool which prioritizes those with the highest need and the most barriers to housing retention. Include the CES agency’s name, primary staff person’s name, and contact information. If the local CES is not yet operational, describe when it'll be established and the plan to use it.
A19: b. If using a separate comparable prioritization system than CES to refer persons At Risk of Homelessness describe that system. All referral protocols for Homekey Assisted Units must be developed in collaboration with the local CoC and implemented consistent with the requirements set forth in the Homekey NOFA.
A21: Section 3: Housing First Certification §501
A22: The Eligible Applicant shall certify to employ the core components of Housing First, as set forth at Welfare and Institutions Code §8255, subdivision (b), in its property management and tenant selection practices. Complete the checklist below to certify compliance with Housing First.
A23: Tenant Screening
A24: 1. If the project cannot serve someone, it works through the coordinated entry process to ensure that those individuals or families have access to housing and services elsewhere.
A25: 2. The project does everything possible not to reject an individual or family based on poor credit or financial history, poor or lack of rental history, minor criminal convictions, or behaviors that are interpreted as indicating a lack of “housing readiness.”
A26: 3. Access to the project is not contingent on sobriety, minimum income requirements, lack of a criminal record, completion of treatment, participation in services, or any other unnecessary condition not imposed by the terms of the funding itself.
A27: 4. People with disabilities are offered clear opportunities to request reasonable accommodations within applications and screening processes and during tenancy. Building and units include physical features that accommodate disabilities.
A28: Housing-Based Voluntary Services
A29: 1. If serving youth experiencing homelessness, services use a positive youth development model and culturally competent services to engage with tenants.
A30: 2. Services are informed by a harm-reduction philosophy that recognizes that substance use/ addiction are a part of some tenants’ lives. Tenants are engaged in non-judgmental communication regarding substance use and are offered education regarding safer practices and how to avoid risky behaviors.
A31: 3. Case managers and service coordinators who are trained in and actively employ evidence-based practices for client engagement, including, but not limited to, motivational interviewing and client-centered counseling.
A32: 4. Participation in services or compliance with service plans are not conditions of tenancy but are reviewed with tenants and regularly offered as a resource to tenants. Housing and service goals and plans are highly tenant driven.
A33: 5. Supportive services emphasize engagement and problem-solving over therapeutic goals.
A34: Housing Permanency
A35: 1. Substance use in and of itself, without other lease violations, is not considered a reason for eviction.
A36: 2. Tenants in supportive housing are given reasonable flexibility in paying their share of rent on time and offered special payment arrangements for rent arrears and/or assistance with financial management, including representative payee arrangements.
A37: 3. Every effort is made to provide a tenant the opportunity to transfer from one housing situation, program, or project to another if tenancy is in jeopardy. Whenever possible, eviction back into homelessness is avoided.
A38: 4. Program Requires Housing Providers to Provide Tenants with Leases and Reflects Tenants’ Rights & Responsibilities Of Tenancy Under CA Law (including eviction protections).
A39: Part II. Supportive Services Detail
A40: Section 1: Supportive Services Provider Information
A41: If already identified, list the supportive service provider (s) for the Target Population and any proposed sub-populations to be served by the Project. If more than one Provider will be offering services, describe how services will be coordinated.
A42: Provider Name | K42: Populations the Provider will serve | Y42: Services Provider will offer
A50: Describe any known conflicts and/or the mitigation strategy for when Homekey funding or other program requirements conflict with Housing First practices, as applicable.
A52: If your tenants and participants include minor children and/or adult dependents of Homekey Tenants, describe any additional criteria that will be used to ensure applicants are eligible to occupy the Homekey Assisted Units.
A54: Section 2: Supportive Services Chart
A55: Required Services: List and describe all services as required in §300 to be offered to tenants of the Homekey Assisted Units.
A56: Resident Service | F56: Service Description | Q56: Frequency | U56: Hours | X56: Service Provider | AC56: Off-site Service Location
A57: List each service separately | F57: Describe service, including the degree to which services are provided. | Q57: Frequency of services provided | U57: Provide the hours of availability | X57: Provider's Name | AC57: If service is on-site, leave blank. Enter distance, in miles, to off-site service and list resident commuting options. Reasonable access is access that does not require walking more that one-half mile.
A58: Case management
A59: Peer support activities
A60: Mental health care
A61: Substance use services
A62: Behavioral health services
A63: Physical health services
A64: Assistance obtaining benefits and essential documentation
A65: Education and employment services
A66: Other services, such as housing retention skills, legal assistance, family connection services, etc.
A67: Other Residential Services (specify)
A68: Other Residential Services (specify)
A69: Section 3: Supportive Services Coordination
A70: 1. Describe the accessibility of community services to which you propose linkages, whether they are on-site or in close proximity to the Project, and the frequency, travel time and cost to the tenant for transportation required to access the services to include both public transportation and private transportation services (e.g. van owned by the provider). If available, provide documentation, in the form of Memorandum of Understanding, Memorandum of Agreement, letters of support or contracts demonstrating who will be responsible for ensuring access to services and how accessibility will be accomplished.
A72: 2. Describe how the supportive services will be provided in a manner that is culturally and linguistically competent for persons of different races, ethnicities, sexual orientations, gender identities, and gender expressions. This includes explaining how services will be provided to Homekey tenants who do not speak English, or have other communication barriers, including sensory disabilities, and how communication among the services providers, the property manager and these tenants will be facilitated. Additionally, describe how services will accommodate trauma-based, barriers to services. If available, provide documentation, in the form of Memorandum of Understanding, Memorandum of Agreement, letters of support or contracts demonstrating who will be responsible for ensuring access to services and how accessibility will be accomplished.
A74: 3. Describe how you will engage with tenant and/or participant to encourage voluntary participation in services as well as in community building, such as resident councils or similar forums. Included a description of tenant/participant outreach, engagement and retention strategies to be used.
A76: Part III. Staffing
A77: Section 1a: Staffing Description
A78: Describe the overall staffing pattern, including the roles and responsibilities for each position listed in the Staffing Chart below. List the target populations served through each position.
A80: Section 1b: Staffing Chart
A81: List all staff positions that will provide services to the tenants of the Homekey Assisted Units. Include any staff positions of partnering organizations who have committed time to the Project. Include the services coordination staff. For each position, list the position title, minimum requirements, the full-time equivalent (FTE), the organization under which the position resides, and the location of the position (on-site or off-site). Do not include staff which serve non-Homekey Units and supervisors, peer support positions, or HMIS Administration positions. If a staff position serves both tenants in Homekey and non-Homekey units, include only that portion (i.e., % FTE) of the staff position dedicated to Homekey Assisted Units. Attach a copy of each positions duty statement, if these documents are available.
A82: NOTE: Indicate which staff position will be responsible for Homeless Management Information System data entry and CoC coordination.
A83: Title | E83: Minimum requirements | Z83: Total FTE: | AB83: =SUM(Z85:AC96) -> 0 | AD83: Employing Organization | AJ83: Location
A84: List each staff position | E84: List minimum required staff preparation include (education & experience). | Z84: Indicate FTE staff positions for Homekey units (half-time is 0.5) | AD84: List which organization will employ each staff position | AJ84: Select "On-Site" or "Off-Site"
A97: Section 2: Staffing Ratios
A98: 1. Complete case manager staffing ratio chart to show how many staff are assigned per client (for example 2:1, 3:1, etc.). Include all case management. Provide only the number of ongoing direct service staff positions that will provide services to the tenants of the Homekey Assisted Units, (for example, case manager, psychiatric nurse, services coordinator, etc.). Do not include supervisors, peer support positions, or HMIS Administration positions. Describe staffing ratio special circumstances below.
A99: Population Type: | I99: Chronically Homeless (cannot exceed 20 to 1 ratio) | O99: Homeless (cannot exceed 15 to 1 ratio) | U99: At-Risk of Homelessness (cannot exceed 40 to 1 ratio) | AA99: Homeless Youth, or Youth at Risk of Homelessness (cannot exceed 15 to 1 ratio) | AG99: Totals
A100: Units Serving Subpopulation | I100: ='Unit Mix'!V21 -> 0 | O100: ='Unit Mix'!W21 -> 0 | U100: ='Unit Mix'!U21 -> 0 | AA100: ='Unit Mix'!X21 -> 0 | AG100: =SUM(I100,O100,U100,AA100) -> 0
A101: Staff Serving Subpopulation | AG101: =SUM(I101,O101,U101,AA101) -> 0
A102: Case Manager Ratio | I102: =IFERROR(I100/I101,"") ->  | O102: =IFERROR(O100/O101,"") ->  | U102: =IFERROR(U100/U101,"") ->  | AA102: =IFERROR(AA100/AA101,"") ->  | AG102: =IFERROR(AG100/AG101,"") -> 
A104: Part IV. Supportive Services Budget
A105: Provide a line item supportive services budget for the Project using the format below. Complete both income and expense portions of the budget on a yearly basis. Include all costs associated with implementing your SSP, including any in-kind services. Include income and expenses for all staff positions and partnering organizations who have committed time to the Project. Total expenses should equal total income. Add expense item categories & lines as necessary. Don't include costs associated with providing services in non-Homekey Assisted Units. If costs are associated with both Homekey & non-Homekey Assisted Units, include only the Homekey Assisted Units portion.
A106: Income Source/Program Name | L106: Amount | P106: Type | Y106: Funding Status | AH106: % of Total Budget
A107: =IF('Award, Match, and Revenue'!$C$20="","",'Award, Match, and Revenue'!$C$20) ->  | AH107: =IF($L$112=0,0,L107/$L$112) -> 0
A108: =IF('Award, Match, and Revenue'!$C$22="","",'Award, Match, and Revenue'!$C$22) ->  | AH108: =IF($L$112=0,0,L108/$L$112) -> 0
A109: Homekey Operating Subsidy | AH109: =IF($L$112=0,0,L109/$L$112) -> 0
AH110: =IF($L$112=0,0,L110/$L$112) -> 0
AH111: =IF($L$112=0,0,L111/$L$112) -> 0
A112: Total Revenue | L112: =SUM(L107:O111) -> 0 | AH112: =IF($L$112=0,0,L112/$L$112) -> 0
A113: Expense Item | L113: Amount | P113: Type | Y113: Funding Status | AH113: % of Total Budget
A114: Staff Salaries: List by title of position. (This list must match the Staffing Chart above.)
A115: =A85 -> 0 | I115: FTE: | J115: =Z85 -> 0 | AH115: =IF($L$141=0,0,L115/$L$141) -> 0
A116: =A86 -> 0 | I116: FTE: | J116: =Z86 -> 0 | AH116: 0
A117: 0 | I117: FTE: | J117: 0 | AH117: 0
A118: 0 | I118: FTE: | J118: 0 | AH118: 0
A119: 0 | I119: FTE: | J119: 0 | AH119: 0
A120: 0 | I120: FTE: | J120: 0 | AH120: 0
A121: 0 | I121: FTE: | J121: 0 | AH121: 0
A122: 0 | I122: FTE: | J122: 0 | AH122: 0
A123: 0 | I123: FTE: | J123: 0 | AH123: 0
A124: 0 | I124: FTE: | J124: 0 | AH124: 0
A125: 0 | I125: FTE: | J125: 0 | AH125: 0
A126: 0 | I126: FTE: | J126: 0 | AH126: 0
A127: =Operating!$C$8 -> Supportive Services Staff Supervisor(s) | I127: FTE: | L127: =Operating!$D$8 -> 0 | AH127: 0
A128: =Operating!$C$9 -> Supportive Services Coordinator, On-Site | I128: FTE: | L128: =Operating!$D$9 -> 0 | AH128: 0
A129: =Operating!$C$10 -> Other Supportive Services Staff (inc. Case Manager) | I129: FTE: | L129: =Operating!$D$10 -> 0 | AH129: 0
A130: Fringe Benefits | AH130: 0
A131: Total Staff Expenses | L131: =SUM(L115:O130) -> 0 | AH131: 0
A132: =Operating!C110 -> Tenant Transportation (per SSP) | L132: =Operating!D110 -> 0 | AH132: 0
A133: =Operating!C111 -> Staff training (per SSP) | L133: =Operating!D111 -> 0 | AH133: 0
A134: =Operating!C112 -> Equipment | L134: =Operating!D112 -> 0 | AH134: 0
A135: =Operating!C113 -> Supplies | L135: =Operating!D113 -> 0 | AH135: 0
A136: =Operating!C114 -> Travel | L136: =Operating!D114 -> 0 | AH136: 0
A137: =Operating!C115 -> Office Rent/Occupancy Costs (don't include rent/leasing costs for SH units) | L137: =Operating!D115 -> 0 | AH137: 0
A138: =Operating!C116 -> Training | L138: =Operating!D116 -> 0 | AH138: 0
A139: =Operating!C117 -> Other Supportive Services Costs: (specify) | L139: =Operating!D117 -> 0 | AH139: 0
A140: =Operating!C118 -> Other Supportive Services Costs: (specify) | L140: =Operating!D118 -> 0 | AH140: 0
A141: Total Expenses | L141: =SUM(L131:O140) -> 0 | AH141: 0
A142: Part V. Property Management Plans and Tenant Selection
A143: Section 1: Property Management Plans and Tenant Selection
A144: The Property Management Plan and tenant selection policies submitted with the Homekey application will be evaluated for the following consistent with state Housing First requirements. These documents must identify, describe, and utilize Housing First and low-barrier tenant selection processes that prioritize those with the highest needs for available housing. The descriptions of the use of Housing First and tenant selection in this SSP must be consistent with the Property Management Plan and the tenant selection policies. The Property Management Plan and tenant selection policies should address the following and be consistent with state Housing First requirements, as well as and other Homekey program requirements:
A145: 1. Applicant eligibility and screening standards | AC145: Included in Property Management Plan?
A146: 2. Confidentiality | AC146: Included in Property Management Plan?
A147: 3. Substance abuse policy | AC147: Included in Property Management Plan?
A148: 4. Communication between property manager and supportive services staff | AC148: Included in Property Management Plan?
A149: 5. Eviction policies and eviction prevention procedures | AC149: Included in Property Management Plan?
A150: 6. Process for assisting tenants to apply for different forms of cash and non-cash benefits to aid the household in retaining their housing, if needed | AC150: Included in Property Management Plan?
A151: 7. How applicants and residents will be assisted in making reasonable accommodation requests, in coordination with the services provider and persuasive to outside entities, such as Housing Authorities, to ensure that persons with disabilities have access to and can maintain housing | AC151: Included in Property Management Plan?
A152: 8. Policies and practices to facilitate Voluntary Moving On strategies | AC152: Included in Property Management Plan?
A153: 9. Appeal and Grievance Procedures | AC153: Included in Property Management Plan?
A154: File Name | D154: Property Management Plan | L154: Submit Property Management Plan and Tenant Selection Policies | AE154: Uploaded to HCD?
A155: Part VI. Measurable Outcomes and Plan for Evaluation
A156: Specific target populations will likely have varying outcomes and evaluation strategies. List outcomes and evaluations plans specific to each target population.
A157: Section 1: Measurable Outcomes
A158: Outcomes are what you expect to happen for the people served by your Project. Outcomes are sometimes called results. Outcome objectives are time-specific measurable goals that identify how you know if you are achieving your desired results. Outcome objectives are sometimes called outcome benchmarks or indicators. Categorize the outcomes for your Project into the following three categories:
A159: Category | M159: Outcomes | Z159: Outcome Objectives
A160: Residential Stability: Tenants maintain permanent housing (see examples in cell comments to the right)
A161: Increased Skills and/or Income: Tenants gain job-related skills, participate in job-related training and/or education, gain stipend part-time or full-time supported employment, gain access to mainstream service/income support Programs for which they are eligible (see examples in cell comments to the right)
A162: Greater Self- Determination: Tenants gain daily living skills and ability to plan and advocate for themselves to maximize independence and self-sufficiency (see examples in cell comments to the right)
A163: Other (specify)
A164: Section 2: Plan for Evaluation
A165: Describe your evaluation plan, including how you intend to collect, track and analyze data on the effectiveness of your Project, including the outcomes Projected above. Indicate who will analyze the data and perform your Program evaluation. (e.g., staff, consultant, etc.).
A168: Applicant Comments

Sheet Application Scoring Criteria
A1: §304 Application Scoring Criteria (186 Points Max) | AK1: =Overview!AJ1 -> Rev 4/23/2023
AK2: Self Score | AM2: Possible Points
A3: Applications meeting the minimum program requirements outlined in Article III will require a minimum score of 100 points to be eligible for funding. Scores will be based on the following criteria: | AE3: Total Self Score not including §304(1)(b) | AK3: =MIN(185,$AK$4+$AK$30+$AK$57+$AK$77+$AK$79) -> 0 | AM3: 186
A4: 1. Ability to secure site and demonstration of sustained operating leverage - max 70 points | AK4: =SUM($AK$5,$AK$25,$AK$28) -> 0 | AM4: 70
A5: a. Identification of the site suitable for development and evidence of site control, or a plan and timeline for obtaining site control along with other supporting evidence - 20 max points based on average score of all sites. | AK5: =IFERROR(SUM($AK$7:$AL$24)/COUNT($AK$7:$AL$24),0) -> 0 | AM5: 20
A6: Type of Site Control | AO6: a. Fee title, evidenced by a current title report (within 90 days of application) showing the applicant holds fee title, or for tribal trust land, a title status report (TSR) or an attorney’s opinion regarding chain of title and current title status; | AP6: 20
A7: =IF(Threshold!O19="","",Threshold!O19) ->  | AK7: =IF($A$7="","",VLOOKUP($A$7,$AO$6:$AP$13,2,FALSE)) ->  | AO7: b. Leasehold interest on the property with provisions that enable the lessee to make improvements on and encumber the property | AP7: 20
A8: =IF(Threshold!O20="","",Threshold!O20) ->  | AK8: =IF($A$8="","",VLOOKUP($A$8,$AO$6:$AP$13,2,FALSE)) ->  | AO8: c. Leasehold estate held by a Tribal Entity in federal tribal trust lands property, or a valid sublease thereof approved by the Bureau of Indian Affairs | AP8: 20
A9: =IF(Threshold!O21="","",Threshold!O21) ->  | AK9: =IF($A$9="","",VLOOKUP($A$9,$AO$6:$AP$13,2,FALSE)) ->  | AO9: d. Executed disposition and development agreement | AP9: 20
A10: =IF(Threshold!O22="","",Threshold!O22) ->  | AK10: =IF($A$10="","",VLOOKUP($A$10,$AO$6:$AP$13,2,FALSE)) ->  | AO10: e. A sales contract, or other enforceable agreement for the acquisition of the property | AP10: 20
A11: =IF(Threshold!O23="","",Threshold!O23) ->  | AK11: =IF($A$11="","",VLOOKUP($A$11,$AO$6:$AP$13,2,FALSE)) ->  | AO11: f. Executed letter of intent that represents to HCD, the Applicant will acquire a sufficient legal interest in the property to accomplish the purpose of the award | AP11: 15
A12: =IF(Threshold!O24="","",Threshold!O24) ->  | AK12: =IF($A$12="","",VLOOKUP($A$12,$AO$6:$AP$13,2,FALSE)) ->  | AO12: g. Other (describe in row 40 of Threshold worksheet) | AP12: 15
A13: =IF(Threshold!O25="","",Threshold!O25) ->  | AK13: =IF($A$13="","",VLOOKUP($A$13,$AO$6:$AP$13,2,FALSE)) ->  | AO13: None | AP13: 0
A14: =IF(Threshold!O26="","",Threshold!O26) ->  | AK14: =IF($A$14="","",VLOOKUP($A$14,$AO$6:$AP$13,2,FALSE)) -> 
A15: =IF(Threshold!O27="","",Threshold!O27) ->  | AK15: =IF($A$15="","",VLOOKUP($A$15,$AO$6:$AP$13,2,FALSE)) -> 
A16: =IF(Threshold!O28="","",Threshold!O28) ->  | AK16: =IF($A$16="","",VLOOKUP($A$16,$AO$6:$AP$13,2,FALSE)) -> 
A17: =IF(Threshold!O29="","",Threshold!O29) ->  | AK17: =IF($A$17="","",VLOOKUP($A$17,$AO$6:$AP$13,2,FALSE)) -> 
A18: =IF(Threshold!O30="","",Threshold!O30) ->  | AK18: =IF($A$18="","",VLOOKUP($A$18,$AO$6:$AP$13,2,FALSE)) -> 
A19: =IF(Threshold!O31="","",Threshold!O31) ->  | AK19: =IF($A$19="","",VLOOKUP($A$19,$AO$6:$AP$13,2,FALSE)) -> 
A20: =IF(Threshold!O32="","",Threshold!O32) ->  | AK20: =IF($A$20="","",VLOOKUP($A$20,$AO$6:$AP$13,2,FALSE)) -> 
A21: =IF(Threshold!O33="","",Threshold!O33) ->  | AK21: =IF($A$21="","",VLOOKUP($A$21,$AO$6:$AP$13,2,FALSE)) -> 
A22: =IF(Threshold!O34="","",Threshold!O34) ->  | AK22: =IF($A$22="","",VLOOKUP($A$22,$AO$6:$AP$13,2,FALSE)) -> 
A23: =IF(Threshold!O35="","",Threshold!O35) ->  | AK23: =IF($A$23="","",VLOOKUP($A$23,$AO$6:$AP$13,2,FALSE)) -> 
A24: =IF(Threshold!O36="","",Threshold!O36) ->  | AK24: =IF($A$24="","",VLOOKUP($A$24,$AO$6:$AP$13,2,FALSE)) -> 
A25: b. Commitment of non-Homekey rental or operating subsidies that will be used to maintain the ongoing affordability of the Project - max 40 points b(i). Applicant contribution of non-Homekey Enforceable Funding Commitments for operating subsidies, including, but not limited to, Project-Based Vouchers, VASH vouchers, tenant-based vouchers, or locally funded rental assistance. One point five (1.5) points for each five percent increment of non-HK operating subsidies covering operating expenses in the first five years of project operations (up to 30 points). | AK25: =$AK$26+$AK$27 -> 0 | AM25: 40
A26: Commitment of non-Homekey rental and operating subsidies (Years 1-5) | H26: =SUM('Cash Flow'!$D$8:$H$11)+(SUM('Cash Flow'!$D$13:$H$16)) -> 0 | L26: Operating Gap (total expenses & reserve - restricted & unrestricted unit rents - reserves) | U26: =SUM('Cash Flow'!$D$44:$H$44)-SUM('Cash Flow'!$D$5:$H$6)-SUM('Cash Flow'!$D$40:$H$41) -> 0 | Z26: % increment of committed funding | AD26: =IFERROR(MIN(1,H26/U26),0) -> 0 | AF26: Increment of 5% | AI26: =ROUNDDOWN(AD26/0.05,0) -> 0 | AK26: =MIN(30,$AI$26*1.5) -> 0
A27: (HCD will score this section) b(ii). The length and strength of non Homekey operating funding leveraged to cover operating costs committed beyond the required five years of initial Project operations. Score is based on weighted commitment type, percentage of costs covered, and length of commitment. One (1) point for each year beyond the first five (5) years through year fifteen (15) of Project operations (up to 10 points). | AK27: 0 | AM27: 10
A28: c. Where average total cost per Assisted Unit is below the minimum baseline per door, 1 point for every $10,000 under baseline amount - max 10 pts | AK28: =$AK$29 -> 0 | AM28: 10
A29: Average baseline per Assisted Unit from 'Unit Mix' worksheet cells AB21 / Y21 | H29: =IFERROR('Unit Mix'!$AB$21/'Unit Mix'!$Y$21,0) -> 0 | K29: Average cost per Assisted unit from 'Award, Match, and Revenue' worksheet cells U4 / 'Unit Mix' worksheet Y21 | R29: =IFERROR('Award, Match, and Revenue'!$U$4/'Unit Mix'!$Y$21,0) -> 0 | U29: Requested below minimum baseline (per unit) | Z29: =MAX(0,$H$29-$R$29) -> 0 | AC29: Increments of $10,000 under baseline amount | AH29: =MAX(0,MIN(10,ROUNDDOWN($Z$29/10000,0))) -> 0 | AK29: =MIN(10,$AH$29) -> 0
A30: 2. Experience and Coordination - max 40 points | AK30: =$AK$31+$AK$43+$AK$55 -> 0 | AM30: 40
A31: a. Development, ownership, or operation experience - max 25 points | AK31: =MAX($AK$32,$AK$35)+$AK$39 -> 0 | AM31: 25
A32: a1. Does Applicant have the following experience: Development, ownership, or operation of one project similar in scope and size to the proposed project (describe below) - 10 points | AH32: =IF(Threshold!AK67="","",Threshold!AK67) ->  | AK32: =IF($AH$32="Yes",10,0) -> 0 | AM32: 10
A33: Project name and address | Q33: Who provides the experience | V33: Experience type | Z33: Housing type | AC33: Population served | AJ33: Latest date developed, owned, or operated
A34: =IF(Threshold!$A$69="","",Threshold!$A$69) ->  | Q34: =IF(Threshold!$Q$69="","",Threshold!$Q$69) ->  | V34: =IF(Threshold!$V$69="","",Threshold!$V$69) ->  | Z34: =Threshold!$Z$69 -> Similar Size and Scope | AC34: =IF(Threshold!$AC$69="","",Threshold!$AC$69) ->  | AJ34: =IF(Threshold!$AJ$69="","",Threshold!$AJ$69) -> 
A35: a2. If a1 above is Yes, 10 points already earned. Does Applicant have the following experience? Development, ownership, or operation of at least two affordable rental housing or interim projects in the last ten years, with at least one of those projects containing at least one unit housing a tenant who qualifies as a member of the Target Population (provide details below)? - 10 points | AH35: =IF(AP37+AP38=10,"Yes","No") -> No | AK35: =IF($AK$32=10,0,IF($AH$35="Yes",10,0)) -> 0 | AM35: 10
A36: Project name and address | Q36: Who provides the experience | V36: Experience type | Z36: Housing type | AC36: Qualifying unit population served | AJ36: Latest date developed, owned, or operated | AN36: 2023-03-29 | AO36: =AN36-(365*10) -> 2013-03-31
A37: =IF(Threshold!$A$72="","",Threshold!$A$72) ->  | Q37: =IF(Threshold!$Q$72="","",Threshold!$Q$72) ->  | V37: =IF(Threshold!$V$72="","",Threshold!$V$72) ->  | Z37: =Threshold!$Z$72 -> Affordable Rental | AC37: =IF(Threshold!$AC$72="","",Threshold!$AC$72) ->  | AJ37: =IF(Threshold!$AJ$72="","",Threshold!$AJ$72) ->  | AN37: =IF(AND(A37<>"",AC37<>""),1,0) -> 0 | AO37: =IF(AND(A37<>"",AJ37>AO36),1,0) -> 0 | AP37: =IF(AN37+AO37>1,5,0) -> 0
A38: =IF(Threshold!$A$73="","",Threshold!$A$73) ->  | Q38: =IF(Threshold!$Q$73="","",Threshold!$Q$73) ->  | V38: =IF(Threshold!$V$73="","",Threshold!$V$73) ->  | Z38: =Threshold!$Z$73 -> Affordable Rental | AC38: =IF(Threshold!$AC$73="","",Threshold!$AC$73) ->  | AJ38: =IF(Threshold!$AJ$73="","",Threshold!$AJ$73) ->  | AN38: =IF(AND(A38<>"",AC38<>""),1,0) -> 0 | AO38: =IF(AND(A38<>"",AJ38>AO36),1,0) -> 0 | AP38: =IF(AN38+AO38>1,5,0) -> 0
A39: a3. Five (5) additional points awarded for each additional project beyond the base threshold requirement (development, ownership, or operation of affordable rental housing or interim projects in the last 10 years serving at least one member of the Target Population) - max 15 points | AK39: =SUM($AP$40:$AP$42) -> 0 | AM39: 15
AN40: =IF(AND(A40<>"",AC40<>""),1,0) -> 0 | AO40: =IF(AND(A40<>"",AJ40>AO36),1,0) -> 0 | AP40: =IF(AN40+AO40>1,5,0) -> 0
AN41: =IF(AND(A41<>"",AC41<>""),1,0) -> 0 | AO41: =IF(AND(A41<>"",AJ41>AO36),1,0) -> 0 | AP41: =IF(AN41+AO41>1,5,0) -> 0
AN42: =IF(AND(A42<>"",AC42<>""),1,0) -> 0 | AO42: =IF(AND(A42<>"",AJ42>AO36),1,0) -> 0 | AP42: 0
A43: b. Service provider's experience helping persons address barriers to housing stability and providing other support services; one (1) point awarded for each year of service experience, after 3 years - max 15 points | AF43: Years | AH43: =SUM(AO45:AO54)/12 -> 0 | AK43: =MIN(15,ROUNDDOWN($AN$43,0)) -> 0 | AM43: 15 | AN43: =IF(AH43>3,AH43-3,0) -> 0
A44: Project Name and address | U44: Experience Provider | AA44: Housing type | AD44: Population Served | AK44: # of months serving
A45: =IF(Threshold!$A$84="","",Threshold!$A$84) ->  | U45: Supportive Service Provider | AA45: =IF(Threshold!$AA$84="","",Threshold!$AA$84) ->  | AD45: =IF(Threshold!$AD$84="","",Threshold!$AD$84) ->  | AK45: =IF(Threshold!AK84="","",Threshold!AK84) ->  | AN45: =IF(AND(A45<>"",U45<>"",AA45<>"",AD45<>""),1,0) -> 0 | AO45: =IF(AN45=1,AK45,0) -> 0
A46: =IF(Threshold!$A$85="","",Threshold!$A$85) ->  | U46: Supportive Service Provider | AA46: =IF(Threshold!$AA$85="","",Threshold!$AA$85) ->  | AD46: =IF(Threshold!$AD$85="","",Threshold!$AD$85) ->  | AK46: =IF(Threshold!AK85="","",Threshold!AK85) ->  | AN46: 0 | AO46: 0
A47: =IF(Threshold!$A$86="","",Threshold!$A$86) ->  | U47: Supportive Service Provider | AA47: =IF(Threshold!$AA$86="","",Threshold!$AA$86) ->  | AD47: =IF(Threshold!$AD$86="","",Threshold!$AD$86) ->  | AK47: =IF(Threshold!AK86="","",Threshold!AK86) ->  | AN47: 0 | AO47: 0
A48: =IF(Threshold!$A$87="","",Threshold!$A$87) ->  | U48: Supportive Service Provider | AA48: =IF(Threshold!$AA$87="","",Threshold!$AA$87) ->  | AD48: =IF(Threshold!$AD$87="","",Threshold!$AD$87) ->  | AK48: =IF(Threshold!AK87="","",Threshold!AK87) ->  | AN48: 0 | AO48: 0
A49: =IF(Threshold!$A$88="","",Threshold!$A$88) ->  | U49: Supportive Service Provider | AA49: =IF(Threshold!$AA$88="","",Threshold!$AA$88) ->  | AD49: =IF(Threshold!$AD$88="","",Threshold!$AD$88) ->  | AK49: =IF(Threshold!AK88="","",Threshold!AK88) ->  | AN49: 0 | AO49: 0
A50: =IF(Threshold!$A$89="","",Threshold!$A$89) ->  | U50: Supportive Service Provider | AA50: =IF(Threshold!$AA$89="","",Threshold!$AA$89) ->  | AD50: =IF(Threshold!$AD$89="","",Threshold!$AD$89) ->  | AK50: =IF(Threshold!AK89="","",Threshold!AK89) ->  | AN50: 0 | AO50: 0
A51: =IF(Threshold!$A$90="","",Threshold!$A$90) ->  | U51: Supportive Service Provider | AA51: =IF(Threshold!$AA$90="","",Threshold!$AA$90) ->  | AD51: =IF(Threshold!$AD$90="","",Threshold!$AD$90) ->  | AK51: =IF(Threshold!AK90="","",Threshold!AK90) ->  | AN51: 0 | AO51: 0
A52: =IF(Threshold!$A$91="","",Threshold!$A$91) ->  | U52: Supportive Service Provider | AA52: =IF(Threshold!$AA$91="","",Threshold!$AA$91) ->  | AD52: =IF(Threshold!$AD$91="","",Threshold!$AD$91) ->  | AK52: =IF(Threshold!AK91="","",Threshold!AK91) ->  | AN52: 0 | AO52: 0
A53: =IF(Threshold!$A$92="","",Threshold!$A$92) ->  | U53: Supportive Service Provider | AA53: =IF(Threshold!$AA$92="","",Threshold!$AA$92) ->  | AD53: =IF(Threshold!$AD$92="","",Threshold!$AD$92) ->  | AK53: =IF(Threshold!AK92="","",Threshold!AK92) ->  | AN53: 0 | AO53: 0
A54: =IF(Threshold!$A$93="","",Threshold!$A$93) ->  | U54: Supportive Service Provider | AA54: =IF(Threshold!$AA$93="","",Threshold!$AA$93) ->  | AD54: =IF(Threshold!$AD$93="","",Threshold!$AD$93) ->  | AK54: =IF(Threshold!AK93="","",Threshold!AK93) ->  | AN54: 0 | AO54: 0
A55: c. Commitment letter(s) or MOU(s) documenting how the complete development and management team (which may include Applicant, Developer, Property Manager, and Lead Service Provider) are connected and will work together on the Project. Applicants are encouraged to complete due diligence checklists to ensure all members of the team are aware of roles and responsibilities - 15 points | AK55: =IF(AK56="Yes",15,0) -> 0 | AM55: 15
A56: File Name: | D56: Commitment letter(s) or MOU(s) | L56: Provide commitment letter(s) or MOU(s) documentation | AE56: On USB? | AF56: Uploaded to HCD?
A57: 3. Community impact and site selection - max 76 points | AK57: =SUM(AK58,AK59,AK60,AK61,AK64) -> 0 | AM57: 76
A58: a. Project serves specific sub-populations from 'Unit Mix cells V22, W22, X22 - 20 points | N58: Chronic Homelessness | R58: ='Unit Mix'!$V$22 -> 0 | U58: Homelessness | Y58: ='Unit Mix'!$W$22 -> 0 | AB58: Homeless Youth or Youth at Risk of Homelessness | AH58: ='Unit Mix'!$X$22 -> 0 | AK58: =IF(OR($R$58>=0.25,$Y$58>=0.5,$AH$58>=0.25),20,0) -> 0 | AM58: 20
A59: b. Assisted Units include units for large family housing types - 10 points | H59: Percentage of Assisted units that are three bedrooms or larger | S59: ='Unit Mix'!M31+'Unit Mix'!M32+'Unit Mix'!M33 -> 0 | V59: Percentage of Assisted units that are two bedrooms or larger | AH59: ='Unit Mix'!$M$30+'Unit Mix'!$M$31+'Unit Mix'!$M$32+'Unit Mix'!$M$33 -> 0 | AK59: =IF(AND($S$59>=0.25,$AH$59>=0.5),10,0) -> 0 | AM59: 10
A60: c. If proposed project is Permanent, Applicant waives any potential accommodation by the Department to increase income limits at year 15 from the recordation of the use restriction, as described in §303(ii) - max 20 points | Q60: Total Assisted units Applicant elects to waive the right to increase income limits at year 15 from the recordation of the use restriction, as described in §303(ii) | AB60: Percentage of Assisted units elected to waive increase of income limits at year 15 | AH60: =IFERROR($Z$60/'Unit Mix'!$Y$21,0) -> 0 | AK60: =IF($O$60<>"Yes",0,IF($AH$60=1,20,IF($AH$60>=0.75,10,IF($AH$60>=0.5,5,IF($AH$60>=0.25,3,0))))) -> 0 | AM60: 20
A61: d. Extent Project commits to being accessible to persons with disabilities - max 10 points | W61: Total units from 'Unit Mix' worksheet cell E21 | AH61: ='Unit Mix'!$E$21 -> 0 | AK61: =IF($AH$61<0,0,$AK$62+$AK$63) -> 0 | AM61: 10
A62: # of units exceeding state and federal accessibility requirements set forth in §505, specifically units with features accessible to persons with mobility disabilities - 5 points | W62: % of units exceeding state and federal accessibility requirements as set forth in §505 | AH62: =IFERROR($U$62/$AH$61,0) -> 0 | AK62: =IF(AND('Unit Mix'!$E$21>=0,$AH$62>=0.15),5,0) -> 0 | AM62: 5
A63: # of units with features accessible to persons with hearing or vision disabilities as defined in 24 CFR Part 8.22 and the parallel ADAAG 2010 and CBC Ch. 11B provisions - 5 points | W63: % of units accessible to persons with hearing or vision disabilities | AH63: =IFERROR(U63/$AH$61,0) -> 0 | AK63: =IF(AND('Unit Mix'!$E$21>=0,$AH$63>=0.1),5,0) -> 0 | AM63: 5
A64: e. Site Selection - (max 12 points; max 16 points for Rural Projects; max 15 Points for Youth Projects) | AK64: =SUM($AK$66:$AL$74) -> 0 | AM64: 12/15
A65: File Name: | D65: Amenities Site Map | L65: Map indicating the proposed housing location(s) and scoring related amenities below. | AF65: Uploaded to HCD?
A66: i. Project site is located within 1/2 mile of a bus rapid transit station, light rail station, commuter rail station, ferry terminal, bus station, or public bus stop OR the project includes an alternative transportation service for residents (e.g., van or dial-a-ride service), if costs of obtaining and maintaining the van and its service are included in the budget and the operating schedule is either on demand by tenants or a regular schedule is provided - max 4 points | AK66: =IF($AI$66="Yes",4,0) -> 0 | AM66: 4
A67: ii. Project site is located proximity to a full-scale grocery store/supermarket where staples, fresh meat, and fresh produce are sold - max 2 points | Z67: Rural Area? | AB67: =IF(Overview!$AK$26="","",Overview!$AK$26) ->  | AK67: =IF(AND($AB$67="Yes",$AD$67="within 1 mile radius of project"),2,IF(AND($AB$67="No",$AD$67="within 1/2 mile radius of project"),2,IF(AND($AB$67="No",$AD$67="within 1/2 mile radius of project"),2,IF(AND($AB$67="No",$AD$67="within 2 miles radius of project"),0,IF(AND($AB$67="Yes",$AD$67="within 1/2 mile radius of project"),2,IF(AND($AB$67="Yes",$AD$67="within 2 miles radius of project"),1,IF(AND($AB$67="No",$AD$67="within 1 mile radius of project"),1,0))))))) -> 0 | AM67: 2
A68: iii. Project site is located within proximity of a qualifying medical clinic with a physician, physician’s assistant, or nurse practitioner on-site for a minimum of 40 hours each week, or hospital (not a private doctor's office.) A qualifying medical clinic must accept Medi-Cal/Medicare payments, or Health Care for the Homeless, or have an equally comprehensive subsidy program for low-income patients. - max 1 point | Z68: Rural Area? | AB68: =IF(Overview!$AK$26="","",Overview!$AK$26) ->  | AK68: =IF(AND($AB$68="Yes",$AD$68="within 1 mile radius of project"),1,IF(AND($AB$68="No",$AD$68="within 1/2 mile radius of project"),1,IF(AND($AB$68="No",$AD$68="within 1/2 mile radius of project"),1,IF(AND($AB$68="No",$AD$68="within 2 miles radius of project"),0,IF(AND($AB$68="Yes",$AD$68="within 1/2 mile radius of project"),1,IF(AND($AB$68="Yes",$AD$68="within 2 miles radius of project"),0.5,IF(AND($AB$68="No",$AD$68="within 1 mile radius of project"),0.5,0))))))) -> 0 | AM68: 1
A69: iv. Project site is located within proximity of a book-lending public library - max 1 point | Z69: Rural Area? | AB69: =IF(Overview!$AK$26="","",Overview!$AK$26) ->  | AK69: =IF(AND($AB$69="Yes",$AD$69="within 1 mile radius of project"),1,IF(AND($AB$69="No",$AD$69="within 1/2 mile radius of project"),1,IF(AND($AB$69="No",$AD$69="within 1/2 mile radius of project"),1,IF(AND($AB$69="No",$AD$69="within 2 miles radius of project"),0,IF(AND($AB$69="Yes",$AD$69="within 1/2 mile radius of project"),1,IF(AND($AB$69="Yes",$AD$69="within 2 miles radius of project"),0.5,IF(AND($AB$69="No",$AD$69="within 1 mile radius of project"),0.5,0))))))) -> 0 | AM69: 1
A70: v. Project site is located within proximity of a pharmacy. May be included in a grocery store or health facility - max 2 points | Z70: Rural Area? | AB70: =IF(Overview!$AK$26="","",Overview!$AK$26) ->  | AK70: =IF(AND($AB$70="Yes",$AD$70="within 1 mile radius of project"),2,IF(AND($AB$70="No",$AD$70="within 1/2 mile radius of project"),2,IF(AND($AB$70="No",$AD$70="within 1/2 mile radius of project"),2,IF(AND($AB$70="No",$AD$70="within 2 miles radius of project"),0,IF(AND($AB$70="Yes",$AD$70="within 1/2 mile radius of project"),2,IF(AND($AB$70="Yes",$AD$70="within 2 miles radius of project"),1,IF(AND($AB$70="No",$AD$70="within 1 mile radius of project"),1,0))))))) -> 0 | AM70: 2
A71: vi. Project site is located within proximity of a public park or a community center accessible to the general public - max 1 point | Z71: Rural Area? | AB71: =IF(Overview!$AK$26="","",Overview!$AK$26) ->  | AK71: =IF(AND($AB$71="Yes",$AD$71="within 1 mile radius of project"),1,IF(AND($AB$71="No",$AD$71="within 1/2 mile radius of project"),1,IF(AND($AB$71="No",$AD$71="within 1/2 mile radius of project"),1,IF(AND($AB$71="No",$AD$71="within 2 miles radius of project"),0,IF(AND($AB$71="Yes",$AD$71="within 1/2 mile radius of project"),1,IF(AND($AB$71="Yes",$AD$71="within 2 miles radius of project"),0.5,IF(AND($AB$71="No",$AD$71="within 1 mile radius of project"),0.5,0))))))) -> 0 | AM71: 1
A72: vii. Project site has high speed internet service, with a minimum average download speed of 25 megabits/second must be made available to each Unit for a minimum of 15 years, free of charge to the tenants and participants, and available within six months of the project’s placed-in-service date. Documentation of internet availability must be included in the application. max 3 points | AE72: Rural Area? | AG72: =IF(Overview!$AK$26="","",Overview!$AK$26) ->  | AK72: =IF(AND($AG$72="Yes",$AI$72="Yes"),3,IF(AND($AG$72="No",$AI$72="No"),0,IF(AND($AG$72="No",$AI$72="Yes"),2,IF(AND($AG$72="Yes",$AI$72="No"),0,0)))) -> 0 | AM72: 3
A73: File Name: | D73: High Speed Internet | L73: If cell AI72 is "Yes", provide document of Internet availability | AF73: Uploaded to HCD?
A74: viii. For Projects with units serving Homeless Youth: Project site is within proximity of at least two of the following: community colleges, universities, trade schools, apprenticeship programs, employment programs, childcare centers for parenting youth, and/or community centers for youth (e.g., LGBTQ+ centers, drop-in youth centers)? - max 2 points | AE74: Homeless Youth? | AG74: =IF('Unit Mix'!$X$21>0,"Yes","No") -> No | AK74: =IF(AND($AG$74="Yes",$AI$74="Yes"),2,IF(AND($AG$74="No",$AI$74="No"),0,IF(AND($AG$74="No",$AI$74="Yes"),0,IF(AND($AG$74="Yes",$AI$74="No"),0,0)))) -> 0 | AM74: 2
A75: 4. Relocation Impacts - max minus 20 points
A76: a. For any Project resulting in the permanent displacement of residents (not businesses or farm operations), as outlined below:
A77: The Project permanently displaces existing residents: | H77: Total existing units | M77: ='Unit Mix'!$B$21 -> 0 | O77: Total household units that will be displaced | X77: Percentage of household units that will be displaced | AH77: =IFERROR($V$77/$M$77,0) -> 0 | AK77: =IF($AH$77<0.05,0,MAX(-20,-$AH$77*100)) -> 0 | AM77: -20
A78: 5. Negative Points
A79: a. Negative Points assessed by the Department to the Applicant
A80: Note: In the event of program oversubscription, where Applicants have the same score and the same date and time stamp, the Department may consider additional criteria as a tiebreaker, including but not limited to the cost-effectiveness, community impact, affirmatively furthering fair housing, innovative housing types, tenant and participant stability and proximity to transit, services and amenities.
A82: Applicant Comments

Sheet Application Upload Checklist
A1: 1Application Upload Checklist | AK1: =Overview!AJ1 -> Rev 4/23/2023
A2: The Checklist below is intended to be used after the Applicant completes the Homekey Round 3 application. Use the electronic file name descriptions below for the electronic submission via online portal. Failure to submit a complete application including the required documentation may result in the need for you to amend and resubmit your application resulting in your application's HCD review to be repositioned to the date of resubmittal. Application materials, workbooks, and supporting documentation must be submitted no later than 5:00 p.m. Pacific Daylight Time on July 28, 2023.
A3: 1Applicant acknowledges that the Application Upload Checklist is a form in the application to be completed by the Applicant prior to submission to verify that required documents are submitted pursuant to this NOFA?
A4: Overview worksheet
A5: Threshold Req. | D5: Electronic File Name | L5: Document Description | AJ5: Uploaded to HCD?
A6: Yes | D6: HK Round 3 Application | L6: Completed Application
A7: Primary Applicant (App1)
A8: Yes | D8: App1 Cert & Legal | L8: =Overview!L60 -> Reference: Certification & Legal Worksheet
A9: Yes | D9: App1 Resolution | L9: =Overview!L61 -> Signature required; see Applicant Documents worksheet.
A10: Yes | D10: App1 TIN Form | L10: =Overview!L62 -> See Applicant Documents worksheet
A11: Yes | D11: App1 Signature Block | L11: =Overview!L63 -> See Applicant Documents worksheet
A12: Co-Applicant 1 (Co-App1)
A13: Yes | D13: Co-App1 Cert & Legal | L13: =Overview!L71 -> Reference: Certifications & Legal worksheet.
A14: Yes | D14: Co-App1 Resolution | L14: =Overview!L72 -> Signature required; see Applicant Documents worksheet.
A15: Yes | D15: Co-App1 OrgDoc1, OrgDoc1, etc.… | L15: =Overview!L73 -> See Applicant Documents worksheet
A16: Yes | D16: Co-App1 OrgChart | L16: =Overview!L74 -> See Applicant Documents worksheet
A17: Yes | D17: Co-App1 Signature Block | L17: =Overview!L75 -> See Applicant Documents worksheet
A18: Yes | D18: Co-App1 Payee Data or TIN | L18: =Overview!L76 -> See Applicant Documents worksheet
A19: Yes | D19: Co-App1 Cert of Good Standing | L19: =Overview!L77 -> Dated 30 days or less from the Application due date
A20: Yes | D20: Co-App1 Tax-Exempt Status | L20: =Overview!L78 -> Evidence of tax-exempt status from IRS and Franchise Tax Board, if applicable
A21: Yes | D21: Co-App1 Article of Org | L21: LLC | N21: See Applicant Documents worksheet
A22: Yes | D22: Co-App1 Cert of Amendment
A23: Yes | D23: Co-App1 Stat of Information
A24: Yes | D24: Co-App1 Cert of LP | L24: LP | N24: See Applicant Documents worksheet
A25: Yes | D25: Co-App1 LP Agreement
A26: Co-Applicant 2 (Co-App2)
A27: Yes | D27: Co-App2 Cert & Legal | L27: =Overview!L90 -> Reference: Certifications & Legal worksheet.
A28: Yes | D28: Co-App2 Resolution | L28: =Overview!L91 -> Signature required; see Applicant Documents worksheet.
A29: Yes | D29: Co-App2 OrgDoc1, OrgDoc1, etc.… | L29: =Overview!L92 -> See Applicant Documents worksheet
A30: Yes | D30: Co-App2 OrgChart | L30: =Overview!L93 -> See Applicant Documents worksheet
A31: Yes | D31: Co-App2 Signature Block | L31: =Overview!L94 -> See Applicant Documents worksheet
A32: Yes | D32: Co-App2 Payee Data or TIN | L32: =Overview!L95 -> See Applicant Documents worksheet
A33: Yes | D33: Co-App2 Cert of Good Standing | L33: =Overview!L96 -> Dated 30 days or less from the Application due date
A34: Yes | D34: Co-App2 Tax-Exempt Status | L34: =Overview!L97 -> Evidence of tax-exempt status from IRS and Franchise Tax Board, if applicable
A35: Yes | D35: Co-App2 Article of Org | L35: LLC | N35: See Applicant Documents worksheet
A36: Yes | D36: Co-App2 Cert of Amendment
A37: Yes | D37: Co-App2 Stat of Information
A38: Yes | D38: Co-App2 Cert of LP | L38: LP | N38: See Applicant Documents worksheet
A39: Yes | D39: Co-App2 LP Agreement
A40: Co-Applicant 3 (Co-App3)
A41: Yes | D41: Co-App3 Cert & Legal | L41: =Overview!L109 -> Reference: Certifications & Legal worksheet.
A42: Yes | D42: Co-App3 Resolution | L42: =Overview!L110 -> Signature required; see Applicant Documents worksheet.
A43: Yes | D43: Co-App3 OrgDoc1, OrgDoc1, etc.… | L43: =Overview!L111 -> See Applicant Documents worksheet
A44: Yes | D44: Co-App3 OrgChart | L44: =Overview!L112 -> See Applicant Documents worksheet
A45: Yes | D45: Co-App3 Signature Block | L45: =Overview!L113 -> See Applicant Documents worksheet
A46: Yes | D46: Co-App3 Payee Data or TIN | L46: =Overview!L114 -> See Applicant Documents worksheet
A47: Yes | D47: Co-App3 Cert of Good Standing | L47: =Overview!L115 -> Dated 30 days or less from the Application due date
A48: Yes | D48: Co-App3 Tax-Exempt Status | L48: =Overview!L116 -> Evidence of tax-exempt status from IRS and Franchise Tax Board, if applicable
A49: Yes | D49: Co-App3 Article of Org | L49: LLC | N49: See Applicant Documents worksheet
A50: Yes | D50: Co-App3 Cert of Amendment
A51: Yes | D51: Co-App3 Stat of Information
A52: Yes | D52: Co-App3 Cert of LP | L52: LP | N52: See Applicant Documents worksheet
A53: Yes | D53: Co-App3 LP Agreement
A54: Co-Applicant 4 (Co-App4)
A55: Yes | D55: Co-App4 Cert & Legal | L55: =Overview!L128 -> Reference: Certifications & Legal worksheet.
A56: Yes | D56: Co-App4 Resolution | L56: =Overview!L129 -> Signature required; see Applicant Documents worksheet.
A57: Yes | D57: Co-App4 OrgDoc1, OrgDoc1, etc.… | L57: =Overview!L130 -> See Applicant Documents worksheet
A58: Yes | D58: Co-App4 OrgChart | L58: =Overview!L131 -> See Applicant Documents worksheet
A59: Yes | D59: Co-App4 Signature Block | L59: =Overview!L132 -> See Applicant Documents worksheet
A60: Yes | D60: Co-App4 Payee Data or TIN | L60: =Overview!L133 -> See Applicant Documents worksheet
A61: Yes | D61: Co-App4 Cert of Good Standing | L61: =Overview!L134 -> Dated 30 days or less from the Application due date
A62: Yes | D62: Co-App4 Tax-Exempt Status | L62: =Overview!L135 -> Evidence of tax-exempt status from IRS and Franchise Tax Board, if applicable
A63: Yes | D63: Co-App4 Article of Org | L63: LLC | N63: See Applicant Documents worksheet
A64: Yes | D64: Co-App4 Cert of Amendment
A65: Yes | D65: Co-App4 Stat of Information
A66: Yes | D66: Co-App4 Cert of LP | L66: LP | N66: See Applicant Documents worksheet
A67: Yes | D67: Co-App4 LP Agreement
A68: Threshold worksheet
A69: §300 Threshold
A70: Yes | D70: Non-Discrimination Policy | L70: Provide a non-discrimination policy
A71: Yes | D71: Local Appr, CEQA, and NEPA | L71: Local Approvals, CEQA, and NEPA, as evidenced by the completed and signed Local Jurisdiction and NEPA Responsible Entity Verification worksheet
A72: Yes | D72: =Threshold!D14 -> Racial & Gender Equity statement | L72: Latest Continuum of Care HMIS demographics data
A73: Yes | D73: =Threshold!D16 -> Engaging the Target Population statement | L73: Provide a description of how the Applicant has engaged or will engage with the Target Population to inform the design of the project
A74: See Document Description | D74: Use Change | L74: For Applicants proposing sites that will require a use change for permanent housing, there should be a commitment and plan to facilitate or expedite those processes, so as to not delay expenditure and occupancy requirements
A75: Yes | D75: Site Control1, Site Control2, etc. | L75: Provide documentation of the type of site control for each site pursuant to UMR §8303
A76: Yes | D76: Prelim1, Prelim2, etc. | L76: Provide a current preliminary report for each site
A77: Yes | D77: Development Plan | L77: Provide a detailed development plan that supports acquisition of a site, completion of rehabilitation or construction, occupancy, and fund expenditure before all program deadlines, factoring in entitlements, permits, procurement, potential construction delays and supply chain issues, and demonstrates evidence of strong organizational and financial capacity to develop the project.
A78: Yes | D78: Rehab Description | L78: Rehab Project | P78: Narrative description of current condition of structure(s) and overall scope of work.
A79: Yes | D79: PNA | L79: Rehab Project | P79: Physical Needs Assessment prepared by a qualified independent third party contractor.
A80: See Document Description | D80: Market Study | L80: Master Leasing and Purchase of Affordability Covenants | P80: Provide a recent market study within the past year which conforms to Tax Credit Allocation Committee (TCAC) guidelines, and/or a rent roll, and/or other supporting documentation per §205 of the NOFA.
A81: Yes | D81: Env. Report 1 | L81: Rehab & New Construction Project | P81: =Threshold!L59 -> Environmental Site Assessment Phase I (prepared or updated no earlier than 12 months prior to the application due date).
A82: Yes, if rec'd by Phase I | D82: Env. Report 2 | L82: Rehab & New Construction Project | P82: =Threshold!L60 -> If Environmental Site Assessment Phase I requires a Phase II study, submit a Phase II (prepared or updated no earlier than 12 months prior to the application due date).
A83: Yes | D83: Appraisal | L83: Conversion, Acq and/or New Construction | P83: If land costs will be included in the Development Budget, attach an appraisal dated within 60 days of the application submittal date
A84: Yes | D84: Relocation Assistance Narrative | L84: Relocation Assistance Narrative for relocation or no relocation
A85: Yes | D85: Housing First Experience | L85: =Threshold!L95 -> Provide experience administering a Project in accordance with the core components of Housing First | P85: Experience administering a Housing First program that includes principles of harm reduction and low barriers to entry.
A86: See Document Description | D86: One-for-one Replacement | L86: Submit if the acquired housing or site is to be redeveloped/repositioned as part of the locality's overall goal to address the needs of the Target Population and the community, the Applicant shall provide as part of the application a commitment to ensure one-for-one replacement of units | P86: If the acquired housing or site is to be redeveloped/repositioned as part of the locality's overall goal to address the needs of the Target Population and the community, the Applicant shall provide as part of the application a commitment to ensure one-for-one replacement of units
A87: See Document Description | D87: Housing Site Map | L87: Submit a map indicating the original target housing location and all proposed housing location(s), if the proposed housing is located within the original target housing location neighborhood | P87: Map indicating the original target housing location and all proposed housing location(s).
A88: See Document Description | D88: Outside Neighborhood | L88: If replacement housing is proposed outside the target neighborhood, include a justification explaining why it is necessary to locate this replacement housing outside the target neighborhood (i.e., offsite) and how doing so supports and enables the Target Population to maintain housing. | P88: If replacement housing is proposed outside the target neighborhood, include a justification explaining why it is necessary to locate this replacement housing outside the target neighborhood (i.e., offsite) and how doing so supports and enables the Target Population to maintain housing.
A89: Yes | D89: Perm Hsg Exp | L89: Provide evidence of capacity includes evidence of financial resources, an office and payroll. | P89: Provide evidence of capacity includes evidence of financial resources, an office and payroll.
A90: §301 Interim Housing Requirements
A91: Yes, if project type is Interim Hsg. | D91: Plan to Perm Hsg | L91: Provide a plan to connect participants to Permanent Housing, describing the number and type of Permanent Housing opportunities, how the Project will leverage Supportive Services staff to navigate to Permanent Housing, and the funding plan to make connections to Permanent Housing. | P91: Provide experience in linking Interim Housing program participants to Permanent Housing to ensure long-term housing stability
A92: Yes, if project type is Interim Hsg. | D92: Interim Hsg Project Alignment | L92: Provide a description of how the proposed Homekey Interim Hsg. Project aligns with the Local Homelessness Action Plan or a description on how the Applicant's jurisdiction has worked with recipients in the region and Continuum of Care (CoC) to coordinate and align the proposed Homekey project with the Local Homelessness Action Plan goals and strategies. | P92: Provide experience administering a Housing First program that includes principles of harm reduction and low barriers to entry
A93: Yes, if project type is Interim Hsg. | D93: Interim Hsg Collaboration | L93: provide a description how Applicant has worked with HHAP recipients in the region and the Continuum of Care (CoC) to coordinate and align the proposed Homekey Project with the Local Homelessness Action Plan goals and strategies.
A94: Yes, if project type is Interim Hsg. | D94: Local Homelessness Action Plan | L94: Provide a copy of the Eligible Applicant’s approved Local Homelessness Action Plan pursuant to HHAP Round 4, which clearly states the need for Interim Housing.
A95: §502 Tenant Selection and Participant Selection
A96: Yes | D96: =Threshold!D155 -> CES Participation and CoC Form | L96: =Threshold!L155 -> Provide a Coordinated Entry System Participation and Continuum of Care Coordination Form
A97: §504 Relocation
A98: Yes | D98: Relocation Plan | L98: Provide a complete relocation plan
A99: §506 Prevailing Wage
A100: Yes | D100: Prevailing Wage Certificate | L100: =Threshold!L165 -> Provide a prevailing wage certification
A101: §507 Environmental Clearances
D102: CEQA (if applicable) | L102: Provide a copy of CEQA Determination Documents
D103: NEPA Authority to Use Grant Funds (if applicable) | L103: NEPA Authority to Use Grant Funds issued by the Responsible Entity if the project is proposing use of federal funds
A104: §800 Insurance Requirements
D105: Liability Insurance | L105: Proof of General Liability Insurance that meets the requirements in §800(i)
D106: Automobile Insurance | L106: Proof of Automobile Liability Insurance that meets the requirements in §800(ii)
D107: Property-Hazard Insurance | L107: Proof of Property Insurance that meets the requirements in §800(v)
A108: Unit Mix worksheet
A109: Yes | D109: Utility Allowance | L109: Local housing authority document showing current utility allowance chart, with relevant components circled. | AF109: Uploaded to HCD?
A110: Dev Sources worksheet
A111: Yes | D111: EFC1, EFC2, EFCI3, etc. | L111: Documentation for the executed funding commitments. See Dev Sources worksheet | AF111: Uploaded to HCD?
A112: Award, Match, and Revenue worksheet
A113: See Document Description | D113: ='Award, Match, and Revenue'!C12 -> Funding Limit Exemption Form | L113: If total Department sources exceed $35 million, a request for exemption to the per Project funding limit is required.
A114: Yes | D114: =IF('Award, Match, and Revenue'!C20="","",'Award, Match, and Revenue'!C20) ->  | L114: Provide commitment of this non-Homekey operating subsidy that will be used to maintain the ongoing affordability of the Project. | AF114: Uploaded to HCD?
A115: Yes | D115: =IF('Award, Match, and Revenue'!C22="","",'Award, Match, and Revenue'!C22) ->  | L115: Provide commitment of this non-Homekey operating subsidy that will be used to maintain the ongoing affordability of the Project. | AF115: Uploaded to HCD?
A116: Yes | D116: =IF('Award, Match, and Revenue'!C24="","",'Award, Match, and Revenue'!C24) ->  | L116: Provide commitment of this non-Homekey operating subsidy that will be used to maintain the ongoing affordability of the Project. | AF116: Uploaded to HCD?
A117: Yes | D117: =IF('Award, Match, and Revenue'!C26="","",'Award, Match, and Revenue'!C26) ->  | L117: Provide commitment of this non-Homekey operating subsidy that will be used to maintain the ongoing affordability of the Project. | AF117: Uploaded to HCD?
A118: Yes | D118: ='Award, Match, and Revenue'!C42 -> HA Support for Homekey Operating Subsidy | L118: ='Award, Match, and Revenue'!H42 -> Provide a letter of support from the applicable housing authority confirming the need for an operating award and evidencing why other subsidies, such as Project-based vouchers (PBVs), are not available. The Housing Authority Support for Homekey Operating Subsidy template can be found on the Homekey website.
A119: Yes | D119: =IF('Unit Mix'!$M$3="","",'Unit Mix'!$M$3) -> Rental Subsidy Program #1 Name | L119: Provide commitment of this non-Homekey rental subsidy that will be used to maintain the ongoing affordability of the Project. | AF119: Uploaded to HCD?
A120: Yes | D120: =IF('Unit Mix'!$O$3="","",'Unit Mix'!$O$3) -> Rental Subsidy Program #2 Name | L120: Provide commitment of this non-Homekey rental subsidy that will be used to maintain the ongoing affordability of the Project. | AF120: Uploaded to HCD?
A121: Yes | D121: =IF('Unit Mix'!$Q$3="","",'Unit Mix'!$Q$3) -> Rental Subsidy Program #3 Name | L121: Provide commitment of this non-Homekey rental subsidy that will be used to maintain the ongoing affordability of the Project. | AF121: Uploaded to HCD?
A122: Yes | D122: =IF('Unit Mix'!$S$3="","",'Unit Mix'!$S$3) -> Rental Subsidy Program #4 Name | L122: Provide commitment of this non-Homekey rental subsidy that will be used to maintain the ongoing affordability of the Project. | AF122: Uploaded to HCD?
A123: Support Services Plan
A124: Yes | D124: Property Management Plan | L124: Submit Property Management Plan and Tenant Selection Policies | AF124: Uploaded to HCD?
A125: Application Scoring Criteria
A126: Yes | D126: Commitment letter(s) or MOU(s) | L126: Provide commitment letter(s) or MOU(s) documentation | AF126: Uploaded to HCD?
A127: Yes | D127: Amenities Map | L127: If applicable, provide a radius map with the amenities identified by markers | AF127: Uploaded to HCD?
A128: See Document Description | D128: High Speed Internet | L128: Submit if Project site has high speed Internet service.
A129: Certification & Legal worksheet
A130: Yes | D130: Cert & Legal Explanation | L130: Letter of explanation for any "Yes" answers or red shaded items. See Certification & Legal worksheet
A132: Applicant Comments

Sheet Certification & Legal
A1: Certification & Legal Disclosure | AK1: =Overview!AJ1 -> Rev 4/23/2023
A2: On behalf of the entity identified in the signature block below, I certify that:
A3: 1. The information, statements and attachments included in this application are, to the best of my knowledge and belief, true and correct.
A4: 2. I possess the legal authority to submit this application on behalf of the entity identified in the signature block.
A5: 3. The following is a complete disclosure of all identities of interest - of all persons or entities, including affiliates, that will provide goods or services to the Project either (a) in one or more capacity or (b) that qualify as a "Related Party" to any person or entity that will provide goods or services to the Project. "Related Party" is defined in Section 10302 of the California Code of Regulations (CTCAC Regulations):
A7: 4. As of the date of application, the Project, or the real property on which the Project is proposed (Property) is not party to or the subject of any claim or action at the State or Federal appellate level.
A8: 5. I have disclosed and described below any claim or action undertaken which affects or potentially affects the feasibility of the Project.
A9: In addition, I acknowledge that all information in this application and attachments is public, and may be disclosed by the State.
A12: Printed Name | K12: Title of Signatory | U12: Signature | AJ12: Date
A13: Legal Disclosure
A14: For purposes of the following questions, and with the exceptions noted below, the term “applicant” shall include the applicant and joint applicant, and any subsidiary of the applicant or joint applicant if the subsidiary is involved in (for example, as a guarantor) or will be benefited by the application or the project.
A15: In addition to each of these entities themselves, the term “applicant” shall also include the direct and indirect holders of more than ten percent (10%) of the ownership interests in the entity, as well as the officers, directors, principals and senior executives of the entity if the entity is a corporation, the general and limited partners of the entity if the entity is a partnership, and the members or managers of the entity if the entity is a limited liability company. For projects using tax-exempt bonds, it shall also include the individual who will be executing the bond purchase agreement.
A16: The following questions must be responded to for each entity and person qualifying as an "applicant," or "joint applicant" as defined above.
A17: Explain all positive responses on a separate sheet and include with this questionnaire in the application.
A18: Exceptions:
A19: Public entity applicants without an ownership interest in the proposed project, including but not limited to cities, counties, and joint powers authorities with 100 or more members, are not required to respond to this questionnaire.
A20: Members of the boards of directors of non-profit corporations, including officers of the boards, are also not required to respond. However, chief executive officers (Executive Directors, Chief Executive Officers, Presidents or their equivalent) must respond, as must chief financial officers (Treasurers, Chief Financial Officers, or their equivalent).
A21: Civil Matters
A22: 1. Has the applicant filed a bankruptcy or receivership case or had a bankruptcy or receivership action commenced against it, defaulted on a loan or been foreclosed against in past ten years?
A23: 2. Is the applicant currently a party to, or been notified that it may become a party to, any civil litigation that may materially and adversely affect (a) the financial condition of the applicant’s business, or (b) the project that is the subject of the application?
A24: 3. Have there been any administrative or civil settlements, decisions, or judgments against the applicant within the past ten years that materially and adversely affected (a) the financial condition of the applicant’s business, or (b) the project that is the subject of the application?
A25: 4. Is the applicant currently subject to, or been notified that it may become subject to, any civil or administrative proceeding, examination, or investigation by a local, state or federal licensing or accreditation agency, a local, state or federal taxing authority, or a local, state or federal regulatory or enforcement agency?
A26: 5. In the past ten years, has the applicant been subject to any civil or administrative proceeding, examination, or investigation by a local, state or federal licensing or accreditation agency, a local, state or federal taxing authority, or a local, state or federal regulatory or enforcement agency that resulted in a settlement, decision, or judgment?
A27: Criminal Matters
A28: 6. Is the applicant currently a party to, or the subject of, or been notified that it may become a party to or the subject of, any criminal litigation, proceeding, charge, complaint, examination or investigation, of any kind, involving, or that could result in, felony charges against the applicant?
A29: 7. Is the applicant currently a party to, or the subject of, or been notified that it may become a party to or the subject of, any criminal litigation, proceeding, charge, complaint, examination or investigation, of any kind, involving, or that could result in, misdemeanor charges against the applicant for matters relating to the conduct of the applicant’s business?
A30: 8. Is the applicant currently a party to, or the subject of, or been notified that it may become a party to or the subject of, any criminal litigation, proceeding, charge, complaint, examination or investigation, of any kind, involving, or that could result in, criminal charges (whether felony or misdemeanor) against the applicant for any financial or fraud related crime?
A31: 9. Is the applicant currently a party to, or the subject of, or been notified that it may become a party to or the subject of, any criminal litigation, proceeding, charge, complaint, examination or investigation, of any kind, that could materially affect the financial condition of the applicant’s business?
A32: 10. Within the past ten years, has the applicant been convicted of any felony?
A33: 11. Within the past ten years, has the applicant been convicted of any misdemeanor related to the conduct of the applicant’s business?
A34: 12. Within the past ten years, has the applicant been convicted of any misdemeanor for any financial or fraud related crime?
A35: Provide a letter of explanation if you responded "Yes" to any of the questions above.
A36: File Name: | D36: Cert & Legal Explanation | L36: Letter of explanation for any "Yes" answers or red shaded items above. | AF36: Uploaded to HCD?
A39: Printed Name | K39: Title of Signatory | U39: Signature | AJ39: Date

Sheet Local & Env Verification
A1: Local Jurisdiction and NEPA Responsible Entity Verification (if applicable) | AJ1: =Overview!AJ1 -> Rev 4/23/2023
A2: Applicant: This form is to help inform the readiness of the Project by providing evidence of where the Project is in any required environmental review and land use/entitlement processes. Submit this form to the agency or department of local government responsible for administration of the items listed. This form may be submitted to more than one agency or department as necessary. If the NEPA Responsible Entity is not a local government (e.g. State Dept. of Housing and Community Development, USDA RD), also submit a copy of this form to the appropriate NEPA Responsible Entity. If an item is not required, indicate the reason in the box below. Complete both Sections 1 & 2.
A3: Project Applicant: | M3: =IF(Overview!D55="","",Overview!D55) -> 
A4: Applicant Address: | M4: =IF(Overview!C56="","",Overview!C56) -> 
A5: Applicant City: | M5: =IF(Overview!W56="","",Overview!W56) -> 
A6: Project Name: | M6: =IF(Overview!E24="","",Overview!E24) -> 
A7: Project Address/site: | M7: =IF(Overview!E25="","",Overview!E25) -> 
A8: Project City: | M8: =IF(Overview!V25="","",Overview!V25) -> 
A9: Project County: | M9: =IF(Overview!E26="","",Overview!E26) -> 
A10: Assessor Parcel Numbers (APNs): | M10: =CONCATENATE(Overview!A31," ",Overview!F31," ",Overview!J31," ",Overview!N31," ",Overview!R31," ",Overview!V31," ",Overview!Z31," ",Overview!AD31," ",Overview!AH31," ",Overview!A32," ",Overview!F32," ",Overview!J32," ",Overview!N32," ",Overview!R32," ",Overview!V32," ",Overview!Z32," ",Overview!AD32," ",Overview!AH32,"") -> 
A11: Section 1
A12: Local jurisdiction or NEPA Responsible Entity: The Applicant named above has submitted an application to the State Dept. of Housing and Community Development (the Department) requesting funding for the project named above, under the Homekey program. Projects submitted for program funding are subject to a competitive rating process. Project readiness is a component of that process. Verification of items listed below will be used in evaluating Homekey applications.
X13: Applicable for this Project? | AC13: Final date of Public Comment Period | AH13: Approved Date
A14: All Environmental Clearances (CEQA and NEPA) necessary to begin construction are either final approved or unnecessary: | U14: CEQA
U15: NEPA
AH16: ESA Document Date(s)
A17: ESA Phase I | N17: Phase I shall be dated less than 12 months before application submittal date. | AH17: =IF(Threshold!AB59="","",Threshold!AB59) -> 
A18: ESA Phase II | N18: Phase II if recommended or required by Phase I | AH18: =IF(Threshold!AB60="","",Threshold!AB60) -> 
A19: Specify in the box below environmental review type(s) not required and explain why (include documentation, if applicable):
A21: Section 2
A22: Note: Any project using Homekey funds for any of the purposes listed in the Homekey NOFA is deemed consistent with “local plan, standard, or requirement, and any applicable coastal plan, local or otherwise,” and “allowed as a permitted use, within the zone in which the structure is located, and shall not be subject to a conditional use permit, discretionary permit, or any other discretionary reviews or approvals.” (Health and Safety Code 50675.1.3 (i))
X23: Required for this Project? | AC23: Under Review? | AH23: Verified as Complete and date completed
A24: All necessary land use approvals or entitlements necessary prior to issuance of a building permit, including any required discretionary approvals, such as site plan or design review.
A25: Specify in the box below, items not required and explain why (include documentation, if applicable):
A27: Project Applicant has submitted a complete application to the relevant local authorities for land use approval under a nondiscretionary local approval process, where the application has been neither approved or disapproved. A nondiscretionary local approval process is one that includes little or no subjective judgement by the public official and is limited to ensuring that the proposed development meets a set of objective zoning, design review and/or subdivision standards in effect at the time the application is submitted to the local government. A “nondiscretionary local approval process” includes Streamlined Ministerial Approval Processing under to Chapter 366, Statutes of 2017 (SB 35), By-Right Processing for Permanent Supportive Housing under Chapter 753, Statutes of 2018 (AB 2162), housing element law (Government Code Section 65583.2(i)), or other local process that meets the definition of non-discretionary approval process.
A28: Projects located within the boundaries of an incorporated city, the city shall make the necessary determinations, and for Projects located in the unincorporated areas of a county, the county shall make the necessary determinations. The appropriate entity shall sign below. Additional acknowledgements can be included on a separate sheet and attached.
A29: I certify that the information on this form is true and correct to the best of my knowledge.
A30: Dated:
A31: Statement completed by:
A32: Signature:
A33: Title:
A34: Agency or Department Name:
A35: Agency or Department Address:
A36: Agency or Department Phone:

Sheet Dev Fee 2022
A1: HCD 2022 Developer Fee Calculator - revised 2/4/21 (complete YELLOW shaded cells)
A2: Project Phase: | C2: Origination | D2: Proposed Project Type: | F2: No Tax Credits | G2: TCAC Project #:
A3: Project Name: | C3: =IF(Overview!$E$24="","",Overview!$E$24) -> 
A4: Project's Developer Fee Summary | G4: HCD Limit | H4: Project Amt.
B5: Maximum Total Developer Fee - d. | G5: =$H$27 -> 0 | H5: =$F$9 -> 0 | I5: =MAX(0,ROUND($H$5,0)-ROUND($G$5,0)) -> 0
B6: Max Developer Fee payable from development funding sources - d. | G6: =$G$5 -> 0 | H6: =MAX(0,$H$5-$F$10-$I$10) -> 0 | I6: =MAX(0,ROUND($H$6,0)-ROUND($G$6,0)) -> 0
B7: Deferred Developer Fee payable on a priority basis from available Cash Flow | G7: =MAX(0,MIN(G5,3500000)-G6) -> 0 | H7: =MAX(0,MIN($G$5,$H$5-$F$10)-$H$6) -> 0
B8: Deferred Developer Fee payable exclusively from Sponsor Distributions | G8: =$G$5-$G$6-$G$7 -> 0 | H8: =MAX(0,$H$5-$H$6-$H$7-$F$10) -> 0
A9: Total Budgeted or Actual Developer Fee | F9: ='Dev Budget'!$M$124 -> 0
A10: Developer Fee Contributed as Capital | G10: Deferred Developer Fee
A11: UMR §8312(a) for Projects without tax credits (choose only one in the 'a', 'b' or 'c' subsections) | K11: 11500
A12: a. New construction and substantial rehab projects UMR §8312(a)(1) | K12: 38000 | L12: per unit
B13: substantial rehab = construction cost for rehab work (excluding contractor profit and overhead) in excess of $38,000 per unit | K13: Construction | L13: Rehab
A14: a1. | B14: Number of units (include manager's unit) | F14: =IFERROR(IF(OR($K$14>$K$12,$L$14>$K$12),'Unit Mix'!$E$21,0),0) -> 0 | K14: =SUM('Dev Budget'!M47-'Dev Budget'!M37-'Dev Budget'!M36)/'Unit Mix'!E21 ->  | L14: =SUM('Dev Budget'!M30-'Dev Budget'!M22-'Dev Budget'!M23)/'Unit Mix'!E21 -> 
A15: a2. | B15: First 30 units at: | D15: 30000 | E15: each | G15: =IF($F$14>29,$D$15*30,+$F$14*$D$15) -> 0
A16: a3. | B16: Units in excess of 30 at: | D16: 11500 | E16: each | G16: =IF($F$14<30,0,($F$14-30)*$D$16) -> 0
A17: a4. | B17: Total new construction and substantial rehab (a2 + a3) | H17: =+$G$15+$G$16 -> 0
A18: b. Acquisition and rehab projects UMR §8312(a)(2)
B19: with construction cost for rehab work (excluding contractor profit and overhead) between $11,500 - $38,000 per unit
A20: b1. | B20: Number of units (include manager's unit) | F20: =IFERROR(IF(AND($K$14<$K$12,$K$14>$K$11),'Unit Mix'!$E$21,IF(AND($L$14<$K$12,$L$14>$K$11),'Unit Mix'!$E$21,0)),0) -> 0
A21: b2. | B21: First 30 units at: | D21: 14000 | E21: each | G21: =IF($F$20>29,$D$21*30,+$F$20*$D$21) -> 0
A22: b3. | B22: Units in excess of 30 at: | D22: 6500 | E22: each | G22: =IF($F$20<30,0,($F$20-30)*$D$22) -> 0
A23: b4. | B23: Total acquisition and non-substantial rehab (b2 + b3) | H23: =+$G$21+$G$22 -> 0
A24: c. All other projects UMR §8312(a)(3)
A25: c1. | B25: Number of units (include manager's unit) | F25: =IF($F$14+$F$20<=0,'Unit Mix'!$E$21,0) -> 0
A26: c2. | B26: Total other at: | D26: 2000 | E26: per unit | H26: =+$F$25*$D$26 -> 0
A27: d. Maximum allowable Developer Fee (a4 + b4 + c2) | H27: =$H$17+$H$23+$H$26 -> 0

Sheet Calculation Worksheet
A1: Calculation Worksheet | AK1: =Overview!AJ1 -> Rev 4/23/2023
A2: Project Name: | E2: =IF(Overview!$E$24="","",Overview!$E$24) ->  | Z2: Number of Project Units: | AH2: ='Unit Mix'!$E$21 -> 0
A3: Operating Reserve Calculator UMR §8308
A4: (1) | B4: Total Operating Expenses Excluding On-Site Service Coordinator Salaries. (Operating worksheet cell D114 minus Operating worksheet cell D104) | AE4: TAX CREDIT Project 3 Month Reserve Required | AI4: NON-TAX CREDIT Project 4 Month Reserve Required
B5: (a) Total Operating Expenses: | O5: =Operating!$D$121 -> 0 | T5: Amount subject to reserve calculation: (a - b) | AA5: =SUM($O$5-$O$6) -> 0 | AE5: =$AA$5/12*3 -> 0 | AI5: =$AA$5/12*4 -> 0
B6: (b) Minus: On-Site Service Coordinator Salaries: | O6: =Operating!$D$107 -> 0
A7: (2) | B7: Replacement Reserve amount from cell AI27 below: | AA7: =$AI$27 -> 0 | AE7: =$AA$7/12*3 -> 0 | AI7: =$AA$7/12*4 -> 0
A8: (3) | B8: Debt Service
B9: Name of Lender Operating worksheet cells (D134 to D140) | AA9: Annual Debt Service Amount | AE9: TAX CREDIT Project 3 Month Reserve Required | AI9: NON-TAX CREDIT Project 4 Month Reserve Required
B10: =Operating!$C$134 -> 1st Mortgage Debt Service | AA10: =Operating!$D$134 -> 0 | AE10: =IFERROR(AA10/12*3,0) -> 0 | AI10: =IFERROR(AA10/12*4,0) -> 0
B11: =Operating!$C$135 -> 2nd Mortgage Debt Service | AA11: =Operating!$D$135 -> 0 | AE11: =IFERROR(AA11/12*3,0) -> 0 | AI11: 0
B12: =Operating!$C$136 -> 3rd Mortgage Debt Service | AA12: =Operating!$D$136 -> 0 | AE12: 0 | AI12: 0
B13: =Operating!$C$137 -> Misc. Financial Expenses: (specify) | AA13: =Operating!$D$137 -> 0 | AE13: 0 | AI13: 0
B14: =Operating!$C$138 -> Misc. Financial Expenses: (specify) | AA14: =Operating!$D$138 -> 0 | AE14: 0 | AI14: 0
B15: =Operating!$C$139 -> Misc. Financial Expenses: (specify) | AA15: =Operating!$D$139 -> 0 | AE15: 0 | AI15: 0
B16: =Operating!$C$140 -> Misc. Financial Expenses: (specify) | AA16: =Operating!$D$140 -> 0 | AE16: 0 | AI16: 0
B17: Other (Specify) | AE17: =IFERROR(AA17/12*3,0) -> 0 | AI17: 0
B18: Totals | AA18: =SUM(AA10:AD17) -> 0 | AE18: =SUM(AE10:AH17) -> 0 | AI18: =SUM(AI10:AL17) -> 0
A19: UMR Required Operating Reserve Amount: | AE19: =$AE$5+$AE$7+$AE$18 -> 0 | AI19: =$AI$5+$AI$7+$AI$18 -> 0
A20: If reserve amounts are different than the required amount, enter reserve amounts and how they are calculated below:
A23: Replacement Reserve Calculator UMR §8309
A24: (a) | B24: 0.6% of New construction costs (structures excluding contractor profit, overhead, and general requirements and insurance): | AE24: ='Dev Budget'!$M$47-'Dev Budget'!$M$35-'Dev Budget'!$M$36-'Dev Budget'!$M$37-'Dev Budget'!$M$39 -> 0 | AI24: =$AE$24*0.006 -> 0
B25: $500 per unit: (This is a placeholder for rehab projects and may be subject to higher amount) | AE25: 500 | AI25: =$AH$2*AE25 -> 0
A26: (b) | B26: Replacement Reserve Amount = New construction: lesser of (a) and (b); Rehab: (b) | AI26: =IF(OR(AH32="Acquisition & Rehabilitation",AH32="Rehabilitation"),'Calculation Worksheet'!$AI$25,MIN('Calculation Worksheet'!$AI$24:$AL$25)) -> 0
B27: HCD Required Replacement Reserve Amount - included in Operating' worksheet cell D123 | AI27: =$AI$26 -> 0
A29: Construction Hard Cost Contingency Calculator UMR §8310
A30: (j) | B30: Where the Department is providing construction-period financing, the minimum budgeted construction contingency must be 5 percent of construction costs for new construction projects and 10 percent of construction costs for rehabilitation and conversion projects.
A31: Offsite Improvements - from Dev Budget worksheet cell M12 | AA31: ='Dev Budget'!$M$12 -> 0 | AE31: =IFERROR($AA$37/($AA$31+$AA$32+$AA$33+$AA$34+$AA$35+$AA$36),0) -> 0 | AH31: Development Type | AN31: 0.0499 | AO31: 0.0999
A32: Site Work - from Dev Budget worksheet cell M19 or M33 | AA32: ='Dev Budget'!$M$19+'Dev Budget'!$M$33 -> 0 | AH32: =IF(Overview!$S$35="","",Overview!$S$35) ->  | AN32: iv. New construction of dwelling units | AO32: =IF($AH$32="New Construction",$AE$31,"") -> 
A33: Structures - from Dev Budget worksheet cell M20 or M34 | AA33: ='Dev Budget'!$M$20+'Dev Budget'!$M$34 -> 0 | AN33: i. Acquisition & Rehabilitation | AO33: =IF($AH$32="Acquisition & Rehabilitation",$AE$31,"") -> 
A34: General Requirements - from Dev Budget worksheet cell M21 or M35 | AA34: ='Dev Budget'!$M$21+'Dev Budget'!$M$35 -> 0 | AH34: =IF(Overview!S35="iv. New construction of dwelling units","<(Must be a minimum of 5%)",IF(Overview!S35="Acquisition/Rehabilitation","<(Must be a minimum of 10%)",IF(Overview!S35="i. New Construction & Acq/Rehab","<(Must be a minimum of 5%, variance is possible based on prorated costs)",IF(Overview!S35="i. Acquisition & Rehabilitation","<(Must be a minimum of 10%, variance is possible based on prorated costs)",IF(Overview!S35="i. Rehabilitation","<(Must be a minimum of 10%)",IF(Overview!S35="iii. Conversion of units from nonresidential to residentia","<(Must be a minimum of 10%)","")))))) ->  | AN34: i. New Construction & Acq/Rehab | AO34: =IF($AH$32="New Construction & Acq/Rehab",$AE$31,"") -> 
A35: Contractor Overhead - from Dev Budget worksheet cell M22 or M36 | AA35: ='Dev Budget'!$M$22+'Dev Budget'!$M$36 -> 0 | AN35: i. Rehabilitation | AO35: =IF($AH$32="Rehabilitation",$AE$31,"") -> 
A36: Contractor Profit - from Dev Budget worksheet cell M23 or M37 | AA36: ='Dev Budget'!$M$23+'Dev Budget'!$M$37 -> 0 | AN36: iii. Conversion of units from nonresidential to residential | AO36: =IF($AH$32="Conversion/Adaptive Reuse",$AE$31,"") -> 
A37: Hard Cost Contingency - from Dev Budget worksheet cell M95 | AA37: ='Dev Budget'!$M$95 -> 0
A38: If the development is new construction or new construction & acq./rehab., the hard cost contingency must be between 5% and 10% (see cell AE31 above)
A39: If the development is rehab., acq/rehab., or conversion, the hard cost contingency must be between 10% - 15% (see cell AE31 above)
A40: Comments
A43: Builder Overhead, Profit, and General Requirements Calculator UMR §8311
A44: (c) | B44: Builder overhead, profit and general requirements shall be limited in accordance with California Code of Regulations, Title 4, Section 10327, which states, "An overall cost limitation of fourteen percent (14%) of the cost of construction shall apply to builder overhead, profit, and general requirements, excluding builder's general liability insurance."
A45: Site Work - from Dev Budget worksheet cell M19 or M33 | AA45: ='Dev Budget'!$M$19+'Dev Budget'!$M$33 -> 0 | AH45: =SUM($AE$47:$AG$49) -> 0
A46: Structures - from Dev Budget worksheet cell M20 or M34 | AA46: ='Dev Budget'!$M$20+'Dev Budget'!$M$34 -> 0
A47: General Requirements - from Dev Budget worksheet cell M21 or M35 | AA47: ='Dev Budget'!$M$21+'Dev Budget'!$M$35 -> 0 | AE47: =IFERROR($AA$47/($AA$45+$AA$46+$AA$50+$AA$52+$AA$53),0) -> 0
A48: Contractor Overhead - from Dev Budget worksheet cell M22 or M36 | AA48: ='Dev Budget'!$M$22+'Dev Budget'!$M$36 -> 0 | AE48: =IFERROR($AA$48/($AA$45+$AA$46+$AA$47+$AA$50+$AA$52+$AA$53),0) -> 0
A49: Contractor Profit - from Dev Budget worksheet cell M23 or M37 | AA49: ='Dev Budget'!$M$23+'Dev Budget'!$M$37 -> 0 | AE49: =IFERROR($AA$49/($AA$45+$AA$46+$AA$47+$AA$50+$AA$52+$AA$53),0) -> 0
A50: *Prevailing Wage - from Dev Budget worksheet cell M24 or M38 | AA50: ='Dev Budget'!$M$24+'Dev Budget'!$M$38 -> 0
A51: General Liability Insurance - from Dev Budget worksheet cell M25 or M39 | AA51: ='Dev Budget'!$M$25+'Dev Budget'!$M$39 -> 0
A52: Demolition - from Dev Budget worksheet cell M7 | AA52: ='Dev Budget'!$M$7 -> 0
A53: Offsite Improvements - from Dev Budget worksheet cell M12 | AA53: ='Dev Budget'!$M$12 -> 0
A54: Comments
A57: Supportive Services Costs - 2017 Uniform Multifamily Regulation (UMR) Limits | AK57: 0 | AR57: 8314 (e)(1) | AS57: 8314 (e)(2) | AT57: 8314 (e)(3) | AU57: 8314 (e)(4)
A58: UMR §8301(t): “Supportive Services” - social, health, educational, income support and employment services and benefits, coordination of community building and educational activities, individualized needs assessment, and individualized assistance with obtaining services and benefits. | AQ58: Fiscal Year | AR58: Chronic Homelessness | AS58: Special Needs Population | AT58: Supportive Services | AU58: Other
A59: UMR §8301(u): “Supportive Services Costs” - the costs of providing tenants service coordination, case management, and direct resident and Supportive Services. It includes: (1) the cost of providing tenants with information on and referral to social, health, educational, income support and employment services and benefits, coordination of community building and educational activities, individualized needs assessment, and individualized assistance with obtaining services and benefits; (2) salaries, benefits, contracted services, telecommunication expenses, travel costs, supplies, office expenses, staff training, maintenance of on-site equipment used in services programs, such as computer labs, incidental costs related to resident events, and other similar costs approved by the Department. | AQ59: 2017 | AR59: 4080 | AS59: 3060 | AT59: 1051 | AU59: 250
AQ60: =+AQ59+1 -> 2018 | AR60: =AR59*1.025 -> 4182 | AS60: =AS59*1.025 -> 3136.5 | AT60: =AT59*1.025 -> 1077.275 | AU60: 256.25
A61: A. Supportive Services Units: | I61: Total number units: | M61: ='Unit Mix'!Y21 -> 0 | O61: Certification Year - select budget reporting period year: | AC61: Total Units | AE61: Max PUPY Expense | AH61: Max Costs | AQ61: 2019 | AR61: =AR60*1.025 -> 4286.55 | AS61: =AS60*1.025 -> 3214.9125 | AT61: 1104.206875 | AU61: 262.65625
A62: (1) | B62: UMR §8314(e)(1): Total number of Supportive Housing (SH) units anticipated to be restricted to individuals or families experiencing chronic homelessness as defined consistent with Health and Safety Code (HSC) §50675.14. | AE62: =IFERROR(VLOOKUP($AA$61,$AQ$59:$AU$78,2,FALSE),"") ->  | AH62: =IFERROR(AE62*AC62,"") ->  | AQ62: 2020 | AR62: =AR61*1.025 -> 4393.71375 | AS62: 3295.285312 | AT62: 1131.812047 | AU62: 269.2226562
A63: (2) | B63: UMR §8314(e)(2): Total number of Supportive Housing (SH) units (other than those restricted to individuals or families experiencing chronic homelessness pursuant to HSC §50675.14), PLUS the total number of units restricted to occupancy by Special Needs Populations (SNP)* under any HCD program. (*click here for definition - §7301(s) of the MHP Final Guidelines). Do not include units included in (1) above. | AE63: =IFERROR(VLOOKUP($AA$61,$AQ$59:$AU$78,3,FALSE),"") ->  | AH63: =IFERROR(AE63*AC63,"") ->  | AQ63: 2021 | AR63: 4503.556594 | AS63: 3377.667445 | AT63: 1160.107348 | AU63: 275.9532227
A64: (3) | B64: UMR §8314(e)(3): Total number of units where the Sponsor, their affiliate, or a service provider under contract to provide Supportive Services at the Project has both: (A) qualified staff devoted exclusively to oversight and quality control of resident services in affordable housing, including the Project; and (B) a system to track and report on tenant outcomes, such as changes in employment status and income. Do not include units included in items (1) and (2) above. | AE64: =IFERROR(VLOOKUP($AA$61,$AQ$59:$AU$78,4,FALSE),"") ->  | AH64: =IFERROR(AE64*AC64,"") ->  | AQ64: 2022 | AR64: 4616.145509 | AS64: 3462.109131 | AT64: 1189.110032 | AU64: 282.8520532
A65: (4) | B65: UMR §8314(e)(4): Total number of units anticipated to be offered Supportive Services provided by the Project Sponsor, a Sponsor affiliate, or contracted service provider that do not satisfy the criteria in items (1), (2) and (3) above. | AE65: =IFERROR(VLOOKUP($AA$61,$AQ$59:$AU$78,5,FALSE),"") ->  | AH65: =IFERROR(AE65*AC65,"") ->  | AQ65: 2023 | AR65: 4731.549146 | AS65: 3548.66186 | AT65: 1218.837783 | AU65: 289.9233546
A66: (5) | B66: Maximum Supportive Services Costs | AC66: =SUM(AC62:AD65) -> 0 | AH66: =SUM(AH62:AL65) -> 0 | AQ66: 2024 | AR66: 4849.837875 | AS66: 3637.378406 | AT66: 1249.308727 | AU66: 297.1714384
AQ67: 2025 | AR67: 4971.083822 | AS67: 3728.312866 | AT67: 1280.541445 | AU67: 304.6007244
A68: B. Budgeted Supportive Services Costs | AE68: Max Allowable Amt | AQ68: 2026 | AR68: 5095.360917 | AS68: 3821.520688 | AT68: 1312.554981 | AU68: 312.2157425
A69: (1) | B69: Staff Supervisor(s) Salaries - may not exceed 10% of on-site staff salaries* §8314(f)(1) | Z69: =Operating!$D$8 -> 0 | AC69: <====== | AE69: =(Z70+Z71)*0.1 -> 0 | AQ69: 2027 | AR69: 5222.74494 | AS69: 3917.058705 | AT69: 1345.368856 | AU69: 320.021136
A70: (2) | B70: On-Site Services Coordinator Salaries | Z70: =Operating!$D$9 -> 0 | AQ70: 2028 | AR70: 5353.313564 | AS70: 4014.985173 | AT70: 1379.003077 | AU70: 328.0216645
A71: (3) | B71: On-Site other Supportive Services Staff Salaries | Z71: =Operating!$D$10 -> 0 | AQ71: 2029 | AR71: 5487.146403 | AS71: 4115.359802 | AT71: 1413.478154 | AU71: 336.2222061
A72: (4) | B72: =Operating!$C$14 -> Other Supportive Services Costs: (specify) | Z72: =Operating!$D$14 -> 0
A73: (5) | B73: =Operating!$C$15 -> Other Supportive Services Costs: (specify) | Z73: =Operating!$D$15 -> 0
A74: (6) | B74: =Operating!$C$16 -> Other Supportive Services Costs: (specify) | Z74: =Operating!$D$16 -> 0 | AQ74: =+AQ71+1 -> 2030 | AR74: =AR71*1.025 -> 5624.325063 | AS74: =AS71*1.025 -> 4218.243797 | AT74: =AT71*1.025 -> 1448.815108 | AU74: =AU71*1.025 -> 344.6277612
A75: (7) | B75: =Operating!$C$17 -> Other Supportive Services Costs: (specify) | Z75: =Operating!$D$17 -> 0 | AQ75: 2031 | AR75: 5764.93319 | AS75: 4323.699892 | AT75: 1485.035486 | AU75: 353.2434552
A76: (8) | B76: Supportive Services Admin. Overhead - may not exceed 15% of Total Supportive Services Costs* §8314(f)(2) | AC76: <====== | AE76: =SUM(Z69:AB75)*0.15 -> 0 | AQ76: 2032 | AR76: 5909.056519 | AS76: 4431.792389 | AT76: 1522.161373 | AU76: 362.0745416
A77: (9) | B77: Total Budgeted Supportive Services Costs | Z77: =SUM(Z69:Z76) -> 0 | AC77: <====== | AE77: =AH66 -> 0 | AQ77: 2033 | AR77: 6056.782932 | AS77: 4542.587199 | AT77: 1560.215407 | AU77: 371.1264052
AQ78: 2034 | AR78: 6208.202506 | AS78: 4656.151879 | AT78: 1599.220792 | AU78: 380.4045653

Sheet Applicant Documents
A1: Applicant Documents | AK1: =Overview!AJ1 -> Rev 4/23/2023
A2: Certifications & Legal Disclosure
